"Fondo/Fund";"COD_LOCALE_PROGETTO/PROJECT-LOCAL-CODE";"Codice Unico Progetto/Unique Project Code";"Codice Fiscale Beneficiario/Beneficiary Fiscal Code";"Nome Beneficiario/beneficiary name";"Denominazione dell'operazione/Operation Name";"Sintesi dell'operazione/Operation Summary";"Data inizio operazione/Operation Start Date";"Data fine operazione/Operation end date";"Spesa ammissibile/Eligible expenditure";"Tasso di cofinanziamento/Union co-financing rate";"cap/postcode";"paese/country";"categoria di operazione/operation category";"data aggiornamento/updating date"
"FSE";"2015-3701/RER";"E39J15000990002";"80152680379";"IRECOOP EMILIA-ROMAGNA SOCIETA' COOPERATIVA";"IncludeRE. Azioni di accompagnamento individuale, formazione in piccoli gruppi, tirocinio, accompagnamento al lavoro nell�Area Urbana di Reggio Emilia - Azione 1";"IncludeRE. Azioni di accompagnamento individuale, formazione in piccoli gruppi, tirocinio, accompagnamento al lavoro nell�Area Urbana di Reggio Emilia - Azione 1, attivit� rivolta a 40 persone costituita da:";13/11/2015 00:00:00;30/4/2018 00:00:00;163460,44;0,50;"008035";"008";"109";"31/10/2022"
"FSE";"2015-3702/RER";"E39J15001330002";"80152680379";"IRECOOP EMILIA-ROMAGNA SOCIETA' COOPERATIVA";"IncludeRE. Azioni di accompagnamento individuale, formazione con certificazione, accompagnamento al lavoro nell�Area Urbana di Reggio Emilia - Azione 2";"IncludeRE. Azioni di accompagnamento individuale, formazione con certificazione, accompagnamento al lavoro nell�Area Urbana di Reggio Emilia - Azione 2, attivit� rivolta a 12 persone costituita da:";13/11/2015 00:00:00;28/2/2017 00:00:00;30911,22;0,50;"008035";"008";"109";"31/10/2022"
"FSE";"2015-3704/RER";"E39J15001000002";"80152680379";"IRECOOP EMILIA-ROMAGNA SOCIETA' COOPERATIVA";"Accompagnamento al lavoro, formazione e tirocini per l'Area Urbana di Piacenza - AZIONE 1";"Accompagnamento al lavoro, formazione e tirocini per l'Area Urbana di Piacenza - AZIONE 1, attivit� rivolta a 23 persone costituita da:";16/11/2015 00:00:00;30/6/2017 00:00:00;80442,99;0,50;"008033";"008";"109";"31/10/2022"
"FSE";"2015-3705/RER";"E39J15001010002";"80152680379";"IRECOOP EMILIA-ROMAGNA SOCIETA' COOPERATIVA";"Accompagnamento al lavoro, formazione e tirocini per l'Area Urbana di Parma - AZIONE 1";"Accompagnamento al lavoro, formazione e tirocini per l'Area Urbana di Parma - AZIONE 1, attivit� rivolta a 30 persone costituita da:";30/11/2015 00:00:00;21/12/2017 00:00:00;106763,00;0,50;"008034";"008";"109";"31/10/2022"
"FSE";"2015-3706/RER";"E39J15001020002";"80152680379";"IRECOOP EMILIA-ROMAGNA SOCIETA' COOPERATIVA";"Accompagnamento individuale, formazione in piccoli gruppi, tirocinio, accompagnamento al lavoro- Area Urbana di Modena- Azione 1";"Accompagnamento individuale, formazione in piccoli gruppi, tirocinio, accompagnamento al lavoro- Area Urbana di Modena- Azione 1, attivit� rivolta a 16 persone costituita da:";8/2/2016 00:00:00;28/2/2017 00:00:00;63903,40;0,50;"008036";"008";"109";"31/10/2022"
"FSE";"2015-3708/RER";"E39J15001030002";"80152680379";"IRECOOP EMILIA-ROMAGNA SOCIETA' COOPERATIVA";"PERCORSI DI INCLUSIONE SOCIO LAVORATIVA NEL TERRITORIO DEL DELTA - Azione 1";"PERCORSI DI INCLUSIONE SOCIO LAVORATIVA NEL TERRITORIO DEL DELTA - Azione 1, attivit� rivolta a 22 persone costituita da:";13/11/2015 00:00:00;31/1/2017 00:00:00;90769,40;0,50;"008038";"008";"109";"31/10/2022"
"FSE";"2015-3709/RER";"E39J15001340002";"80152680379";"IRECOOP EMILIA-ROMAGNA SOCIETA' COOPERATIVA";"GESTIONE DEL MAGAZZINO - AREA URBANA DI PIACENZA - AZIONE 2";"GESTIONE DEL MAGAZZINO - AREA URBANA DI PIACENZA - AZIONE 2, attivit� rivolta a 12 persone costituita da:";1/12/2015 00:00:00;31/12/2016 00:00:00;52302,30;0,50;"008033";"008";"109";"31/10/2022"
"FSE";"2015-3710/RER";"E39J15001350002";"80152680379";"IRECOOP EMILIA-ROMAGNA SOCIETA' COOPERATIVA";"OPERATORE DI MAGAZZINO MERCI: UC 1 e UC 3. AREA URBANA DI PARMA  - AZIONE 2";"OPERATORE DI MAGAZZINO MERCI: UC 1 e UC 3. AREA URBANA DI PARMA  - AZIONE 2, attivit� rivolta a 12 persone costituita da:";16/11/2015 00:00:00;26/6/2017 00:00:00;50477,45;0,50;"008034";"008";"109";"31/10/2022"
"FSE";"2014-2907/RER";"E86D14000330005";"90036450360";"FONDAZIONE ISTITUTO TECNICO SUPERIORE NUOVE TECNOLOGIE DELLA VITA";"TECNICO SUPERIORE PER LA PRODUZIONE DI APPARECCHI E DISPOSITIVI BIOMEDICALI";"TECNICO SUPERIORE PER LA PRODUZIONE DI APPARECCHI E DISPOSITIVI BIOMEDICALI";30/10/2014 00:00:00;19/10/2016 00:00:00;197612,11;0,50;"008036";"008";"116";"31/10/2022"
"FSE";"2014-2913/RER";"E16D14000400005";"03913590406";"FONDAZIONE ISTITUTO TECNICO SUPERIORE TECNOLOGIE INDUSTRIE CREATIVE";"Tecnico superiore per l'organizzazione e la fruizione dell'informazione e della conoscenza ";"Tecnico superiore per l'organizzazione e la fruizione dell'informazione e della conoscenza ";5/11/2014 00:00:00;7/12/2016 00:00:00;186113,46;0,50;"008040";"008";"116";"31/10/2022"
"FSE";"2014-2914/RER";"E26D14000380005";"03913590406";"FONDAZIONE ISTITUTO TECNICO SUPERIORE TECNOLOGIE INDUSTRIE CREATIVE";"Tecnico superiore per il design, lo sviluppo e la sostenibilit� del prodotto ceramico industriale";"Tecnico superiore per il design, lo sviluppo e la sostenibilit� del prodotto ceramico industriale";12/11/2014 00:00:00;7/12/2016 00:00:00;197199,82;0,50;"008039";"008";"116";"31/10/2022"
"FSE";"2014-2915/RER";"E56D14000220005";"91361180374";"FONDAZIONE Istituto Tecnico Superiore Meccanica, Meccatronica, Motoristica, Packaging";"Tecnico Superiore per l'automazione e il packaging";"Tecnico Superiore per l'automazione e il packaging";30/10/2014 00:00:00;30/9/2016 00:00:00;186153,82;0,50;"008037";"008";"116";"31/10/2022"
"FSE";"2014-2916/RER";"E36D14000830005";"91361180374";"FONDAZIONE Istituto Tecnico Superiore Meccanica, Meccatronica, Motoristica, Packaging";"Tecnico Superiore in sistemi meccatronici";"Tecnico Superiore in sistemi meccatronici";31/10/2014 00:00:00;30/9/2016 00:00:00;184720,62;0,50;"008035";"008";"116";"31/10/2022"
"FSE";"2014-2917/RER";"E46D14000410005";"91361180374";"FONDAZIONE Istituto Tecnico Superiore Meccanica, Meccatronica, Motoristica, Packaging";"Tecnico Superiore dei materiali per la progettazione e produzione meccanica";"Tecnico Superiore dei materiali per la progettazione e produzione meccanica";30/10/2014 00:00:00;30/9/2016 00:00:00;186459,00;0,50;"008036";"008";"116";"31/10/2022"
"FSE";"2014-2918/RER";"E46D14000400005";"91361180374";"FONDAZIONE Istituto Tecnico Superiore Meccanica, Meccatronica, Motoristica, Packaging";"Tecnico Superiore del veicolo con specializzazione in motori endotermici, ibridi ed elettrici";"Tecnico Superiore del veicolo con specializzazione in motori endotermici, ibridi ed elettrici";30/10/2014 00:00:00;30/9/2016 00:00:00;188328,10;0,50;"008036";"008";"116";"31/10/2022"
"FSE";"2014-2919/RER";"E46D14000420005";"91131400409";"FONDAZIONE  ISTITUTO TECNICO SUPERIORE TECNOLOGIE INNOVATIVE PER I BENI E LE ATTIVITA' CULTURALI - TURISMO - TURISMO E BENESSERE";"TECNICO SUPERIORE PER LA GESTIONE DI STRUTTURE TURISTICO-RICETTIVE";"TECNICO SUPERIORE PER LA GESTIONE DI STRUTTURE TURISTICO-RICETTIVE";31/10/2014 00:00:00;30/10/2016 00:00:00;182037,36;0,50;"008099";"008";"116";"31/10/2022"
"FSE";"2014-2920/RER";"E56D14000230005";"91131400409";"FONDAZIONE  ISTITUTO TECNICO SUPERIORE TECNOLOGIE INNOVATIVE PER I BENI E LE ATTIVITA' CULTURALI - TURISMO - TURISMO E BENESSERE";"TECNICO SUPERIORE PER LA PROMOZIONE E IL MARKETING DELLE
FILIERE TURISTICHE E DELLE ATTIVIT� CULTURALI
";"TECNICO SUPERIORE PER LA PROMOZIONE E IL MARKETING DELLE
FILIERE TURISTICHE E DELLE ATTIVIT� CULTURALI
";31/10/2014 00:00:00;30/10/2016 00:00:00;179192,39;0,50;"008037";"008";"116";"31/10/2022"
"FSE";"2014-2921/RER";"E26D14000370005";"92163480343";"FONDAZIONE Istituto Tecnico Superiore - Area Tecnologica Nuove Tecnologie per il Made in Italy - Ambito Settoriale Regionale Agroalimentare";"Tecnico Superiore responsabile delle produzioni e delle trasformazioni agrarie, agro-alimentari e agro-industriali

";"Tecnico Superiore responsabile delle produzioni e delle trasformazioni agrarie, agro-alimentari e agro-industriali

";28/10/2014 00:00:00;27/10/2016 00:00:00;176731,91;0,50;"008034";"008";"116";"31/10/2022"
"FSE";"2014-2924/RER";"E66D14000380005";"01832340382";"FONDAZIONE ISTITUTO TECNICO SUPERIORE, TERRITORIO, ENERGIA  COSTRUIRE ";"Tecnico superiore per il risparmio energetico nell'edilizia sostenibile e per la qualificazione e riqualificazione del patrimonio edilizio";"Tecnico superiore per il risparmio energetico nell'edilizia sostenibile e per la qualificazione e riqualificazione del patrimonio edilizio";10/11/2014 00:00:00;15/7/2016 00:00:00;186459,00;0,50;"008038";"008";"116";"31/10/2022"
"FSE";"2014-2925/RER";"E76D14000200005";"01832340382";"FONDAZIONE ISTITUTO TECNICO SUPERIORE, TERRITORIO, ENERGIA  COSTRUIRE ";"TECNICO SUPERIORE PER L�APPROVIGIONAMENTO ENERGETICO E LA COSTRUZIONE DI IMPIANTI ";"TECNICO SUPERIORE PER L�APPROVIGIONAMENTO ENERGETICO E LA COSTRUZIONE DI IMPIANTI ";3/11/2014 00:00:00;12/7/2016 00:00:00;186459,00;0,50;"008039";"008";"116";"31/10/2022"
"FSE";"2014-2926/RER";"E16D14000410005";"91100460335";"FONDAZIONE  ITS PER LA MOBILITA' SOSTENIBILE - LOGISTICA E MOBILITA' DELLE PERSONE E DELLE MERCI";"TECNICO SUPERIORE PER L'INFOMOBILITA' E LE INFRASTRUTTURE LOGISTICHE";"TECNICO SUPERIORE PER L'INFOMOBILITA' E LE INFRASTRUTTURE LOGISTICHE";22/10/2014 00:00:00;21/12/2016 00:00:00;150162,46;0,50;"008033";"008";"116";"31/10/2022"
"FSE";"2015-1/SE";"E41E15000070009";"01399050283";"LIVE SRL";"Determina a contrarre per l'acquisizione di servizi per il Comitato di Sorveglianza del POR-FSE 2014-2020";"Determina a contrarre per l'acquisizione di servizi per il Comitato di Sorveglianza del POR-FSE 2014-2020";30/7/2015 00:00:00;3/8/2015 00:00:00;415,41;0,50;"008037";"008";"121";"31/10/2022"
"FSE";"2015-2/SE";"E41E15000070009";"01668161209";"LABORATORIO DEI SAPORI S.R.L.";"Determina a contrarre per l'acquisizione di servizi per il Comitato di Sorveglianza del POR-FSE 2014-2020";"Determina a contrarre per l'acquisizione di servizi per il Comitato di Sorveglianza del POR-FSE 2014-2020";5/6/2015 00:00:00;5/6/2015 00:00:00;2007,50;0,50;"008037";"008";"121";"31/10/2022"
"FSE";"2015-3/SE";"E32F15000230009";"00569890379";"Ervet - Emilia-Romagna Valorizzazione economica territorio SpA";"Approvazione del programma annuale Ervet 2015 ai sensi della L.R N. 25/93 e ss.mm.ii";"Approvazione del programma annuale Ervet 2015 ai sensi della L.R N. 25/93 e ss.mm.ii";1/9/2015 00:00:00;31/12/2016 00:00:00;250000,00;0,50;"008037";"008";"121";"31/10/2022"
"FSE";"2015-3488/RER";"E69J15000720002";"01388830331";"Centro di Formazione, Sperimentazione e Innovazione Vittorio Tadini  S. C. a R. L.";"Progetti integrati a sostegno dell'inserimento lavorativo di persone in condizione di svantaggio nel settore della cura e manutenzione del verde";"Progetti integrati a sostegno dell'inserimento lavorativo di persone in condizione di svantaggio nel settore della cura e manutenzione del verde, attivit� rivolta a 12 persone costituita da:";3/11/2015 00:00:00;6/7/2016 00:00:00;50550,90;0,50;"008033";"008";"109";"31/10/2022"
"FSE";"2015-3489/RER";"E39J15001070002";"03121711208";"Oficina Impresa Sociale Srl";"Interventi di Formazione e Accompagnamento al lavoro per l'inclusione sociale";"Interventi di Formazione e Accompagnamento al lavoro per l'inclusione sociale, attivit� rivolta a 36 persone costituita da:";13/11/2015 00:00:00;23/12/2016 00:00:00;224123,20;0,50;"008037";"008";"109";"31/10/2022"
"FSE";"2015-3490/RER";"E39J15001080002";"80007510375";"Istituto per l'Istruzione Professionale dei Lavoratori Edili della Provincia di Bologna";"Idee Verdi da Condi-Vivere. VIII Edizione";"Idee Verdi da Condi-Vivere. VIII Edizione, attivit� rivolta a 12 persone costituita da:";8/9/2015 00:00:00;31/5/2016 00:00:00;87498,10;0,50;"008037";"008";"109";"31/10/2022"
"FSE";"2015-3491/RER";"E39J15000740002";"92028510375";"C.I.O.F.S. - F.P. EMILIA ROMAGNA";"PERCORSO INTEGRATO DI FORMAZIONE PER IL LAVORO - L. 381/1991- Psichiatria (Parma)";"PERCORSO INTEGRATO DI FORMAZIONE PER IL LAVORO - L. 381/1991- Psichiatria (Parma), attivit� rivolta a 20 persone costituita da:";1/3/2016 00:00:00;29/12/2016 00:00:00;59388,80;0,50;"008034";"008";"109";"31/10/2022"
"FSE";"2015-3492/RER";"E39J15001090002";"92028510375";"C.I.O.F.S. - F.P. EMILIA ROMAGNA";"PERCORSO INTEGRATO NELL'AMBITO DELLA RISTORAZIONE - L. 381/1991- Psichiatria (Parma-Fidenza)";"PERCORSO INTEGRATO NELL'AMBITO DELLA RISTORAZIONE - L. 381/1991- Psichiatria (Parma-Fidenza), attivit� rivolta a 12 persone costituita da:";1/3/2016 00:00:00;31/12/2016 00:00:00;47727,15;0,50;"008034";"008";"109";"31/10/2022"
"FSE";"2015-3494/RER";"E39J15002340002";"01202580377";"CENTRO STUDI ANALISI DI PSICOLOGIA E SOCIOLOGIA APPLICATE - Societ� Cooperativa Sociale C.S.A.P.S.A.";"Percorsi di orientamento, formazione situata e transizione al lavoro di persone svantaggiate nel territorio della Citt� Metropolitana di Bologna";"Percorsi di orientamento, formazione situata e transizione al lavoro di persone svantaggiate nel territorio della Citt� Metropolitana di Bologna, attivit� rivolta a 390 persone costituita da:";3/11/2015 00:00:00;30/12/2016 00:00:00;1945561,00;0,50;"008037";"008";"109";"31/10/2022"
"FSE";"2015-3495/RER";"E19J15000710002";"02604400404";"TECHNE Societ� consortile a responsabilit� limitata";"Interventi mirati volti a favorire il passaggio dalla marginalit� all'inserimento lavorativo";"Interventi mirati volti a favorire il passaggio dalla marginalit� all'inserimento lavorativo, attivit� rivolta a 105 persone costituita da:";13/11/2015 00:00:00;31/12/2017 00:00:00;458332,34;0,50;"008040";"008";"109";"31/10/2022"
"FSE";"2015-3496/RER";"E19J15000720002";"02604400404";"TECHNE Societ� consortile a responsabilit� limitata";"Percorso formativo per Operatore del punto vendita";"Percorso formativo per Operatore del punto vendita, attivit� rivolta a 15 persone costituita da:";9/11/2015 00:00:00;30/6/2017 00:00:00;99847,14;0,50;"008040";"008";"109";"31/10/2022"
"FSE";"2015-3497/RER";"E39J15000750002";"01229920333";"TUTOR Societ� Consortile a responsabilit� limitata";"Piano di intervento per l'inclusione socio-lavorativa di persone in svantaggio sociale - area urbana Piacenza";"Piano di intervento per l'inclusione socio-lavorativa di persone in svantaggio sociale - area urbana Piacenza, attivit� rivolta a 70 persone costituita da:";3/11/2015 00:00:00;30/4/2017 00:00:00;264913,25;0,50;"008033";"008";"109";"31/10/2022"
"FSE";"2015-3498/RER";"E39J15001100002";"01229920333";"TUTOR Societ� Consortile a responsabilit� limitata";"Azioni formative nel settore ALIMENTARE � area urbana Piacenza";"Azioni formative nel settore ALIMENTARE � area urbana Piacenza, attivit� rivolta a 12 persone costituita da:";3/11/2015 00:00:00;23/12/2016 00:00:00;48544,00;0,50;"008033";"008";"109";"31/10/2022"
"FSE";"2015-3500/RER";"E39J15001110002";"04237330370";"DINAMICA soc.cons.r.l";"POTATORE INNESTATORE FRUTTIVITICOLO";"POTATORE INNESTATORE FRUTTIVITICOLO, attivit� rivolta a 15 persone costituita da:";4/11/2015 00:00:00;21/4/2016 00:00:00;29600,00;0,50;"008036";"008";"109";"31/10/2022"
"FSE";"2015-3501/RER";"E39J15001120002";"04237330370";"DINAMICA soc.cons.r.l";"PERCORSI PROFESSIONALI IN AGRICOLTURA";"PERCORSI PROFESSIONALI IN AGRICOLTURA, attivit� rivolta a 15 persone costituita da:";3/11/2015 00:00:00;29/4/2016 00:00:00;28124,00;0,50;"008036";"008";"109";"31/10/2022"
"FSE";"2015-3502/RER";"E99J15000660002";"02020330342";"FORMA FUTURO Soc.Cons. r.l.";"AZIONE 1 - AREA URBANA PARMA: DALL'ACCOMPAGNAMENTO INDIVIDUALE AL LAVORO";"AZIONE 1 - AREA URBANA PARMA: DALL'ACCOMPAGNAMENTO INDIVIDUALE AL LAVORO, attivit� rivolta a 50 persone costituita da:";16/11/2015 00:00:00;31/5/2017 00:00:00;236782,17;0,50;"008034";"008";"109";"31/10/2022"
"FSE";"2015-3503/RER";"E99J15000670002";"02020330342";"FORMA FUTURO Soc.Cons. r.l.";"AZIONE 1 - AREA MONTAGNA OCCIDENTALE: DALL'ACCOMPAGNAMENTO INDIVIDUALE AL LAVORO";"AZIONE 1 - AREA MONTAGNA OCCIDENTALE: DALL'ACCOMPAGNAMENTO INDIVIDUALE AL LAVORO, attivit� rivolta a 16 persone costituita da:";16/11/2015 00:00:00;26/3/2017 00:00:00;54290,95;0,50;"008034";"008";"109";"31/10/2022"
"FSE";"2015-3505/RER";"E99J15000750002";"02020330342";"FORMA FUTURO Soc.Cons. r.l.";"AZIONE 2 - AREA URBANA - COMPETENZE PER ADDETTO ALLE VENDITE";"AZIONE 2 - AREA URBANA - COMPETENZE PER ADDETTO ALLE VENDITE, attivit� rivolta a 12 persone costituita da:";11/11/2015 00:00:00;6/5/2016 00:00:00;43082,70;0,50;"008034";"008";"109";"31/10/2022"
"FSE";"2015-3507/RER";"E99J15000760002";"02020330342";"FORMA FUTURO Soc.Cons. r.l.";"AZIONE 2 - AREA URBANA - COMPETENZE PER OPERATORE DEL VERDE";"AZIONE 2 - AREA URBANA - COMPETENZE PER OPERATORE DEL VERDE, attivit� rivolta a 12 persone costituita da:";11/11/2015 00:00:00;11/5/2016 00:00:00;41683,65;0,50;"008034";"008";"109";"31/10/2022"
"FSE";"2015-3509/RER";"E69J15000570002";"02338400407";"Fondazione En.A.I.P. Forl� - Cesena";"Azioni Integrate per il Lavoro � Area Urbana di Cesena";"Azioni Integrate per il Lavoro � Area Urbana di Cesena, attivit� rivolta a 76 persone costituita da:";10/11/2015 00:00:00;15/11/2017 00:00:00;349766,25;0,50;"008040";"008";"109";"31/10/2022"
"FSE";"2015-3510/RER";"E69J15000730002";"02338400407";"Fondazione En.A.I.P. Forl� - Cesena";"Formazione professionalizzante per il lavoro nel territorio cesenate";"Formazione professionalizzante per il lavoro nel territorio cesenate, attivit� rivolta a 24 persone costituita da:";4/11/2015 00:00:00;20/4/2017 00:00:00;183200,65;0,50;"008040";"008";"109";"31/10/2022"
"FSE";"2015-3511/RER";"E99J15000680002";"01928210341";"En.A.I.P. Parma";"Servizi di sostegno verso il lavoro";"Servizi di sostegno verso il lavoro, attivit� rivolta a 36 persone costituita da:";16/11/2015 00:00:00;31/1/2017 00:00:00;126198,86;0,50;"008034";"008";"109";"31/10/2022"
"FSE";"2015-3512/RER";"E99J15001030002";"01928210341";"En.A.I.P. Parma";"Dall'accoglienza all'occupazione: percorsi di formazione e accompagnamento al lavoro";"Dall'accoglienza all'occupazione: percorsi di formazione e accompagnamento al lavoro, attivit� rivolta a 30 persone costituita da:";16/11/2015 00:00:00;29/5/2017 00:00:00;111730,67;0,50;"008034";"008";"109";"31/10/2022"
"FSE";"2015-3514/RER";"E99J15000690002";"02483780363";"FORMODENA - FORMAZIONE PROFESSIONALE PER I TERRITORI MODENESI SOC.CONS.A.R.L.";"Opportunit� formative per l'inserimento lavorativo di persone in condizioni di svantaggio - Area urbana";"Opportunit� formative per l'inserimento lavorativo di persone in condizioni di svantaggio - Area urbana, attivit� rivolta a 38 persone costituita da:";26/10/2015 00:00:00;9/5/2017 00:00:00;151394,00;0,50;"008036";"008";"109";"31/10/2022"
"FSE";"2015-3515/RER";"E99J15000770002";"02483780363";"FORMODENA - FORMAZIONE PROFESSIONALE PER I TERRITORI MODENESI SOC.CONS.A.R.L.";"ABILI e COMPETENTI. Percorsi di formazione per l'inclusione lavorativa in area sisma.";"ABILI e COMPETENTI. Percorsi di formazione per l'inclusione lavorativa in area sisma., attivit� rivolta a 75 persone costituita da:";26/10/2015 00:00:00;28/6/2017 00:00:00;370548,93;0,50;"008035:::008036:::008037";"008";"109";"31/10/2022"
"FSE";"2015-3516/RER";"E99J15000780002";"02483780363";"FORMODENA - FORMAZIONE PROFESSIONALE PER I TERRITORI MODENESI SOC.CONS.A.R.L.";"ABILITA� E COMPETENZE PER PERSONE IN CONDIZIONE DI SVANTAGGIO  - AREA URBANA";"ABILITA� E COMPETENZE PER PERSONE IN CONDIZIONE DI SVANTAGGIO  - AREA URBANA, attivit� rivolta a 24 persone costituita da:";21/10/2015 00:00:00;12/12/2016 00:00:00;102103,60;0,50;"008036";"008";"109";"31/10/2022"
"FSE";"2015-3517/RER";"E99J15000700002";"02483780363";"FORMODENA - FORMAZIONE PROFESSIONALE PER I TERRITORI MODENESI SOC.CONS.A.R.L.";"Opportunit� formative per l'inserimento lavorativo di persone in condizione di svantaggio - Area interna Montagna Centrale";"Opportunit� formative per l'inserimento lavorativo di persone in condizione di svantaggio - Area interna Montagna Centrale, attivit� rivolta a 18 persone costituita da:";21/10/2015 00:00:00;10/4/2017 00:00:00;87775,50;0,50;"008036";"008";"109";"31/10/2022"
"FSE";"2015-3518/RER";"E69J15000590002";"80009910391";"Istituto Scuola Provinciale Edili - C.P.T. Ravenna";"COSTRUIRE MURI PER ABBATTARE BARRIERE - Percorso per Operatori edili presso la comunit� terapeutica Fondazione Nuovo Villaggio del Fanciullo Celso ed Anna Frascali";"COSTRUIRE MURI PER ABBATTARE BARRIERE - Percorso per Operatori edili presso la comunit� terapeutica Fondazione Nuovo Villaggio del Fanciullo Celso ed Anna Frascali, attivit� rivolta a 12 persone costituita da:";29/9/2015 00:00:00;9/3/2016 00:00:00;41762,00;0,50;"008039";"008";"109";"31/10/2022"
"FSE";"2015-3519/RER";"E39J15002450002";"04164640379";"CEFAL Emilia Romagna Societ� Cooperativa";"Chance - Rete per l'inclusione                                                                                                                                                                                                                                 ";"Chance - Rete per l'inclusione, attivit� rivolta a 142 persone costituita da:";26/10/2015 00:00:00;30/4/2017 00:00:00;489142,46;0,50;"008033:::008034:::008035:::008036:::008037:::008038:::008039:::008040:::008099";"008";"109";"31/10/2022"
"FSE";"2015-3520/RER";"E89J15000540002";"01955980352";"FONDAZIONE ENAIP DON GIANFRANCO MAGNANI";"CRESCITA, LAVORO E COESIONE NELLA MONTAGNA REGGIANA - AZIONE 1";"CRESCITA, LAVORO E COESIONE NELLA MONTAGNA REGGIANA - AZIONE 1, attivit� rivolta a 20 persone costituita da:";16/11/2015 00:00:00;10/11/2016 00:00:00;97745,50;0,50;"008035";"008";"109";"31/10/2022"
"FSE";"2015-3521/RER";"E89J15001010002";"01955980352";"FONDAZIONE ENAIP DON GIANFRANCO MAGNANI";"CRESCITA E LAVORO: PERSONE E CITTA' - AZIONE 1";"CRESCITA E LAVORO: PERSONE E CITTA' - AZIONE 1, attivit� rivolta a 35 persone costituita da:";13/11/2015 00:00:00;23/12/2016 00:00:00;185694,00;0,50;"008035";"008";"109";"31/10/2022"
"FSE";"2015-3522/RER";"E89J15001040002";"01955980352";"FONDAZIONE ENAIP DON GIANFRANCO MAGNANI";"CRESCITA E LAVORO: PERSONE E CITTA' - AZIONE 2";"CRESCITA E LAVORO: PERSONE E CITTA' - AZIONE 2, attivit� rivolta a 28 persone costituita da:";15/1/2016 00:00:00;20/10/2016 00:00:00;168746,87;0,50;"008035";"008";"109";"31/10/2022"
"FSE";"2015-3523/RER";"E89J15001020002";"01955980352";"FONDAZIONE ENAIP DON GIANFRANCO MAGNANI";"FORMAZIONE PER LE PERSONE, IL LAVORO E IL TERRITORIO NEL DISTRETTO DI CORREGGIO - AZIONE 1";"FORMAZIONE PER LE PERSONE, IL LAVORO E IL TERRITORIO NEL DISTRETTO DI CORREGGIO - AZIONE 1, attivit� rivolta a 15 persone costituita da:";16/11/2015 00:00:00;24/11/2016 00:00:00;83579,75;0,50;"008035";"008";"109";"31/10/2022"
"FSE";"2015-3524/RER";"E89J15000680002";"01955980352";"FONDAZIONE ENAIP DON GIANFRANCO MAGNANI";"FORMAZIONE PER LE PERSONE, IL LAVORO E IL TERRITORIO NEL DISTRETTO DI CORREGGIO - AZIONE 2";"FORMAZIONE PER LE PERSONE, IL LAVORO E IL TERRITORIO NEL DISTRETTO DI CORREGGIO - AZIONE 2, attivit� rivolta a 12 persone costituita da:";16/11/2015 00:00:00;19/12/2016 00:00:00;51070,06;0,50;"008035";"008";"109";"31/10/2022"
"FSE";"2015-3525/RER";"E89J15000550002";"01955980352";"FONDAZIONE ENAIP DON GIANFRANCO MAGNANI";"LAVORO E CITTADINANZA ATTIVA NELL'UNIONE TRESINARO SECCHIA - AZIONE 1";"LAVORO E CITTADINANZA ATTIVA NELL'UNIONE TRESINARO SECCHIA - AZIONE 1, attivit� rivolta a 12 persone costituita da:";16/11/2015 00:00:00;29/9/2016 00:00:00;64829,00;0,50;"008035";"008";"109";"31/10/2022"
"FSE";"2015-3526/RER";"E89J15000690002";"01955980352";"FONDAZIONE ENAIP DON GIANFRANCO MAGNANI";"LAVORO E CITTADINANZA ATTIVA NELL'UNIONE TRESINARO SECCHIA - AZIONE 2";"LAVORO E CITTADINANZA ATTIVA NELL'UNIONE TRESINARO SECCHIA - AZIONE 2, attivit� rivolta a 12 persone costituita da:";15/1/2016 00:00:00;28/10/2016 00:00:00;98058,49;0,50;"008035";"008";"109";"31/10/2022"
"FSE";"2015-3527/RER";"E89J15000700002";"01955980352";"FONDAZIONE ENAIP DON GIANFRANCO MAGNANI";"CRESCITA, LAVORO E COESIONE NELLA MONTAGNA REGGIANA - AZIONE 2";"CRESCITA, LAVORO E COESIONE NELLA MONTAGNA REGGIANA - AZIONE 2, attivit� rivolta a 12 persone costituita da:";15/1/2016 00:00:00;30/9/2016 00:00:00;103167,64;0,50;"008035";"008";"109";"31/10/2022"
"FSE";"2015-3528/RER";"E69J15000600002";"93061010380";"FONDAZIONE SAN GIUSEPPE CFP C.E.S.T.A.";"Promozione di percorsi formativi nell�area meccanica: tradizione (antica arte del ferro battuto) e valorizzazione delle imprese del territorio (operatore meccanico)�  - area interna Delta del Po";"Promozione di percorsi formativi nell�area meccanica: tradizione (antica arte del ferro battuto) e valorizzazione delle imprese del territorio (operatore meccanico)�  - area interna Delta del Po, attivit� rivolta a 24 persone costituita da:";26/10/2015 00:00:00;2/12/2016 00:00:00;149956,54;0,50;"008038";"008";"109";"31/10/2022"
"FSE";"2015-3529/RER";"E69J15000580002";"93061010380";"FONDAZIONE SAN GIUSEPPE CFP C.E.S.T.A.";"Realizzazione di percorsi individualizzati: accompagnamento individuale, tirocini e accompagnamento al lavoro";"Realizzazione di percorsi individualizzati: accompagnamento individuale, tirocini e accompagnamento al lavoro, attivit� rivolta a 30 persone costituita da:";3/11/2015 00:00:00;23/11/2016 00:00:00;117532,00;0,50;"008038";"008";"109";"31/10/2022"
"FSE";"2015-3530/RER";"E69J15000610002";"93061010380";"FONDAZIONE SAN GIUSEPPE CFP C.E.S.T.A.";"Valorizzazione dell�area interna DELTA del PO attraverso la realizzazione di progetti di ""Operatore ambientale"" per il conseguimento di un certificato di competenze relativo alla qualifica di Operatore del verde";"Valorizzazione dell�area interna DELTA del PO attraverso la realizzazione di progetti di Operatore ambientale per il conseguimento di un certificato di competenze relativo alla qualifica di Operatore del verde, attivit� rivolta a 12 persone costituita da:";27/10/2015 00:00:00;20/10/2016 00:00:00;51968,00;0,50;"008038";"008";"109";"31/10/2022"
"FSE";"2015-3531/RER";"E69J15000620002";"93061010380";"FONDAZIONE SAN GIUSEPPE CFP C.E.S.T.A.";"Valorizzazione dell�area interna DELTA del PO attraverso la realizzazione di progetti per il conseguimento di Unit� di Competenza della qualifica di Operatore della pesca e dell�acquacoltura";"Valorizzazione dell�area interna DELTA del PO attraverso la realizzazione di progetti per il conseguimento di Unit� di Competenza della qualifica di Operatore della pesca e dell�acquacoltura, attivit� rivolta a 12 persone costituita da:";4/11/2015 00:00:00;25/10/2016 00:00:00;51174,40;0,50;"008038";"008";"109";"31/10/2022"
"FSE";"2015-3532/RER";"E39J15001130002";"80061110377";"IAL Innovazione Apprendimento Lavoro Emilia Romagna S.r.l. Impresa Sociale";"Parma: la formazione per sviluppare una rete sociale";"Parma: la formazione per sviluppare una rete sociale, attivit� rivolta a 24 persone costituita da:";19/10/2015 00:00:00;19/7/2016 00:00:00;97015,70;0,50;"008034";"008";"109";"31/10/2022"
"FSE";"2015-3533/RER";"E39J15000760002";"80061110377";"IAL Innovazione Apprendimento Lavoro Emilia Romagna S.r.l. Impresa Sociale";"Percorsi di Supporto all'inserimento lavorativo nell'Area della Ristorazione";"Percorsi di Supporto all'inserimento lavorativo nell'Area della Ristorazione, attivit� rivolta a 12 persone costituita da:";5/11/2015 00:00:00;30/9/2016 00:00:00;43035,50;0,50;"008040";"008";"109";"31/10/2022"
"FSE";"2015-3534/RER";"E39J15001140002";"80061110377";"IAL Innovazione Apprendimento Lavoro Emilia Romagna S.r.l. Impresa Sociale";"Piano d'Intervento per l'inclusione sociale e lavorativa nel territorio di Cesena";"Piano d'Intervento per l'inclusione sociale e lavorativa nel territorio di Cesena, attivit� rivolta a 24 persone costituita da:";29/10/2015 00:00:00;30/6/2016 00:00:00;146027,65;0,50;"008040";"008";"109";"31/10/2022"
"FSE";"2015-3535/RER";"E39J15002390002";"80061110377";"IAL Innovazione Apprendimento Lavoro Emilia Romagna S.r.l. Impresa Sociale";"Piano d'Intervento per l'inclusione sociale e lavorativa nel territorio di Forl�";"Piano d'Intervento per l'inclusione sociale e lavorativa nel territorio di Forl�, attivit� rivolta a 27 persone costituita da:";3/11/2015 00:00:00;21/2/2017 00:00:00;108361,90;0,50;"008040";"008";"109";"31/10/2022"
"FSE";"2015-3536/RER";"E39J15002400002";"80061110377";"IAL Innovazione Apprendimento Lavoro Emilia Romagna S.r.l. Impresa Sociale";"Operatore della Ristorazione-Interventi per l'Inclusione socio-lavorativa del territorio Imolese";"Operatore della Ristorazione-Interventi per l'Inclusione socio-lavorativa del territorio Imolese, attivit� rivolta a 12 persone costituita da:";26/10/2015 00:00:00;26/5/2016 00:00:00;98567,60;0,50;"008037";"008";"109";"31/10/2022"
"FSE";"2015-3537/RER";"E39J15001150002";"80061110377";"IAL Innovazione Apprendimento Lavoro Emilia Romagna S.r.l. Impresa Sociale";"Percorsi verso la ristorazione - Piano di intervento per l'inclusione socio-lavorativa nel territorio di Rimini � Azione 2";"Percorsi verso la ristorazione - Piano di intervento per l'inclusione socio-lavorativa nel territorio di Rimini � Azione 2, attivit� rivolta a 36 persone costituita da:";21/10/2015 00:00:00;6/5/2016 00:00:00;165264,20;0,50;"008099";"008";"109";"31/10/2022"
"FSE";"2015-3538/RER";"E39J15000770002";"80061110377";"IAL Innovazione Apprendimento Lavoro Emilia Romagna S.r.l. Impresa Sociale";"Percorsi di accompagnamento al lavoro per una inclusione attiva sull'area urbana di Modena";"Percorsi di accompagnamento al lavoro per una inclusione attiva sull'area urbana di Modena, attivit� rivolta a 60 persone costituita da:";27/10/2015 00:00:00;30/12/2016 00:00:00;182995,90;0,50;"008036";"008";"109";"31/10/2022"
"FSE";"2015-3539/RER";"E39J15000780002";"80061110377";"IAL Innovazione Apprendimento Lavoro Emilia Romagna S.r.l. Impresa Sociale";"Accompagnare, Orientare e Formare le competenze professionali per l'inserimento lavorativo in azienda nell'Area Urbana di Bologna";"Accompagnare, Orientare e Formare le competenze professionali per l'inserimento lavorativo in azienda nell'Area Urbana di Bologna, attivit� rivolta a 16 persone costituita da:";16/11/2015 00:00:00;21/12/2016 00:00:00;71845,00;0,50;"008037";"008";"109";"31/10/2022"
"FSE";"2015-3540/RER";"E39J15001160002";"80061110377";"IAL Innovazione Apprendimento Lavoro Emilia Romagna S.r.l. Impresa Sociale";"Pane e companatico - Piano di intervento per l'inclusione socio-lavorativa nel territorio di Rimini � Azione 2";"Pane e companatico - Piano di intervento per l'inclusione socio-lavorativa nel territorio di Rimini � Azione 2, attivit� rivolta a 12 persone costituita da:";10/2/2016 00:00:00;1/6/2016 00:00:00;52508,70;0,50;"008099";"008";"109";"31/10/2022"
"FSE";"2015-3541/RER";"E39J15002350002";"80061110377";"IAL Innovazione Apprendimento Lavoro Emilia Romagna S.r.l. Impresa Sociale";"Parma: la formazione ed i tirocini per sviluppare una rete sociale";"Parma: la formazione ed i tirocini per sviluppare una rete sociale, attivit� rivolta a 12 persone costituita da:";19/10/2015 00:00:00;24/2/2017 00:00:00;49202,50;0,50;"008034";"008";"109";"31/10/2022"
"FSE";"2015-3542/RER";"E39J15002410002";"80061110377";"IAL Innovazione Apprendimento Lavoro Emilia Romagna S.r.l. Impresa Sociale";"Piacenza: la formazione per sviluppare una rete sociale";"Piacenza: la formazione per sviluppare una rete sociale, attivit� rivolta a 24 persone costituita da:";16/11/2015 00:00:00;26/10/2016 00:00:00;189762,60;0,50;"008033";"008";"109";"31/10/2022"
"FSE";"2015-3543/RER";"E39J15000790002";"80061110377";"IAL Innovazione Apprendimento Lavoro Emilia Romagna S.r.l. Impresa Sociale";"Percorsi per favorire l�inserimento lavorativo e l�occupazione nel territorio di  Ferrara";"Percorsi per favorire l�inserimento lavorativo e l�occupazione nel territorio di  Ferrara, attivit� rivolta a 8 persone costituita da:";12/10/2015 00:00:00;16/9/2016 00:00:00;34095,50;0,50;"008038";"008";"109";"31/10/2022"
"FSE";"2015-3544/RER";"E39J15001170002";"80061110377";"IAL Innovazione Apprendimento Lavoro Emilia Romagna S.r.l. Impresa Sociale";"Percorsi per l�integrazione nel mondo del lavoro nel territorio di Ferrara";"Percorsi per l�integrazione nel mondo del lavoro nel territorio di Ferrara, attivit� rivolta a 24 persone costituita da:";9/10/2015 00:00:00;26/7/2016 00:00:00;145375,25;0,50;"008038";"008";"109";"31/10/2022"
"FSE";"2015-3545/RER";"E39J15000800002";"80061110377";"IAL Innovazione Apprendimento Lavoro Emilia Romagna S.r.l. Impresa Sociale";"Impara e lavora nella ristorazione - Piano di intervento per l'inclusione socio-lavorativa nel territorio di Rimini � Azione 1";"Impara e lavora nella ristorazione - Piano di intervento per l'inclusione socio-lavorativa nel territorio di Rimini � Azione 1, attivit� rivolta a 28 persone costituita da:";21/10/2015 00:00:00;30/4/2017 00:00:00;100369,10;0,50;"008099";"008";"109";"31/10/2022"
"FSE";"2015-3546/RER";"E39J15000810002";"80061110377";"IAL Innovazione Apprendimento Lavoro Emilia Romagna S.r.l. Impresa Sociale";"Percorsi di accompagnamento al lavoro per una inclusione attiva sull�area urbana di Reggio Emilia";"Percorsi di accompagnamento al lavoro per una inclusione attiva sull�area urbana di Reggio Emilia, attivit� rivolta a 20 persone costituita da:";11/11/2015 00:00:00;31/12/2016 00:00:00;62694,90;0,50;"008035";"008";"109";"31/10/2022"
"FSE";"2015-3547/RER";"E39J15001180002";"80061110377";"IAL Innovazione Apprendimento Lavoro Emilia Romagna S.r.l. Impresa Sociale";"Piano di intervento per l�inclusione sociale e lavorativa nell�area urbana di Reggio Emilia � Azione 2";"Piano di intervento per l�inclusione sociale e lavorativa nell�area urbana di Reggio Emilia � Azione 2, attivit� rivolta a 12 persone costituita da:";11/11/2015 00:00:00;25/7/2016 00:00:00;47032,10;0,50;"008035";"008";"109";"31/10/2022"
"FSE";"2015-3548/RER";"E39J15000820002";"80061110377";"IAL Innovazione Apprendimento Lavoro Emilia Romagna S.r.l. Impresa Sociale";"Piano di intervento per l'inclusione sociale e lavorativa nel territorio di Ravenna - Azione 1";"Piano di intervento per l'inclusione sociale e lavorativa nel territorio di Ravenna - Azione 1, attivit� rivolta a 40 persone costituita da:";5/10/2015 00:00:00;22/1/2018 00:00:00;158818,30;0,50;"008039";"008";"109";"31/10/2022"
"FSE";"2015-3549/RER";"E39J15001190002";"80061110377";"IAL Innovazione Apprendimento Lavoro Emilia Romagna S.r.l. Impresa Sociale";"Piano di intervento per l'inclusione sociale e lavorativa nel territorio di Ravenna - Azione 2";"Piano di intervento per l'inclusione sociale e lavorativa nel territorio di Ravenna - Azione 2, attivit� rivolta a 24 persone costituita da:";30/10/2015 00:00:00;18/11/2016 00:00:00;97766,45;0,50;"008039";"008";"109";"31/10/2022"
"FSE";"2015-3550/RER";"E39J15001200002";"80061110377";"IAL Innovazione Apprendimento Lavoro Emilia Romagna S.r.l. Impresa Sociale";"Piano di intervento per l�inclusione sociale e lavorativa nel territorio di Modena � Azione 2";"Piano di intervento per l�inclusione sociale e lavorativa nel territorio di Modena � Azione 2, attivit� rivolta a 36 persone costituita da:";26/10/2015 00:00:00;1/8/2016 00:00:00;179214,03;0,50;"008036";"008";"109";"31/10/2022"
"FSE";"2015-3660/RER";"E39J15000830002";"80090410376";"Associazione Emiliano - Romagnola di centri autonomi di formazione professionale - A.E.C.A";"Percorsi personalizzati per l'occupazione delle persone in carico ai servizi nell'area della montagna centrale-Azione 1 (AECA-MO-Edseg-Ciofs fp ER Bibbiano)";"Percorsi personalizzati per l'occupazione delle persone in carico ai servizi nell'area della montagna centrale-Azione 1 (AECA-MO-Edseg-Ciofs fp ER Bibbiano), attivit� rivolta a 40 persone costituita da:";20/10/2015 00:00:00;31/5/2017 00:00:00;152014,57;0,50;"008035:::008036";"008";"109";"31/10/2022"
"FSE";"2015-3661/RER";"E39J15000840002";"80090410376";"Associazione Emiliano - Romagnola di centri autonomi di formazione professionale - A.E.C.A";"PERCORSI PERSONALIZZATI DI INSERIMENTO LAVORATIVO per soggetti in carico ai servizi  �AZ 1 � Area Urbana Reggio Emilia (CIOFS-FP)";"PERCORSI PERSONALIZZATI DI INSERIMENTO LAVORATIVO per soggetti in carico ai servizi  �AZ 1 � Area Urbana Reggio Emilia (CIOFS-FP), attivit� rivolta a 24 persone costituita da:";12/11/2015 00:00:00;31/5/2017 00:00:00;93848,48;0,50;"008035";"008";"109";"31/10/2022"
"FSE";"2015-3662/RER";"E39J15002420002";"80090410376";"Associazione Emiliano - Romagnola di centri autonomi di formazione professionale - A.E.C.A";"Operare nell'ambito della produzione dell'abbigliamento � industriale e sartoriale per soggetti in carico ai Servizi - Azione 2 �  area urbana Reggio Emilia (Ciofs- FP)";"Operare nell'ambito della produzione dell'abbigliamento � industriale e sartoriale per soggetti in carico ai Servizi - Azione 2 �  area urbana Reggio Emilia (Ciofs- FP), attivit� rivolta a 12 persone costituita da:";11/11/2015 00:00:00;28/12/2016 00:00:00;51505,60;0,50;"008035";"008";"109";"31/10/2022"
"FSE";"2015-3664/RER";"E39J15001210002";"80090410376";"Associazione Emiliano - Romagnola di centri autonomi di formazione professionale - A.E.C.A";"Percorso formativo per operatore della ristorazione rivolto a soggetti in carico ai servizi - Az. 2 - Area Piacenza (ENDOFAP)";"Percorso formativo per operatore della ristorazione rivolto a soggetti in carico ai servizi - Az. 2 - Area Piacenza (ENDOFAP), attivit� rivolta a 12 persone costituita da:";12/11/2015 00:00:00;19/9/2016 00:00:00;53939,65;0,50;"008033";"008";"109";"31/10/2022"
"FSE";"2015-3665/RER";"E39J15000850002";"80090410376";"Associazione Emiliano - Romagnola di centri autonomi di formazione professionale - A.E.C.A";"Tirocini nel settore agricolo rivolti a persone riconducibili alla L 381/1991 art.4 - Az. 1 - Area Montagna occidentale (ENDOFAP)";"Tirocini nel settore agricolo rivolti a persone riconducibili alla L 381/1991 art.4 - Az. 1 - Area Montagna occidentale (ENDOFAP), attivit� rivolta a 10 persone costituita da:";11/11/2015 00:00:00;28/2/2017 00:00:00;27824,90;0,50;"008033";"008";"109";"31/10/2022"
"FSE";"2015-3666/RER";"E39J15001220002";"80090410376";"Associazione Emiliano - Romagnola di centri autonomi di formazione professionale - A.E.C.A";"Operatore del punto vendita- con specializzazione nella lavorazione dei freschi  - Area Urbana Reggio Emilia - az.2 - Utenti in carico ai S.S. (CIOFS Fp ER Bibbiano)";"Operatore del punto vendita- con specializzazione nella lavorazione dei freschi  - Area Urbana Reggio Emilia - az.2 - Utenti in carico ai S.S. (CIOFS Fp ER Bibbiano), attivit� rivolta a 12 persone costituita da:";12/11/2015 00:00:00;29/12/2016 00:00:00;97559,75;0,50;"008035";"008";"109";"31/10/2022"
"FSE";"2015-3667/RER";"E39J15001230002";"80090410376";"Associazione Emiliano - Romagnola di centri autonomi di formazione professionale - A.E.C.A";"Percorsi formativi per l'occupazione di soggetti svantaggiati nell'area della montagna centrale (azione 2) AECA-MO Edseg";"Percorsi formativi per l'occupazione di soggetti svantaggiati nell'area della montagna centrale (azione 2) AECA-MO Edseg, attivit� rivolta a 36 persone costituita da:";13/10/2015 00:00:00;31/12/2016 00:00:00;131189,38;0,50;"008036";"008";"109";"31/10/2022"
"FSE";"2015-3668/RER";"E39J15000860002";"80090410376";"Associazione Emiliano - Romagnola di centri autonomi di formazione professionale - A.E.C.A";"PERCORSI DI INCLUSIONE LAVORATIVA RIVOLTI A PERSONE IN CARICO AI SERVIZI SOCIO SANITARI TERRITORIALI -Az 1- AREA URBANA DI BOLOGNA E CIRCONDARIO IMOLESE (CEFAL ER, CIOFS FP ER, OPIMM)";"PERCORSI DI INCLUSIONE LAVORATIVA RIVOLTI A PERSONE IN CARICO AI SERVIZI SOCIO SANITARI TERRITORIALI -Az 1- AREA URBANA DI BOLOGNA E CIRCONDARIO IMOLESE (CEFAL ER, CIOFS FP ER, OPIMM), attivit� rivolta a 60 persone costituita da:";12/11/2015 00:00:00;28/2/2017 00:00:00;254206,36;0,50;"008037";"008";"109";"31/10/2022"
"FSE";"2015-3669/RER";"E39J15000870002";"80090410376";"Associazione Emiliano - Romagnola di centri autonomi di formazione professionale - A.E.C.A";"TIROCINI RIVOLTI A SOGGETTI IN CARICO AI SERVIZI  DGR 379/2014 - AZ 1 - AREA URBANA PARMA - (CIOFS/FP ER Parma)";"TIROCINI RIVOLTI A SOGGETTI IN CARICO AI SERVIZI  DGR 379/2014 - AZ 1 - AREA URBANA PARMA - (CIOFS/FP ER Parma), attivit� rivolta a 40 persone costituita da:";16/11/2015 00:00:00;31/12/2016 00:00:00;153821,20;0,50;"008034";"008";"109";"31/10/2022"
"FSE";"2015-3670/RER";"E39J15000880002";"80090410376";"Associazione Emiliano - Romagnola di centri autonomi di formazione professionale - A.E.C.A";"TIROCINI RIVOLTI A SOGGETTI RICHIEDENTI ASILO POLITICO DGL 286/1998 - AZ 1 - AREA URBANA PARMA - (CIOFS/FP ER Parma)";"TIROCINI RIVOLTI A SOGGETTI RICHIEDENTI ASILO POLITICO DGL 286/1998 - AZ 1 - AREA URBANA PARMA - (CIOFS/FP ER Parma), attivit� rivolta a 15 persone costituita da:";16/11/2015 00:00:00;31/12/2016 00:00:00;66312,20;0,50;"008034";"008";"109";"31/10/2022"
"FSE";"2015-3672/RER";"E39J15001240002";"80090410376";"Associazione Emiliano - Romagnola di centri autonomi di formazione professionale - A.E.C.A";"Percorsi Formativi per soggetti in carico ai servizi � Az. 2 � Area Urbana Parma (ENAC ER e CIOFS-Fp/Er Parma)";"Percorsi Formativi per soggetti in carico ai servizi � Az. 2 � Area Urbana Parma (ENAC ER e CIOFS-Fp/Er Parma), attivit� rivolta a 27 persone costituita da:";4/11/2015 00:00:00;31/12/2016 00:00:00;143423,85;0,50;"008034";"008";"109";"31/10/2022"
"FSE";"2015-3673/RER";"E39J15002360002";"80090410376";"Associazione Emiliano - Romagnola di centri autonomi di formazione professionale - A.E.C.A";"Percorsi personalizzati di accompagnamento al lavoro rivolto a donne in carico ai servizi - AZ 1- Area urbana di Modena (EDSEG-";"Percorsi personalizzati di accompagnamento al lavoro rivolto a donne in carico ai servizi - AZ 1- Area urbana di Modena (EDSEG-, attivit� rivolta a 18 persone costituita da:";5/11/2015 00:00:00;28/12/2016 00:00:00;93080,00;0,50;"008036";"008";"109";"31/10/2022"
"FSE";"2015-3674/RER";"E39J15001250002";"80090410376";"Associazione Emiliano - Romagnola di centri autonomi di formazione professionale - A.E.C.A";"PERCORSI DI FORMAZIONE RIVOLTI A PERSONE IN CARICO AI SERVIZI SOCIO SANITARI TERRITORIALI -Az 2- AREA URBANA DI BOLOGNA (CEFAL ER, CIOFS FP ER, OPIMM)";"PERCORSI DI FORMAZIONE RIVOLTI A PERSONE IN CARICO AI SERVIZI SOCIO SANITARI TERRITORIALI -Az 2- AREA URBANA DI BOLOGNA (CEFAL ER, CIOFS FP ER, OPIMM), attivit� rivolta a 60 persone costituita da:";25/1/2016 00:00:00;31/12/2016 00:00:00;214631,60;0,50;"008037";"008";"109";"31/10/2022"
"FSE";"2015-3675/RER";"E39J15001260002";"80090410376";"Associazione Emiliano - Romagnola di centri autonomi di formazione professionale - A.E.C.A";"Percorsi formativi per l'occupazione nel settore metalmeccanico rivolto a soggetti in carico ai servizi - AZ 2 - Area urbana di Modena (EDSEG ) -";"Percorsi formativi per l'occupazione nel settore metalmeccanico rivolto a soggetti in carico ai servizi - AZ 2 - Area urbana di Modena (EDSEG ) -, attivit� rivolta a 48 persone costituita da:";5/11/2015 00:00:00;30/4/2017 00:00:00;177262,07;0,50;"008036";"008";"109";"31/10/2022"
"FSE";"2015-3676/RER";"E39J15000890002";"80090410376";"Associazione Emiliano - Romagnola di centri autonomi di formazione professionale - A.E.C.A";"Sistema di tirocini logistica e magazzino - soggetti in carico ai servizi - Azione 1 - Area urbana Rimini (O.S.Fi.N. F.P.)";"Sistema di tirocini logistica e magazzino - soggetti in carico ai servizi - Azione 1 - Area urbana Rimini (O.S.Fi.N. F.P.), attivit� rivolta a 5 persone costituita da:";4/11/2015 00:00:00;21/5/2016 00:00:00;16868,90;0,50;"008099";"008";"109";"31/10/2022"
"FSE";"2015-3677/RER";"E39J15001270002";"80090410376";"Associazione Emiliano - Romagnola di centri autonomi di formazione professionale - A.E.C.A";"Percorsi formativi rivolti a soggetti in carico ai servizi - Az 2 - Area urbana Ravenna (Opera Diocesana Giovanni XXIII)";"Percorsi formativi rivolti a soggetti in carico ai servizi - Az 2 - Area urbana Ravenna (Opera Diocesana Giovanni XXIII), attivit� rivolta a 12 persone costituita da:";30/9/2015 00:00:00;22/12/2015 00:00:00;50772,94;0,50;"008039";"008";"109";"31/10/2022"
"FSE";"2015-3678/RER";"E39J15002430002";"80090410376";"Associazione Emiliano - Romagnola di centri autonomi di formazione professionale - A.E.C.A";"Percorsi formativi rivolti a persone riconducibili alla legge 381/1991 art 4 - Az 2 - Area Urbana Ravenna (Opera Diocesana Giovanni XXIII)";"Percorsi formativi rivolti a persone riconducibili alla legge 381/1991 art 4 - Az 2 - Area Urbana Ravenna (Opera Diocesana Giovanni XXIII), attivit� rivolta a 30 persone costituita da:";29/9/2015 00:00:00;29/7/2016 00:00:00;106822,49;0,50;"008039";"008";"109";"31/10/2022"
"FSE";"2015-3679/RER";"E39J15002370002";"80090410376";"Associazione Emiliano - Romagnola di centri autonomi di formazione professionale - A.E.C.A";"Sistema di tirocini per richiedenti asilo o titolari di protezione - Az 1 - Area Urbana Ravenna (Opera Diocesana Giovanni XXIII)";"Sistema di tirocini per richiedenti asilo o titolari di protezione - Az 1 - Area Urbana Ravenna (Opera Diocesana Giovanni XXIII), attivit� rivolta a 10 persone costituita da:";5/11/2015 00:00:00;31/12/2016 00:00:00;51076,50;0,50;"008039";"008";"109";"31/10/2022"
"FSE";"2015-3680/RER";"E39J15001280002";"80090410376";"Associazione Emiliano - Romagnola di centri autonomi di formazione professionale - A.E.C.A";"Percorso formativo Operatore delle lavorazione carni  - soggetti in carico ai servizi - Azione 2 - Area urbana Rimini (O.S.Fi.N. F.P.)";"Percorso formativo Operatore delle lavorazione carni  - soggetti in carico ai servizi - Azione 2 - Area urbana Rimini (O.S.Fi.N. F.P.), attivit� rivolta a 12 persone costituita da:";11/11/2015 00:00:00;23/5/2016 00:00:00;40363,86;0,50;"008099";"008";"109";"31/10/2022"
"FSE";"2015-3681/RER";"E39J15002440002";"80090410376";"Associazione Emiliano - Romagnola di centri autonomi di formazione professionale - A.E.C.A";"LAVORARE IN AMBITO AGRICOLO per soggetti in carico ai servizi  � AZ 2 � Area Urbana Reggio Emilia (CIOFS-FP)";"LAVORARE IN AMBITO AGRICOLO per soggetti in carico ai servizi  � AZ 2 � Area Urbana Reggio Emilia (CIOFS-FP), attivit� rivolta a 12 persone costituita da:";18/3/2016 00:00:00;28/12/2016 00:00:00;50836,20;0,50;"008035";"008";"109";"31/10/2022"
"FSE";"2015-3683/RER";"E39J15001290002";"80090410376";"Associazione Emiliano - Romagnola di centri autonomi di formazione professionale - A.E.C.A";"Percorso formativo rivolto a soggetti in carico ai servizi sociali, Azione 2, Area  Forl� (CNOS-FAP)";"Percorso formativo rivolto a soggetti in carico ai servizi sociali, Azione 2, Area  Forl� (CNOS-FAP), attivit� rivolta a 12 persone costituita da:";3/11/2015 00:00:00;31/12/2016 00:00:00;98623,48;0,50;"008040";"008";"109";"31/10/2022"
"FSE";"2015-3684/RER";"E39J15000900002";"80090410376";"Associazione Emiliano - Romagnola di centri autonomi di formazione professionale - A.E.C.A";"PERCORSI DI INCLUSIONE LAVORATIVA PER PERSONE  IN CARICO AI SERVIZI SOCIALI NELL�AREA URBANA DI FERRARA AZ.1 (CS ODC)";"PERCORSI DI INCLUSIONE LAVORATIVA PER PERSONE  IN CARICO AI SERVIZI SOCIALI NELL�AREA URBANA DI FERRARA AZ.1 (CS ODC), attivit� rivolta a 56 persone costituita da:";1/10/2015 00:00:00;31/12/2016 00:00:00;204070,00;0,50;"008038";"008";"109";"31/10/2022"
"FSE";"2015-3685/RER";"E39J15000910002";"80090410376";"Associazione Emiliano - Romagnola di centri autonomi di formazione professionale - A.E.C.A";"PERCORSI DI INCLUSIONE LAVORATIVA IN AMBITO MECCANICO PER RICHIEDENTI ASILO, TITOLARI DI PROTEZIONE INTERNAZIONALE/UMANITARIA E DI PROTEZIONE SOCIALE ( ART. 18 D. LGS. 286/1998) � AREA URBANA DI FERRARA AZ1 (CSODC)";"PERCORSI DI INCLUSIONE LAVORATIVA IN AMBITO MECCANICO PER RICHIEDENTI ASILO, TITOLARI DI PROTEZIONE INTERNAZIONALE/UMANITARIA E DI PROTEZIONE SOCIALE ( ART. 18 D. LGS. 286/1998) � AREA URBANA DI FERRARA AZ1 (CSODC), attivit� rivolta a 15 persone costituita da:";2/11/2015 00:00:00;23/12/2016 00:00:00;57994,60;0,50;"008038";"008";"109";"31/10/2022"
"FSE";"2015-3686/RER";"E39J15001300002";"80090410376";"Associazione Emiliano - Romagnola di centri autonomi di formazione professionale - A.E.C.A";"PERCORSI DI FORMAZIONE PER RICHIEDENTI ASILO, TITOLARI DI PROTEZIONE INTERNAZIONALE/UMANITARIA e DI PROTEZIONE SOCIALE NELL�AREA URBANA DI FERRARA AZ2 (CSODC)";"PERCORSI DI FORMAZIONE PER RICHIEDENTI ASILO, TITOLARI DI PROTEZIONE INTERNAZIONALE/UMANITARIA e DI PROTEZIONE SOCIALE NELL�AREA URBANA DI FERRARA AZ2 (CSODC), attivit� rivolta a 48 persone costituita da:";2/11/2015 00:00:00;19/7/2016 00:00:00;111531,83;0,50;"008038";"008";"109";"31/10/2022"
"FSE";"2015-3687/RER";"E39J15000920002";"80090410376";"Associazione Emiliano - Romagnola di centri autonomi di formazione professionale - A.E.C.A";"Reinserimento lavorativo personalizzato per persone affette da dipende patologiche  -persone svantaggiate ai sensi legge 381 �AZ 1 � Area Urbana Reggio Emilia (CIOFS-FP-CEIS )";"Reinserimento lavorativo personalizzato per persone affette da dipende patologiche  -persone svantaggiate ai sensi legge 381 �AZ 1 � Area Urbana Reggio Emilia (CIOFS-FP-CEIS ), attivit� rivolta a 35 persone costituita da:";9/12/2015 00:00:00;18/10/2017 00:00:00;110878,25;0,50;"008035";"008";"109";"31/10/2022"
"FSE";"2015-3688/RER";"E39J15000930002";"80090410376";"Associazione Emiliano - Romagnola di centri autonomi di formazione professionale - A.E.C.A";"PERCORSI DI INCLUSIONE LAVORATIVA RIVOLTI A PERSONE RICHIEDENTI ASILO E RIFUGIATE -Az 1- AREA URBANA DI BOLOGNA (CEFAL ER, CIOFS FP ER)";"PERCORSI DI INCLUSIONE LAVORATIVA RIVOLTI A PERSONE RICHIEDENTI ASILO E RIFUGIATE -Az 1- AREA URBANA DI BOLOGNA (CEFAL ER, CIOFS FP ER), attivit� rivolta a 54 persone costituita da:";13/11/2015 00:00:00;27/2/2017 00:00:00;228303,75;0,50;"008037";"008";"109";"31/10/2022"
"FSE";"2015-3689/RER";"E39J15000940002";"80090410376";"Associazione Emiliano - Romagnola di centri autonomi di formazione professionale - A.E.C.A";"Percorsi personalizzati di accompagnamento al lavoro persone svantaggiate ai sensi della L. 381/91 in prevalenza affette da dipendenze patologiche area urbana Modena-AECA MO";"Percorsi personalizzati di accompagnamento al lavoro persone svantaggiate ai sensi della L. 381/91 in prevalenza affette da dipendenze patologiche area urbana Modena-AECA MO, attivit� rivolta a 16 persone costituita da:";13/10/2015 00:00:00;21/12/2016 00:00:00;67974,40;0,50;"008036";"008";"109";"31/10/2022"
"FSE";"2015-3690/RER";"E39J15001310002";"80090410376";"Associazione Emiliano - Romagnola di centri autonomi di formazione professionale - A.E.C.A";"Cesena verso la green-economy (Engim Emilia Romagna)
Percorsi formativi rivolti a soggetti in carico ai servizi sociali - Az. 2 . Area urbana Cesena.";"Cesena verso la green-economy (Engim Emilia Romagna)";9/11/2015 00:00:00;31/12/2016 00:00:00;141754,13;0,50;"008040";"008";"109";"31/10/2022"
"FSE";"2015-3691/RER";"E39J15000950002";"80090410376";"Associazione Emiliano - Romagnola di centri autonomi di formazione professionale - A.E.C.A";"TIROCINI RIVOLTI A SOGGETTI RICHIEDENTI ASILO POLITICO DGL 286/1998 - AZ 1 - AREA MONTAGNA OCCIDENTALE - (CIOFS/FP ER Parma)";"TIROCINI RIVOLTI A SOGGETTI RICHIEDENTI ASILO POLITICO DGL 286/1998 - AZ 1 - AREA MONTAGNA OCCIDENTALE - (CIOFS/FP ER Parma), attivit� rivolta a 15 persone costituita da:";12/1/2016 00:00:00;31/10/2016 00:00:00;58366,00;0,50;"008034";"008";"109";"31/10/2022"
"FSE";"2015-3693/RER";"E59J15000280002";"01748791207";"Futura societ� consortile a responsabilit� limitata";"ABILI E COMPETENTI. Percorsi di tirocinio per l'inclusione lavorativa nell'area del sisma";"ABILI E COMPETENTI. Percorsi di tirocinio per l'inclusione lavorativa nell'area del sisma, attivit� rivolta a 110 persone costituita da:";9/11/2015 00:00:00;31/8/2017 00:00:00;410540,29;0,50;"008035:::008036:::008037";"008";"109";"31/10/2022"
"FSE";"2015-3694/RER";"E99J15000710002";"01943460343";"ECIPAR di Parma Soc. Consortile a r.l.";"DALL'ACCOGLIENZA ALL' INCLUSIONE: PERCORSI DI AVVICINAMENTO AL SETTORE PRODUTTIVO PARMENSE PER RICHIEDENTI ASILO E  TITOLARI DI PROTEZIONE INTERNAZIONALE.";"DALL'ACCOGLIENZA ALL' INCLUSIONE: PERCORSI DI AVVICINAMENTO AL SETTORE PRODUTTIVO PARMENSE PER RICHIEDENTI ASILO E  TITOLARI DI PROTEZIONE INTERNAZIONALE., attivit� rivolta a 10 persone costituita da:";16/11/2015 00:00:00;30/8/2016 00:00:00;44308,88;0,50;"008034";"008";"109";"31/10/2022"
"FSE";"2015-3697/RER";"E39J15000960002";"01139920332";"EN.A.I.P. DELLA PROVINCIA DI PIACENZA";"ACCOMPAGNAMENTO ALL'INSERIMENTO LAVORATIVO ATTRAVERSO IL TIROCINIO FORMATIVO";"ACCOMPAGNAMENTO ALL'INSERIMENTO LAVORATIVO ATTRAVERSO IL TIROCINIO FORMATIVO, attivit� rivolta a 24 persone costituita da:";30/11/2015 00:00:00;31/12/2016 00:00:00;101146,00;0,50;"008033";"008";"109";"31/10/2022"
"FSE";"2015-3698/RER";"E39J15001320002";"01139920332";"EN.A.I.P. DELLA PROVINCIA DI PIACENZA";"ACCOMPAGNAMENTO ALL'INSERIMENTO LAVORATIVO ATTRAVERSO PERCORSI DI FORMAZIONE PROFESSIONALE";"ACCOMPAGNAMENTO ALL'INSERIMENTO LAVORATIVO ATTRAVERSO PERCORSI DI FORMAZIONE PROFESSIONALE, attivit� rivolta a 24 persone costituita da:";16/11/2015 00:00:00;31/12/2016 00:00:00;150954,90;0,50;"008033";"008";"109";"31/10/2022"
"FSE";"2015-3699/RER";"E39J15000970002";"80152680379";"IRECOOP EMILIA-ROMAGNA SOCIETA' COOPERATIVA";"Azioni di inclusione sociale tramite inserimenti in azienda - Area Urbana Rimini (Azione 1)";"Azioni di inclusione sociale tramite inserimenti in azienda - Area Urbana Rimini (Azione 1), attivit� rivolta a 30 persone costituita da:";11/11/2015 00:00:00;1/3/2017 00:00:00;123208,70;0,50;"008099";"008";"109";"31/10/2022"
"FSE";"2015-3700/RER";"E39J15000980002";"80152680379";"IRECOOP EMILIA-ROMAGNA SOCIETA' COOPERATIVA";"Reti d'inclusione sociale a sostegno dell'inserimento lavorativo area sisma. (Azione 1)";"Reti d'inclusione sociale a sostegno dell'inserimento lavorativo area sisma. (Azione 1), attivit� rivolta a 35 persone costituita da:";22/10/2015 00:00:00;31/3/2017 00:00:00;136741,20;0,50;"008037:::008038";"008";"109";"31/10/2022"
"FSE";"2015-4078/RER";"E39J15002060002";"80090410376";"Associazione Emiliano - Romagnola di centri autonomi di formazione professionale - A.E.C.A";"RISTORAZIONE IN AREA SISMA";"RISTORAZIONE IN AREA SISMA, attivit� rivolta a 27 persone costituita da:";16/11/2015 00:00:00;30/4/2017 00:00:00;143550,00;0,50;"008036";"008";"102";"31/10/2022"
"FSE";"2015-4079/RER";"E39J15002070002";"80090410376";"Associazione Emiliano - Romagnola di centri autonomi di formazione professionale - A.E.C.A";"AZIONI FORMATIVE IN AMBITO ENOGASTRONOMICO PER LO SVILUPPO ECONOMICO ED OCCUPAZIONALE DELL�APPENNINO BOLOGNESE";"AZIONI FORMATIVE IN AMBITO ENOGASTRONOMICO PER LO SVILUPPO ECONOMICO ED OCCUPAZIONALE DELL�APPENNINO BOLOGNESE, attivit� rivolta a 15 persone costituita da un percorso di formazione di accesso all'area professionale di Produzione e distribuzione pasti finalizzato all'acquisizione di un certificato di qualifica di Operatore della ristorazione. Il corso, della durata di 600 ore, � rivolto a 15 persone.";25/11/2015 00:00:00;31/12/2016 00:00:00;75990,00;0,50;"008037";"008";"102";"31/10/2022"
"FSE";"2015-4080/RER";"E39J15002080002";"80090410376";"Associazione Emiliano - Romagnola di centri autonomi di formazione professionale - A.E.C.A";"RISTORAZIONE IN AREE URBANE";"RISTORAZIONE IN AREE URBANE, attivit� rivolta a 12 persone costituita da un percorso di formazione di accesso all'area professionale di Produzione e distribuzione pasti finalizzato all'acquisizione di un certificato di qualifica di Operatore della ristorazione. Il corso, della durata di 600 ore, � rivolto a 12 persone.";16/11/2015 00:00:00;10/6/2016 00:00:00;70635,00;0,50;"008037";"008";"102";"31/10/2022"
"FSE";"2015-4081/RER";"E39J15002090002";"80090410376";"Associazione Emiliano - Romagnola di centri autonomi di formazione professionale - A.E.C.A";"PERCORSO DI FORMAZIONE PER GIRDINIERE IN AREA URBANA PARMA";"PERCORSO DI FORMAZIONE PER GIRDINIERE IN AREA URBANA PARMA, attivit� rivolta a 12 persone costituita da un percorso di formazione di accesso all'area professionale di Progettazione e gestione del verde finalizzato all'acquisizione di un certificato di qualifica di Giardiniere. Il corso, della durata di 600 ore, � rivolto a 12 persone.";11/11/2015 00:00:00;18/5/2016 00:00:00;71048,00;0,50;"008034";"008";"102";"31/10/2022"
"FSE";"2015-4084/RER";"E39J15002100002";"80090410376";"Associazione Emiliano - Romagnola di centri autonomi di formazione professionale - A.E.C.A";"GESTORE DEI PROCESSI DI APPRENDIMENTO CIOFS FP ER Bologna";"GESTORE DEI PROCESSI DI APPRENDIMENTO CIOFS FP ER Bologna, attivit� rivolta a 12 persone costituita da un percorso di formazione di specializzazione per l'area professionale di Progettazione ed erogazione servizi di sviluppo delle persone finalizzato all'acquisizione di un certificato di qualifica di Gestore di processi di apprendimento. Il corso, della durata di 500 ore, � rivolto a 12 persone.";18/1/2016 00:00:00;10/6/2016 00:00:00;69736,50;0,50;"008037";"008";"102";"31/10/2022"
"FSE";"2015-4085/RER";"E39J15002110002";"80090410376";"Associazione Emiliano - Romagnola di centri autonomi di formazione professionale - A.E.C.A";"PERCORSI FORMATIVI A SUPPORTO DEI SERVIZI ALLA PERSONA IN AREE URBANE";"PERCORSI FORMATIVI A SUPPORTO DEI SERVIZI ALLA PERSONA IN AREE URBANE, attivit� rivolta a 24 persone costituita da:";9/11/2015 00:00:00;31/12/2016 00:00:00;89456,00;0,50;"008034:::008037";"008";"102";"31/10/2022"
"FSE";"2015-4086/RER";"E39J15002120002";"80090410376";"Associazione Emiliano - Romagnola di centri autonomi di formazione professionale - A.E.C.A";"PROMOZIONE ED EROGAZIONE SERVIZI TURISTICI IN AREE URBANE";"PROMOZIONE ED EROGAZIONE SERVIZI TURISTICI IN AREE URBANE, attivit� rivolta a 12 persone costituita da un percorso di formazione di specializzazione per l'area professionale di Promozione ed erogazione servizi turistici finalizzato all'acquisizione di un certificato di qualifica di Tecnico dei servizi turistico-ricettivi. Il corso, della durata di 300 ore, � rivolto a 12 persone.";20/1/2016 00:00:00;31/12/2016 00:00:00;44490,00;0,50;"008099";"008";"102";"31/10/2022"
"FSE";"2015-4091/RER";"E39J15002130002";"80090410376";"Associazione Emiliano - Romagnola di centri autonomi di formazione professionale - A.E.C.A";"SETTORE ITTICO E ACQUACOLTURA NELLA'REA URBANA RAVENNA";"SETTORE ITTICO E ACQUACOLTURA NELLA'REA URBANA RAVENNA, attivit� rivolta a 12 persone costituita da un percorso di formazione di accesso all'area professionale di Trasporto marittimo, pesca commerciale e acquacoltura finalizzato all'acquisizione di un certificato di competenze di Operatore della pesca e dell�acquacoltura. Il corso, della durata di 400 ore, � rivolto a 12 persone.";7/3/2016 00:00:00;31/12/2016 00:00:00;48668,00;0,50;"008039";"008";"102";"31/10/2022"
"FSE";"2015-4111/RER";"E39J15002270002";"04298010374";"Ecipar Soc.Cons.a r.l.-Formazione e servizi innovativi per l'artigianato e le P.M.I.";"Professionalit� e competenze nell'area ""Sviluppo e gestione dell'energia""";"Professionalit� e competenze nell'area Sviluppo e gestione dell'energia, attivit� rivolta a 14 persone costituita da un percorso di formazione di specializzazione per l'area professionale di Sviluppo e gestione dell�energia finalizzato all'acquisizione di un certificato di qualifica di Tecnico nelle soluzioni energetiche sistema edificio impianto. Il corso, della durata di 300 ore, � rivolto a 14 persone.";5/11/2015 00:00:00;8/7/2016 00:00:00;45978,00;0,50;"008034";"008";"102";"31/10/2022"
"FSE";"2015-4112/RER";"E39J15002280002";"04298010374";"Ecipar Soc.Cons.a r.l.-Formazione e servizi innovativi per l'artigianato e le P.M.I.";"Professionalit� e competenze nell'area ""Progettazione e produzione orafa""";"Professionalit� e competenze nell'area Progettazione e produzione orafa, attivit� rivolta a 12 persone costituita da un percorso di formazione di specializzazione per l'area professionale di Progettazione e produzione orafa finalizzato all'acquisizione di un certificato di qualifica di Progettista orafo. Il corso, della durata di 300 ore, � rivolto a 12 persone.";9/11/2015 00:00:00;7/12/2016 00:00:00;45228,00;0,50;"008037";"008";"102";"31/10/2022"
"FSE";"2015-4113/RER";"E39J15002290002";"04298010374";"Ecipar Soc.Cons.a r.l.-Formazione e servizi innovativi per l'artigianato e le P.M.I.";"Professionalit� e competenze nell'area ""Approvvigionamento e gestione della produzione industriale""";"Professionalit� e competenze nell'area Approvvigionamento e gestione della produzione industriale, attivit� rivolta a 12 persone costituita da un percorso di formazione di specializzazione per l'area professionale di Approvvigionamento e gestione della produzione industriale finalizzato all'acquisizione di un certificato di qualifica di Tecnico degli acquisti e approvvigionamenti. Il corso, della durata di 500 ore, � rivolto a 12 persone.";14/10/2015 00:00:00;21/6/2016 00:00:00;70880,00;0,50;"008035";"008";"102";"31/10/2022"
"FSE";"2015-4114/RER";"E39J15002300002";"04298010374";"Ecipar Soc.Cons.a r.l.-Formazione e servizi innovativi per l'artigianato e le P.M.I.";"Professionalit� e competenze nell'area ""Erogazione servizi socio-sanitari""";"Professionalit� e competenze nell'area Erogazione servizi socio-sanitari, attivit� rivolta a 12 persone costituita da un percorso di formazione di accesso all'area professionale di Erogazione servizi socio-sanitari finalizzato all'acquisizione di un certificato di qualifica di Operatore termale. Il corso, della durata di 600 ore, � rivolto a 12 persone.";11/11/2015 00:00:00;16/6/2016 00:00:00;75126,00;0,50;"008099";"008";"102";"31/10/2022"
"FSE";"2015-4115/RER";"E39J15002310002";"02261631200";"Formindustria Emilia-Romagna Soc. Cons. a r.l.
";"SISTEMA MECCANICA EMILIA ROMAGNA � ACCESSO ALL�OCCUPAZIONE";"SISTEMA MECCANICA EMILIA ROMAGNA � ACCESSO ALL�OCCUPAZIONE, attivit� rivolta a 114 persone costituita da:";3/11/2015 00:00:00;30/9/2016 00:00:00;443024,10;0,50;"008034:::008035:::008037:::008038:::008039:::008040:::00809";"008";"102";"31/10/2022"
"FSE";"2015-4116/RER";"E79J15000360002";"04260000379";"FORM.ART. Societ� Consortile a r.l.";"AZIONI PER PROMUOVERE L'OCCUPAZIONE NELL'AREA AMMINISTRAZIONE E CONTROLLO D'IMPRESA";"AZIONI PER PROMUOVERE L'OCCUPAZIONE NELL'AREA AMMINISTRAZIONE E CONTROLLO D'IMPRESA, attivit� rivolta a 56 persone costituita da:";26/10/2015 00:00:00;28/12/2016 00:00:00;167133,00;0,50;"008034:::008038:::008039:::008040";"008";"102";"31/10/2022"
"FSE";"2015-4117/RER";"E79J15000370002";"04260000379";"FORM.ART. Societ� Consortile a r.l.";"QUALIFICA DI OPERATORE DELL�AUTORIPARAZIONE";"QUALIFICA DI OPERATORE DELL�AUTORIPARAZIONE, attivit� rivolta a 14 persone costituita da un percorso di formazione di accesso all'area professionale di Autoriparazione finalizzato all'acquisizione di un certificato di qualifica di Operatore meccatronico dell'autoriparazione. Il corso, della durata di 600 ore, � rivolto a 14 persone.";11/11/2015 00:00:00;22/9/2016 00:00:00;73674,00;0,50;"008036";"008";"102";"31/10/2022"
"FSE";"2015-4118/RER";"E79J15000380002";"04260000379";"FORM.ART. Societ� Consortile a r.l.";"PERCORSI DI QUALIFICA PER OPERATORI ALLE CURE ESTETICHE";"PERCORSI DI QUALIFICA PER OPERATORI ALLE CURE ESTETICHE, attivit� rivolta a 70 persone costituita da:";30/10/2015 00:00:00;8/7/2016 00:00:00;373275,00;0,50;"008033:::008035:::008037:::008040";"008";"102";"31/10/2022"
"FSE";"2015-4168/RER";"E56D15002980005";"91361180374";"FONDAZIONE Istituto Tecnico Superiore Meccanica, Meccatronica, Motoristica, Packaging";"TECNICO SUPERIORE DEL VEICOLO CON SPECIALIZZAZIONE IN MOTORI ENDOTERMICI, IBRIDI ED ELETTRICI";"TECNICO SUPERIORE DEL VEICOLO CON SPECIALIZZAZIONE IN MOTORI ENDOTERMICI, IBRIDI ED ELETTRICI";29/10/2015 00:00:00;30/9/2017 00:00:00;177899,91;0,50;"008036";"008";"116";"31/10/2022"
"FSE";"2015-4169/RER";"E56D15002970005";"91361180374";"FONDAZIONE Istituto Tecnico Superiore Meccanica, Meccatronica, Motoristica, Packaging";"TECNICO SUPERIORE PER LA PROGETTAZIONE DI PRODOTTI INNOVATIVI CON IMPIEGO DI MATERIALI COMPOSITI AVANZATI E TECNOLOGIE DI ADDITIVE MANUFACTURING ";"TECNICO SUPERIORE PER LA PROGETTAZIONE DI PRODOTTI INNOVATIVI CON IMPIEGO DI MATERIALI COMPOSITI AVANZATI E TECNOLOGIE DI ADDITIVE MANUFACTURING ";29/10/2015 00:00:00;30/9/2017 00:00:00;176495,61;0,50;"008034";"008";"116";"31/10/2022"
"FSE";"2015-4170/RER";"E86D15007340005";"03913590406";"FONDAZIONE ISTITUTO TECNICO SUPERIORE TECNOLOGIE INDUSTRIE CREATIVE";"Tecnico superiore per l'organizzazione e la fruizione dell'informazione e della conoscenza ";"Tecnico superiore per l'organizzazione e la fruizione dell'informazione e della conoscenza ";30/10/2015 00:00:00;31/12/2017 00:00:00;178715,04;0,50;"008040";"008";"116";"31/10/2022"
"FSE";"2015-4171/RER";"E86D15007350005";"03913590406";"FONDAZIONE ISTITUTO TECNICO SUPERIORE TECNOLOGIE INDUSTRIE CREATIVE";"Tecnico superiore per il design, lo sviluppo e la sostenibilit� del prodotto ceramico ";"Tecnico superiore per il design, lo sviluppo e la sostenibilit� del prodotto ceramico ";9/11/2015 00:00:00;31/12/2017 00:00:00;169714,50;0,50;"008039";"008";"116";"31/10/2022"
"FSE";"2015-4172/RER";"E46D15003390005";"91131400409";"FONDAZIONE  ISTITUTO TECNICO SUPERIORE TECNOLOGIE INNOVATIVE PER I BENI E LE ATTIVITA' CULTURALI - TURISMO - TURISMO E BENESSERE";"TECNICO SUPERIORE PER LA PROMOZIONE E IL MARKETING DELLE FILIERE TURISTICHE E DELLE ATTIVIT� CULTURALI ";"TECNICO SUPERIORE PER LA PROMOZIONE E IL MARKETING DELLE FILIERE TURISTICHE E DELLE ATTIVIT� CULTURALI ";3/11/2015 00:00:00;13/10/2017 00:00:00;165396,58;0,50;"008037";"008";"116";"31/10/2022"
"FSE";"2015-4173/RER";"E46D15003400005";"91131400409";"FONDAZIONE  ISTITUTO TECNICO SUPERIORE TECNOLOGIE INNOVATIVE PER I BENI E LE ATTIVITA' CULTURALI - TURISMO - TURISMO E BENESSERE";"TECNICO SUPERIORE PER LA GESTIONE DI STRUTTURE TURISTICO-RICETTIVE";"TECNICO SUPERIORE PER LA GESTIONE DI STRUTTURE TURISTICO-RICETTIVE";5/11/2015 00:00:00;13/10/2017 00:00:00;173764,47;0,50;"008099";"008";"116";"31/10/2022"
"FSE";"2015-4174/RER";"E26D15004260005";"92163480343";"FONDAZIONE Istituto Tecnico Superiore - Area Tecnologica Nuove Tecnologie per il Made in Italy - Ambito Settoriale Regionale Agroalimentare";"TECNICO SUPERIORE RESPONSABILE DELLE 
PRODUZIONI E DELLE TRASFORMAZIONI AGRARIE, 
AGRO-ALIMENTARI E AGRO-INDUSTRIALI
";"TECNICO SUPERIORE RESPONSABILE DELLE 
PRODUZIONI E DELLE TRASFORMAZIONI AGRARIE, 
AGRO-ALIMENTARI E AGRO-INDUSTRIALI
";29/10/2015 00:00:00;28/9/2017 00:00:00;179996,00;0,50;"008034";"008";"116";"31/10/2022"
"FSE";"2015-4175/RER";"E16D15004820005";"91100460335";"FONDAZIONE  ITS PER LA MOBILITA' SOSTENIBILE - LOGISTICA E MOBILITA' DELLE PERSONE E DELLE MERCI";"TECNICO SUPERIORE PER L'INFOMOBILITA' E LE INFRASTRUTTURE LOGISTICHE";"TECNICO SUPERIORE PER L'INFOMOBILITA' E LE INFRASTRUTTURE LOGISTICHE";29/10/2015 00:00:00;31/12/2017 00:00:00;159895,33;0,50;"008033";"008";"116";"31/10/2022"
"FSE";"2015-4177/RER";"E79J15000260006";"93072510238";"Centro Studi Opera Don Calabria";"Interventi per l�inclusione socio lavorativa delle persone in esecuzione penale presso la Casa Circondariale di Ferrara";"Interventi per l�inclusione socio lavorativa delle persone in esecuzione penale presso la Casa Circondariale di Ferrara, attivit� rivolta a 25 persone costituita da:";12/10/2015 00:00:00;10/1/2017 00:00:00;72087,20;0,50;"008038";"008";"109";"31/10/2022"
"FSE";"2015-4179/RER";"E39J15000500006";"80007510375";"Istituto per l'Istruzione Professionale dei Lavoratori Edili della Provincia di Bologna";"""COSTRUIRE"" L'INCLUSIONE";"COSTRUIRE L'INCLUSIONE, attivit� rivolta a 12 persone costituita da:";25/11/2015 00:00:00;16/6/2016 00:00:00;72918,75;0,50;"008037";"008";"109";"31/10/2022"
"FSE";"2015-4181/RER";"E99J15000330006";"04237330370";"DINAMICA soc.cons.r.l";"STRUMENTI OPERATIVI PER L'INTEGRAZIONE LAVORATIVA IN AMBIENTE RURALE";"STRUMENTI OPERATIVI PER L'INTEGRAZIONE LAVORATIVA IN AMBIENTE RURALE, attivit� rivolta a 12 persone costituita da:";26/11/2015 00:00:00;12/7/2016 00:00:00;55494,50;0,50;"008036";"008";"109";"31/10/2022"
"FSE";"2015-4182/RER";"E99J15000340006";"02291500409";"Fondazione En.A.I.P.  S. Zavatta Rimini";"FORMAZIONE MIRATA ""Tecnico delle produzioni animali""";"FORMAZIONE MIRATA Tecnico delle produzioni animali, attivit� rivolta a 10 persone costituita da:";1/10/2015 00:00:00;29/6/2016 00:00:00;26099,00;0,50;"008099";"008";"109";"31/10/2022"
"FSE";"2015-4183/RER";"E99J15000310006";"02291500409";"Fondazione En.A.I.P.  S. Zavatta Rimini";"FORMAZIONE MIRATA: OPERATORI DELLA PANIFICAZIONE E DELLA PASTICCERIA";"FORMAZIONE MIRATA: OPERATORI DELLA PANIFICAZIONE E DELLA PASTICCERIA, attivit� rivolta a 16 persone costituita da:";14/6/2016 00:00:00;13/12/2017 00:00:00;37324,00;0,50;"008099";"008";"109";"31/10/2022"
"FSE";"2015-4185/RER";"E46D15002100006";"02291500409";"Fondazione En.A.I.P.  S. Zavatta Rimini";"�Non solo accoglienza� : percorsi di re-inserimento lavorativo.";"�Non solo accoglienza� : percorsi di re-inserimento lavorativo., attivit� rivolta a 8 persone costituita da:";6/10/2015 00:00:00;27/3/2017 00:00:00;15113,00;0,50;"008099";"008";"109";"31/10/2022"
"FSE";"2015-4188/RER";"E99J15000300006";"02020330342";"FORMA FUTURO Soc.Cons. r.l.";"PERCORSI DI INSERIMENTO PENITENZIARIO, SOCIALE E LAVORATIVO";"PERCORSI DI INSERIMENTO PENITENZIARIO, SOCIALE E LAVORATIVO, attivit� rivolta a 12 persone costituita da:";30/10/2015 00:00:00;14/7/2016 00:00:00;37677,84;0,50;"008034";"008";"109";"31/10/2022"
"FSE";"2015-4189/RER";"E99J15000350006";"02020330342";"FORMA FUTURO Soc.Cons. r.l.";"COMPETENZE PER OPERATORE DI PANIFICIO E PASTIFICIO";"COMPETENZE PER OPERATORE DI PANIFICIO E PASTIFICIO, attivit� rivolta a 12 persone costituita da:";30/10/2015 00:00:00;14/6/2016 00:00:00;39224,00;0,50;"008034";"008";"109";"31/10/2022"
"FSE";"2015-4190/RER";"E99J15000360006";"02020330342";"FORMA FUTURO Soc.Cons. r.l.";"COMPETENZE PER OPERATORE AGROALIMENTARE";"COMPETENZE PER OPERATORE AGROALIMENTARE, attivit� rivolta a 12 persone costituita da:";30/10/2015 00:00:00;20/6/2016 00:00:00;39701,00;0,50;"008034";"008";"109";"31/10/2022"
"FSE";"2015-4191/RER";"E69J15000450006";"02604400404";"TECHNE Societ� consortile a responsabilit� limitata";"Interventi per l�inclusione socio-lavorativa delle persone in esecuzione penale";"Interventi per l�inclusione socio-lavorativa delle persone in esecuzione penale, attivit� rivolta a 31 persone costituita da:";13/10/2015 00:00:00;27/6/2017 00:00:00;92457,42;0,50;"008040";"008";"109";"31/10/2022"
"FSE";"2015-4192/RER";"E49J15000310006";"02604400404";"TECHNE Societ� consortile a responsabilit� limitata";"ACERO BIS: percorsi di inclusione socio-lavorativa di persone in esecuzione penale";"ACERO BIS: percorsi di inclusione socio-lavorativa di persone in esecuzione penale, attivit� rivolta a 80 persone costituita da:";29/10/2015 00:00:00;30/6/2017 00:00:00;263316,28;0,50;"008033:::008034:::008035:::008036:::008037:::008038:::008039:::008040:::008099";"008";"109";"31/10/2022"
"FSE";"2015-4193/RER";"E89J15000390006";"01955980352";"FONDAZIONE ENAIP DON GIANFRANCO MAGNANI";"ORIENTAMENTO, CITTADINANZA E LAVORO";"ORIENTAMENTO, CITTADINANZA E LAVORO, attivit� rivolta a 15 persone costituita da:";27/1/2016 00:00:00;23/12/2016 00:00:00;56220,30;0,50;"008035";"008";"109";"31/10/2022"
"FSE";"2015-4194/RER";"E89J15000420006";"01955980352";"FONDAZIONE ENAIP DON GIANFRANCO MAGNANI";"PERCORSI DI FORMAZIONE SOCIO-LAVORATIVA";"PERCORSI DI FORMAZIONE SOCIO-LAVORATIVA, attivit� rivolta a 12 persone costituita da:";27/1/2016 00:00:00;25/10/2016 00:00:00;42196,00;0,50;"008035";"008";"109";"31/10/2022"
"FSE";"2015-4195/RER";"E39J15000470006";"04164640379";"CEFAL Emilia Romagna Societ� Cooperativa";"PERCORSI DI INCLUSIONE LAVORATIVA DI PERSONE   RECLUSE PRESSO LA CASA CIRCONDARIALE DI BOLOGNA";"PERCORSI DI INCLUSIONE LAVORATIVA DI PERSONE   RECLUSE PRESSO LA CASA CIRCONDARIALE DI BOLOGNA, attivit� rivolta a 30 persone costituita da:";18/11/2015 00:00:00;28/4/2017 00:00:00;56092,40;0,50;"008037";"008";"109";"31/10/2022"
"FSE";"2015-4197/RER";"E39J15000480006";"04164640379";"CEFAL Emilia Romagna Societ� Cooperativa";"PERCORSI INTEGRATI FINALIZZATI ALL�INCLUSIONE LAVORATIVA DI PERSONE  DISOCCUPATE  CHE FRUISCONO DELLA MISURA DI  MESSA ALLA PROVA";"PERCORSI INTEGRATI FINALIZZATI ALL�INCLUSIONE LAVORATIVA DI PERSONE  DISOCCUPATE  CHE FRUISCONO DELLA MISURA DI  MESSA ALLA PROVA, attivit� rivolta a 16 persone costituita da:";17/11/2015 00:00:00;28/4/2017 00:00:00;79075,70;0,50;"008037";"008";"109";"31/10/2022"
"FSE";"2015-4198/RER";"E69J15000460006";"04164640379";"CEFAL Emilia Romagna Societ� Cooperativa";"PERCORSI INTEGRATI FINALIZZATI ALL�INCLUSIONE LAVORATIVA DI PERSONE  DISOCCUPATE  CHE FRUISCONO DELLA MISURA DI  ESECUZIONE PENALE ESTERNA";"PERCORSI INTEGRATI FINALIZZATI ALL�INCLUSIONE LAVORATIVA DI PERSONE  DISOCCUPATE  CHE FRUISCONO DELLA MISURA DI  ESECUZIONE PENALE ESTERNA, attivit� rivolta a 8 persone costituita da:";16/11/2015 00:00:00;29/12/2016 00:00:00;41428,20;0,50;"008039";"008";"109";"31/10/2022"
"FSE";"2015-4199/RER";"E39J15000510006";"92050070371";"Fondazione Aldini Valeriani per lo sviluppo della cultura tecnica";"AZIENDA IN CARCERE: SVILUPPO DI COMPETENZE DELLA QUALIFICA DI OPERATORE MECCANICO DI SISTEMI - 4� EDIZIONE";"AZIENDA IN CARCERE: SVILUPPO DI COMPETENZE DELLA QUALIFICA DI OPERATORE MECCANICO DI SISTEMI - 4� EDIZIONE, attivit� rivolta a 12 persone costituita da:";10/12/2015 00:00:00;22/7/2016 00:00:00;51644,36;0,50;"008037";"008";"109";"31/10/2022"
"FSE";"2015-4203/RER";"E39J15000520006";"01139920332";"EN.A.I.P. DELLA PROVINCIA DI PIACENZA";"OPERATORE DI PRODUZIONE  PASTA FRESCA";"OPERATORE DI PRODUZIONE  PASTA FRESCA, attivit� rivolta a 15 persone costituita da:";29/12/2015 00:00:00;29/7/2016 00:00:00;42403,50;0,50;"008033";"008";"109";"31/10/2022"
"FSE";"2015-4205/RER";"E19J15000590006";"80090410376";"Associazione Emiliano - Romagnola di centri autonomi di formazione professionale - A.E.C.A";"Formazione per lo sviluppo di competenze professionalizzanti di persone in esecuzione penale";"Formazione per lo sviluppo di competenze professionalizzanti di persone in esecuzione penale, attivit� rivolta a 12 persone costituita da:";14/10/2015 00:00:00;22/3/2016 00:00:00;26686,50;0,50;"008036";"008";"109";"31/10/2022"
"FSE";"2015-4209/RER";"E99J15000370006";"80152680379";"IRECOOP EMILIA-ROMAGNA SOCIETA' COOPERATIVA";"FORMAZIONE PER L'INCLUSIONE SOCIO LAVORATIVA DI PERSONE IN ESECUZIONE PENALE- CASA CIRCONDARIALE DI MODENA";"FORMAZIONE PER L'INCLUSIONE SOCIO LAVORATIVA DI PERSONE IN ESECUZIONE PENALE- CASA CIRCONDARIALE DI MODENA, attivit� rivolta a 34 persone costituita da:";26/10/2015 00:00:00;10/8/2017 00:00:00;106043,00;0,50;"008036";"008";"109";"31/10/2022"
"FSE";"2015-4210/RER";"E99J15000380006";"80152680379";"IRECOOP EMILIA-ROMAGNA SOCIETA' COOPERATIVA";"FORMAZIONE PER L'INCLUSIONE SOCIO LAVORATIVA DI PERSONE IN ESECUZIONE PENALE- CASA DI LAVORO DI CASTELFRANCO EMILIA";"FORMAZIONE PER L'INCLUSIONE SOCIO LAVORATIVA DI PERSONE IN ESECUZIONE PENALE- CASA DI LAVORO DI CASTELFRANCO EMILIA, attivit� rivolta a 18 persone costituita da:";5/11/2015 00:00:00;15/6/2016 00:00:00;65884,00;0,50;"008036";"008";"109";"31/10/2022"
"FSE";"2015-4211/RER";"E49J15000300006";"80152680379";"IRECOOP EMILIA-ROMAGNA SOCIETA' COOPERATIVA";"RistorAzione: percorso per l'inclusione lavorativa a Villa Bianconi";"RistorAzione: percorso per l'inclusione lavorativa a Villa Bianconi, attivit� rivolta a 4 persone costituita da:";29/10/2015 00:00:00;29/7/2016 00:00:00;15511,20;0,50;"008037";"008";"109";"31/10/2022"
"FSE";"2015-4212/RER";"E99J15000390006";"80152680379";"IRECOOP EMILIA-ROMAGNA SOCIETA' COOPERATIVA";"OPERATORE DEL VERDE_UC 1 e UC 4";"OPERATORE DEL VERDE_UC 1 e UC 4, attivit� rivolta a 12 persone costituita da:";14/10/2015 00:00:00;23/6/2016 00:00:00;38100,50;0,50;"008034";"008";"109";"31/10/2022"
"FSE";"2015-3711/RER";"E39J15001040002";"80152680379";"IRECOOP EMILIA-ROMAGNA SOCIETA' COOPERATIVA";"AZIONI DI INCLUSIONE  - AREA URBANA DI FORLI' - AZ. 1";"AZIONI DI INCLUSIONE  - AREA URBANA DI FORLI' - AZ. 1, attivit� rivolta a 15 persone costituita da:";11/11/2015 00:00:00;31/3/2017 00:00:00;76333,50;0,50;"008040";"008";"109";"31/10/2022"
"FSE";"2015-3712/RER";"E39J15001050002";"80152680379";"IRECOOP EMILIA-ROMAGNA SOCIETA' COOPERATIVA";"Azioni di inclusione sociale e lavorativa 
per l'Area Urbana di Ravenna - AZIONE 1";"Azioni di inclusione sociale e lavorativa";16/11/2015 00:00:00;30/9/2017 00:00:00;150734,30;0,50;"008039";"008";"109";"31/10/2022"
"FSE";"2015-3713/RER";"E39J15001360002";"80152680379";"IRECOOP EMILIA-ROMAGNA SOCIETA' COOPERATIVA";"Azioni di inclusione sociale e lavorativa nell'Area Urbana di Ravenna - AZIONE 2";"Azioni di inclusione sociale e lavorativa nell'Area Urbana di Ravenna - AZIONE 2, attivit� rivolta a 12 persone costituita da:";16/11/2015 00:00:00;26/7/2017 00:00:00;49455,70;0,50;"008039";"008";"109";"31/10/2022"
"FSE";"2015-3715/RER";"E39J15001370002";"80152680379";"IRECOOP EMILIA-ROMAGNA SOCIETA' COOPERATIVA";"Operatore Agricolo- Area urbana Rimini- Azione 2";"Operatore Agricolo- Area urbana Rimini- Azione 2, attivit� rivolta a 12 persone costituita da:";1/3/2016 00:00:00;21/6/2016 00:00:00;37198,65;0,50;"008099";"008";"109";"31/10/2022"
"FSE";"2015-3716/RER";"E39J15001380002";"80152680379";"IRECOOP EMILIA-ROMAGNA SOCIETA' COOPERATIVA";"AZIONI DI INCLUSIONE SOCIALE  - AREA URBANA DI FORLI� - AZ. 2";"AZIONI DI INCLUSIONE SOCIALE  - AREA URBANA DI FORLI� - AZ. 2, attivit� rivolta a 12 persone costituita da:";11/11/2015 00:00:00;31/3/2017 00:00:00;52337,00;0,50;"008040";"008";"109";"31/10/2022"
"FSE";"2015-3751/RER";"E99J15000790002";"01940320342";"AGRIFORM Soc.Cons. a r.l.";"OPERATORE DI PANIFICIO E PASTIFICIO";"OPERATORE DI PANIFICIO E PASTIFICIO, attivit� rivolta a 12 persone costituita da un percorso di formazione di accesso all'area professionale di Progettazione e produzione alimentare finalizzato all'acquisizione di un certificato di competenze di Operatore di panificio e pastificio. Il corso, della durata di 350 ore, � rivolto a 12 persone.";9/11/2015 00:00:00;29/6/2016 00:00:00;52962,50;0,50;"008034";"008";"109";"31/10/2022"
"FSE";"2015-3755/RER";"E89J15000560002";"00453310351";"I.F.O.A. Istituto Formazione Operatori Aziendali";"Azioni di orientamento, formazione e tirocinio per l�inserimento lavorativo di persone in condizione di svantaggio (Art. 4 della Legge 381/91) nella zona di Sassuolo e Vignola";"Azioni di orientamento, formazione e tirocinio per l�inserimento lavorativo di persone in condizione di svantaggio (Art. 4 della Legge 381/91) nella zona di Sassuolo e Vignola, attivit� rivolta a 16 persone costituita da:";16/11/2015 00:00:00;31/12/2017 00:00:00;66578,77;0,50;"008036";"008";"109";"31/10/2022"
"FSE";"2015-3761/RER";"E99J15000720002";"02291500409";"Fondazione En.A.I.P.  S. Zavatta Rimini";"NUOVE OPPORTUNITA' DI LAVORO";"NUOVE OPPORTUNITA' DI LAVORO, attivit� rivolta a 50 persone costituita da:";6/10/2015 00:00:00;30/6/2017 00:00:00;124240,00;0,50;"008099";"008";"109";"31/10/2022"
"FSE";"2015-3762/RER";"E99J15000800002";"02291500409";"Fondazione En.A.I.P.  S. Zavatta Rimini";"OPERATORE POLIVALENTE";"OPERATORE POLIVALENTE, attivit� rivolta a 36 persone costituita da:";9/11/2015 00:00:00;31/12/2016 00:00:00;189130,34;0,50;"008099";"008";"109";"31/10/2022"
"FSE";"2015-3763/RER";"E99J15001040002";"02291500409";"Fondazione En.A.I.P.  S. Zavatta Rimini";"FORMAZIONE MIRATA";"FORMAZIONE MIRATA, attivit� rivolta a 12 persone costituita da:";12/10/2015 00:00:00;31/12/2016 00:00:00;59534,50;0,50;"008099";"008";"109";"31/10/2022"
"FSE";"2015-3764/RER";"E99J15000730002";"02291500409";"Fondazione En.A.I.P.  S. Zavatta Rimini";"NUOVE  OPPORTUNITA' DI LAVORO (ALTA VALMARECCHIA)";"NUOVE  OPPORTUNITA' DI LAVORO (ALTA VALMARECCHIA), attivit� rivolta a 10 persone costituita da:";26/10/2015 00:00:00;31/12/2016 00:00:00;27101,50;0,50;"008099";"008";"109";"31/10/2022"
"FSE";"2015-3765/RER";"E99J15000740002";"02291500409";"Fondazione En.A.I.P.  S. Zavatta Rimini";"FORMAZIONE PER IL LAVORO";"FORMAZIONE PER IL LAVORO, attivit� rivolta a 60 persone costituita da:";2/11/2015 00:00:00;29/12/2016 00:00:00;260024,45;0,50;"008099";"008";"109";"31/10/2022"
"FSE";"2015-3771/RER";"E39J15002380002";"91204630379";"E.N.F.A.P. Emilia-Romagna - Ente per la Formazione e l'Addestramento Professionale";"Azione per la formazione e l�inserimento lavorativo nel settore tessile, abbigliamento, confezione e maglieria";"Azione per la formazione e l�inserimento lavorativo nel settore tessile, abbigliamento, confezione e maglieria, attivit� rivolta a 20 persone costituita da:";21/9/2015 00:00:00;27/12/2016 00:00:00;111004,50;0,50;"008037";"008";"109";"31/10/2022"
"FSE";"2015-3772/RER";"E39J15001390002";"91204630379";"E.N.F.A.P. Emilia-Romagna - Ente per la Formazione e l'Addestramento Professionale";"Azione per la formazione e l�inserimento lavorativo nell�area professionale ""progettazione e produzione tessile ed abbigliamento confezione e maglieria""";"Azione per la formazione e l�inserimento lavorativo nell�area professionale progettazione e produzione tessile ed abbigliamento confezione e maglieria, attivit� rivolta a 24 persone costituita da:";21/9/2015 00:00:00;20/12/2016 00:00:00;154511,53;0,50;"008037";"008";"109";"31/10/2022"
"FSE";"2015-3773/RER";"E89J15000570002";"02493650358";"DEMETRA FORMAZIONE S.R.L.";"INTERVENTI FORMATIVI A FAVORE DI SOGGETTI SVANTAGGIATI SULL�AREA URBANA DI PIACENZA";"INTERVENTI FORMATIVI A FAVORE DI SOGGETTI SVANTAGGIATI SULL�AREA URBANA DI PIACENZA, attivit� rivolta a 6 persone costituita da:";10/2/2016 00:00:00;15/11/2016 00:00:00;28041,36;0,50;"008033";"008";"109";"31/10/2022"
"FSE";"2015-3774/RER";"E89J15000580002";"02493650358";"DEMETRA FORMAZIONE S.R.L.";"INTERVENTI FORMATIVI A FAVORE DI PERSONE IN CONDIZIONE DI SVANTAGGIO SOCIALE SULL�AREA URBANA DI PARMA - AZIONE N. 1";"INTERVENTI FORMATIVI A FAVORE DI PERSONE IN CONDIZIONE DI SVANTAGGIO SOCIALE SULL�AREA URBANA DI PARMA - AZIONE N. 1, attivit� rivolta a 36 persone costituita da:";12/11/2015 00:00:00;31/12/2017 00:00:00;117949,42;0,50;"008034";"008";"109";"31/10/2022"
"FSE";"2015-3775/RER";"E89J15000710002";"02493650358";"DEMETRA FORMAZIONE S.R.L.";"INTERVENTI FORMATIVI A FAVORE DI PERSONE IN CONDIZIONE DI SVANTAGGIO SOCIALE SULL�AREA URBANA DI PARMA - AZIONE N. 2";"INTERVENTI FORMATIVI A FAVORE DI PERSONE IN CONDIZIONE DI SVANTAGGIO SOCIALE SULL�AREA URBANA DI PARMA - AZIONE N. 2, attivit� rivolta a 12 persone costituita da:";13/11/2015 00:00:00;31/12/2016 00:00:00;50942,25;0,50;"008034";"008";"109";"31/10/2022"
"FSE";"2015-3776/RER";"E89J15000590002";"02493650358";"DEMETRA FORMAZIONE S.R.L.";"INTERVENTI FORMATIVI A FAVORE DI SOGGETTI SVANTAGGIATI SULL�AREA DEL CRATERE";"INTERVENTI FORMATIVI A FAVORE DI SOGGETTI SVANTAGGIATI SULL�AREA DEL CRATERE, attivit� rivolta a 6 persone costituita da:";16/11/2015 00:00:00;15/11/2016 00:00:00;26055,80;0,50;"008035";"008";"109";"31/10/2022"
"FSE";"2015-3777/RER";"E89J15000600002";"02493650358";"DEMETRA FORMAZIONE S.R.L.";"INTERVENTI FORMATIVI A FAVORE DI PERSONE IN CONDIZIONE DI SVANTAGGIO SOCIALE SULL�AREA URBANA DI REGGIO EMILIA";"INTERVENTI FORMATIVI A FAVORE DI PERSONE IN CONDIZIONE DI SVANTAGGIO SOCIALE SULL�AREA URBANA DI REGGIO EMILIA, attivit� rivolta a 21 persone costituita da:";13/11/2015 00:00:00;5/5/2017 00:00:00;95947,38;0,50;"008035";"008";"109";"31/10/2022"
"FSE";"2015-3778/RER";"E89J15000610002";"02493650358";"DEMETRA FORMAZIONE S.R.L.";"INTERVENTI FORMATIVI A FAVORE DI PERSONE IN CONDIZIONE DI SVANTAGGIO SOCIALE SULL�AREA URBANA DI MODENA";"INTERVENTI FORMATIVI A FAVORE DI PERSONE IN CONDIZIONE DI SVANTAGGIO SOCIALE SULL�AREA URBANA DI MODENA, attivit� rivolta a 24 persone costituita da:";12/11/2015 00:00:00;29/12/2016 00:00:00;96789,10;0,50;"008036";"008";"109";"31/10/2022"
"FSE";"2015-3779/RER";"E89J15000620002";"02493650358";"DEMETRA FORMAZIONE S.R.L.";"INTERVENTI FORMATIVI A FAVORE DI RICHIEDENTI ASILO SULL�AREA URBANA DI FORLI�";"INTERVENTI FORMATIVI A FAVORE DI RICHIEDENTI ASILO SULL�AREA URBANA DI FORLI�, attivit� rivolta a 30 persone costituita da:";21/10/2015 00:00:00;30/11/2017 00:00:00;138984,30;0,50;"008040";"008";"109";"31/10/2022"
"FSE";"2015-3780/RER";"E89J15000630002";"02493650358";"DEMETRA FORMAZIONE S.R.L.";"INTERVENTI FORMATIVI A FAVORE DI SOGGETTI SVANTAGGIATI SULL�AREA TERRITORIALE DI CESENA";"INTERVENTI FORMATIVI A FAVORE DI SOGGETTI SVANTAGGIATI SULL�AREA TERRITORIALE DI CESENA, attivit� rivolta a 30 persone costituita da:";5/11/2015 00:00:00;30/11/2017 00:00:00;137475,15;0,50;"008040";"008";"109";"31/10/2022"
"FSE";"2015-3781/RER";"E89J15001030002";"02493650358";"DEMETRA FORMAZIONE S.R.L.";"INTERVENTI FORMATIVI A FAVORE DI PERSONE IN CONDIZIONE DI SVANTAGGIO SOCIALE SULL�AREA URBANA DI RAVENNA";"INTERVENTI FORMATIVI A FAVORE DI PERSONE IN CONDIZIONE DI SVANTAGGIO SOCIALE SULL�AREA URBANA DI RAVENNA, attivit� rivolta a 15 persone costituita da:";2/11/2015 00:00:00;30/11/2017 00:00:00;72072,90;0,50;"008039";"008";"109";"31/10/2022"
"FSE";"2015-3782/RER";"E89J15000640002";"02493650358";"DEMETRA FORMAZIONE S.R.L.";"INTERVENTI FORMATIVI A FAVORE DI SOGGETTI SVANTAGGIATI E RICHIEDENTI ASILO SULL�AREA URBANA DI RIMINI";"INTERVENTI FORMATIVI A FAVORE DI SOGGETTI SVANTAGGIATI E RICHIEDENTI ASILO SULL�AREA URBANA DI RIMINI, attivit� rivolta a 24 persone costituita da:";5/11/2015 00:00:00;16/11/2016 00:00:00;106986,38;0,50;"008099";"008";"109";"31/10/2022"
"FSE";"2015-3783/RER";"E89J15000650002";"80001790353";"Centro di formazione professionale Alberto Simonini";"ADDETTO ALL'ASSEMBLAGGIO DI COMPONENTI ELETTRICO-ELETTRONICI";"ADDETTO ALL'ASSEMBLAGGIO DI COMPONENTI ELETTRICO-ELETTRONICI, attivit� rivolta a 8 persone costituita da:";9/11/2015 00:00:00;8/11/2016 00:00:00;35166,00;0,50;"008035";"008";"109";"31/10/2022"
"FSE";"2015-3784/RER";"E89J15000720002";"80001790353";"Centro di formazione professionale Alberto Simonini";"OPERATORE DI PASTA FRESCA E PANIFICIO";"OPERATORE DI PASTA FRESCA E PANIFICIO, attivit� rivolta a 12 persone costituita da:";16/11/2015 00:00:00;20/6/2016 00:00:00;52832,95;0,50;"008035";"008";"109";"31/10/2022"
"FSE";"2016-5330/RER";"E39D16003060002";"03549630964";"RANDSTAD HR SOLUTIONS SRL";"Certificazione dei Tirocini ai sensi LR 17/2005 e ss.mm. n. 1 - OBIETTIVO LAVORO FORMAZIONE SRL";"Certificazione dei Tirocini ai sensi LR 17/2005 e ss.mm. n. 1 - OBIETTIVO LAVORO FORMAZIONE SRL";3/4/2015 00:00:00;11/1/2017 00:00:00;9372,00;0,50;"008P08";"008";"102";"31/10/2022"
"FSE";"2016-5331/RER";"E39D16003070002";"01943460343";"ECIPAR di Parma Soc. Consortile a r.l.";"Certificazione dei Tirocini ai sensi LR 17/2005 e ss.mm. n. 1 - ECIPAR di Parma Soc. Consortile a r.l.";"Certificazione dei Tirocini ai sensi LR 17/2005 e ss.mm. n. 1 - ECIPAR di Parma Soc. Consortile a r.l.";8/4/2015 00:00:00;25/10/2017 00:00:00;9585,00;0,50;"008034";"008";"102";"31/10/2022"
"FSE";"2016-5332/RER";"E39D16003080002";"92019430377";"SENECA SRL IMPRESA SOCIALE";"Certificazione dei Tirocini ai sensi LR 17/2005 e ss.mm. n. 1 - SENECA";"Certificazione dei Tirocini ai sensi LR 17/2005 e ss.mm. n. 1 - SENECA";7/4/2015 00:00:00;26/7/2018 00:00:00;7029,00;0,50;"008037";"008";"102";"31/10/2022"
"FSE";"2016-5333/RER";"E39D16003090002";"01186040331";"ECIPAR  societ� consortile a responsabilit� limitata - Formazione e servizi innovativi per l'artigianato e le P.M.I.";"Certificazione dei Tirocini ai sensi LR 17/2005 e ss.mm. n. 1 - ECIPAR  societ� consortile a responsabilit� limitata - Formazione e servizi innovativi per l'artigianato e le P.M.I.";"Certificazione dei Tirocini ai sensi LR 17/2005 e ss.mm. n. 1 - ECIPAR  societ� consortile a responsabilit� limitata - Formazione e servizi innovativi per l'artigianato e le P.M.I.";13/4/2015 00:00:00;3/12/2018 00:00:00;1704,00;0,50;"008033";"008";"102";"31/10/2022"
"FSE";"2016-5334/RER";"E39D16003100002";"03462620406";"Associazione San Patrignano Scuola e Formazione";"Certificazione dei Tirocini ai sensi LR 17/2005 e ss.mm. n. 1 - Associazione San Patrignano Scuola e Formazione";"Certificazione dei Tirocini ai sensi LR 17/2005 e ss.mm. n. 1 - Associazione San Patrignano Scuola e Formazione";3/4/2015 00:00:00;25/7/2017 00:00:00;4686,00;0,50;"008099";"008";"102";"31/10/2022"
"FSE";"2016-5335/RER";"E39D16003110002";"00427620364";"Universit� degli Studi di Modena e Reggio-Emilia";"Certificazione dei Tirocini ai sensi LR 17/2005 e ss.mm. n. 1 - Universit� degli Studi di Modena e Reggio-Emilia";"Certificazione dei Tirocini ai sensi LR 17/2005 e ss.mm. n. 1 - Universit� degli Studi di Modena e Reggio-Emilia";9/4/2015 00:00:00;19/4/2018 00:00:00;6177,00;0,50;"008036";"008";"102";"31/10/2022"
"FSE";"2016-5337/RER";"E39D16003130002";"01093470381";"ISCOM Ferrara";"Certificazione dei Tirocini ai sensi LR 17/2005 e ss.mm. n. 1 - ISCOM Ferrara";"Certificazione dei Tirocini ai sensi LR 17/2005 e ss.mm. n. 1 - ISCOM Ferrara";8/4/2015 00:00:00;20/9/2017 00:00:00;7029,00;0,50;"008038";"008";"102";"31/10/2022"
"FSE";"2016-5339/RER";"E39D16003150002";"04051790378";"Nuovo Cescot Emilia-Romagna s.c.r.l.";"Certificazione dei Tirocini ai sensi LR 17/2005 e ss.mm. n. 1 - Nuovo Cescot Emilia-Romagna s.c.r.l.";"Certificazione dei Tirocini ai sensi LR 17/2005 e ss.mm. n. 1 - Nuovo Cescot Emilia-Romagna s.c.r.l.";15/4/2015 00:00:00;2/10/2018 00:00:00;5964,00;0,50;"008037";"008";"102";"31/10/2022"
"FSE";"2016-5340/RER";"E39D16003160002";"00928150382";"CE.S.CO.T. Ferrara Soc. Cooperativa";"Certificazione dei Tirocini ai sensi LR 17/2005 e ss.mm. n. 1 - CE.S.CO.T. Ferrara Soc. Cooperativa";"Certificazione dei Tirocini ai sensi LR 17/2005 e ss.mm. n. 1 - CE.S.CO.T. Ferrara Soc. Cooperativa";13/4/2015 00:00:00;31/8/2017 00:00:00;2130,00;0,50;"008038";"008";"102";"31/10/2022"
"FSE";"2016-5341/RER";"E39D16003170002";"01033670397";"Cescot - Ravenna - Centro sviluppo commercio turismo e terziario s.r.l.";"Certificazione dei Tirocini ai sensi LR 17/2005 e ss.mm. n. 1 - Cescot - Ravenna - Centro sviluppo commercio turismo e terziario s.r.l.";"Certificazione dei Tirocini ai sensi LR 17/2005 e ss.mm. n. 1 - Cescot - Ravenna - Centro sviluppo commercio turismo e terziario s.r.l.";11/4/2015 00:00:00;31/1/2018 00:00:00;10011,00;0,50;"008039";"008";"102";"31/10/2022"
"FSE";"2016-5342/RER";"E39D16003180002";"01118260379";"MARGOTTA - S.R.L.";"Certificazione dei Tirocini ai sensi LR 17/2005 e ss.mm. n. 1 - MARGOTTA - S.R.L.";"Certificazione dei Tirocini ai sensi LR 17/2005 e ss.mm. n. 1 - MARGOTTA - S.R.L.";16/4/2015 00:00:00;13/3/2018 00:00:00;2343,00;0,50;"008037";"008";"102";"31/10/2022"
"FSE";"2016-5343/RER";"E39D16003190002";"01656180351";"ECIPAR S.C.R.L. Formazione e Servizi Innovativi per l'Artigianato P.M.I.";"Certificazione dei Tirocini ai sensi LR 17/2005 e ss.mm. n. 1 - ECIPAR S.C.R.L. Formazione e Servizi Innovativi per l'Artigianato P.M.I.";"Certificazione dei Tirocini ai sensi LR 17/2005 e ss.mm. n. 1 - ECIPAR S.C.R.L. Formazione e Servizi Innovativi per l'Artigianato P.M.I.";23/4/2015 00:00:00;9/8/2017 00:00:00;639,00;0,50;"008035";"008";"102";"31/10/2022"
"FSE";"2016-5344/RER";"E39D16003200002";"01335580385";"Gruppo Scientifico Centese - Societ� coop. a r.l.";"Certificazione dei Tirocini ai sensi LR 17/2005 e ss.mm. n. 1 - Gruppo Scientifico Centese - Societ� coop. a r.l.";"Certificazione dei Tirocini ai sensi LR 17/2005 e ss.mm. n. 1 - Gruppo Scientifico Centese - Societ� coop. a r.l.";11/5/2015 00:00:00;22/5/2017 00:00:00;426,00;0,50;"008038";"008";"102";"31/10/2022"
"FSE";"2016-5345/RER";"E39D16003210002";"80150860379";"Associazione CNOS/FAP Regione Emilia-Romagna";"Certificazione dei Tirocini ai sensi LR 17/2005 e ss.mm. n. 1 - Associazione CNOS/FAP Regione Emilia-Romagna";"Certificazione dei Tirocini ai sensi LR 17/2005 e ss.mm. n. 1 - Associazione CNOS/FAP Regione Emilia-Romagna";4/5/2015 00:00:00;6/12/2018 00:00:00;1278,00;0,50;"008037";"008";"102";"31/10/2022"
"FSE";"2016-5658/RER";"E99D16001490002";"04051790378";"Nuovo Cescot Emilia-Romagna s.c.r.l.";"TECNICO PER LA PROMOZIONE TURISTICA SPECIALIZZATO IN STRUMENTI WEB E SOCIAL";"TECNICO PER LA PROMOZIONE TURISTICA SPECIALIZZATO IN STRUMENTI WEB E SOCIAL, attivit� rivolta a 20 persone costituita da un percorso IFTS (Istruzione e Formazione Tecnica Superiore) afferente alla  specializzazione nazionale in Tecniche per la promozione di prodotti e servizi turistici con attenzione alle risorse, opportunit� ed eventi del territorio. Il corso, della durata di 800 ore, � rivolto a 20 persone. Prevede il rilascio di un certificato di specializzazione tecnica superiore (IFTS).";14/11/2016 00:00:00;25/7/2017 00:00:00;119164,60;0,50;"008099";"008";"118";"31/10/2022"
"FSE";"2016-5659/RER";"E39D16004540002";"04051790378";"Nuovo Cescot Emilia-Romagna s.c.r.l.";"TECNICO PER LA PROMOZIONE TURISTICA SPECIALIZZATO NELLO SVILUPPO DEL TURISMO ENO-GASTRONOMICO";"TECNICO PER LA PROMOZIONE TURISTICA SPECIALIZZATO NELLO SVILUPPO DEL TURISMO ENO-GASTRONOMICO, attivit� rivolta a 20 persone costituita da un percorso IFTS (Istruzione e Formazione Tecnica Superiore) afferente alla  specializzazione nazionale in Tecniche per la promozione di prodotti e servizi turistici con attenzione alle risorse, opportunit� ed eventi del territorio. Il corso, della durata di 800 ore, � rivolto a 20 persone. Prevede il rilascio di un certificato di specializzazione tecnica superiore (IFTS).";21/11/2016 00:00:00;13/9/2017 00:00:00;119329,00;0,50;"008037";"008";"118";"31/10/2022"
"FSE";"2016-5660/RER";"E99D16001500002";"02483780363";"FORMODENA - FORMAZIONE PROFESSIONALE PER I TERRITORI MODENESI SOC.CONS.A.R.L.";"Tecnico per la progettazione e realizzazione del prodotto moda";"Tecnico per la progettazione e realizzazione del prodotto moda, attivit� rivolta a 20 persone costituita da un percorso IFTS (Istruzione e Formazione Tecnica Superiore) afferente alla  specializzazione nazionale in Tecniche per la realizzazione artigianale di prodotti del made in Italy. Il corso, della durata di 800 ore, � rivolto a 20 persone. Prevede il rilascio di un certificato di specializzazione tecnica superiore (IFTS).";21/11/2016 00:00:00;28/9/2017 00:00:00;119996,00;0,50;"008036";"008";"118";"31/10/2022"
"FSE";"2016-5661/RER";"E39D16004550002";"80007510375";"Istituto per l'Istruzione Professionale dei Lavoratori Edili della Provincia di Bologna";"TECNICO DI GESTIONE DEL PROCESSO EDILE CON SPECIALIZZAZIONE IN RIGENERAZIONE URBANA E MANUTENZIONE DEL PATRIMONIO ESISTENTE";"TECNICO DI GESTIONE DEL PROCESSO EDILE CON SPECIALIZZAZIONE IN RIGENERAZIONE URBANA E MANUTENZIONE DEL PATRIMONIO ESISTENTE, attivit� rivolta a 20 persone costituita da un percorso IFTS (Istruzione e Formazione Tecnica Superiore) afferente alla  specializzazione nazionale in Tecniche di organizzazione e gestione del cantiere edile. Il corso, della durata di 800 ore, � rivolto a 20 persone. Prevede il rilascio di un certificato di specializzazione tecnica superiore (IFTS).";14/11/2016 00:00:00;14/7/2017 00:00:00;120950,00;0,50;"008037";"008";"118";"31/10/2022"
"FSE";"2016-5662/RER";"E19D16000870002";"02604400404";"TECHNE Societ� consortile a responsabilit� limitata";"Tecnico Superiore di Reti e Servizi per le Telecomunicazioni";"Tecnico Superiore di Reti e Servizi per le Telecomunicazioni, attivit� rivolta a 20 persone costituita da un percorso IFTS (Istruzione e Formazione Tecnica Superiore) afferente alla  specializzazione nazionale in Tecniche per l�integrazione dei sistemi e di apparati TLC. Il corso, della durata di 800 ore, � rivolto a 20 persone. Prevede il rilascio di un certificato di specializzazione tecnica superiore (IFTS).";30/11/2016 00:00:00;30/9/2017 00:00:00;111608,00;0,50;"008040";"008";"118";"31/10/2022"
"FSE";"2016-5663/RER";"E69D16000950002";"92013540395";"Il Sestante Romagna s.r.l.";"TECNICO PER LA PROGRAMMAZIONE DELLA PRODUZIONE E LA LOGISTICA";"TECNICO PER LA PROGRAMMAZIONE DELLA PRODUZIONE E LA LOGISTICA, attivit� rivolta a 20 persone costituita da un percorso IFTS (Istruzione e Formazione Tecnica Superiore) afferente alla  specializzazione nazionale in Tecniche per la programmazione della produzione e la logistica. Il corso, della durata di 800 ore, � rivolto a 20 persone. Prevede il rilascio di un certificato di specializzazione tecnica superiore (IFTS).";14/11/2016 00:00:00;17/11/2017 00:00:00;119426,98;0,50;"008039";"008";"118";"31/10/2022"
"FSE";"2016-5664/RER";"E89D16001210002";"01164570358";"CIS  Scuola per la Gestione d'Impresa Societ� consortile a responsabilit� limitata";"Tecnico per la programmazione della produzione e la logistica nelle aziende meccatroniche";"Tecnico per la programmazione della produzione e la logistica nelle aziende meccatroniche, attivit� rivolta a 20 persone costituita da un percorso IFTS (Istruzione e Formazione Tecnica Superiore) afferente alla  specializzazione nazionale in Tecniche per la programmazione della produzione e la logistica. Il corso, della durata di 800 ore, � rivolto a 20 persone. Prevede il rilascio di un certificato di specializzazione tecnica superiore (IFTS).";28/11/2016 00:00:00;8/11/2017 00:00:00;116060,00;0,50;"008035";"008";"118";"31/10/2022"
"FSE";"2016-5666/RER";"E89D16001220002";"00447280355";"Edili Reggio Emilia - Scuola - Societ� Cooperativa Sociale";"TECNICO DI PROGETTAZIONE SOSTENIBILE E GESTIONE INTEGRATA DEL PROGETTO EDILE CON METODOLOGIE INNOVATIVE";"TECNICO DI PROGETTAZIONE SOSTENIBILE E GESTIONE INTEGRATA DEL PROGETTO EDILE CON METODOLOGIE INNOVATIVE, attivit� rivolta a 20 persone costituita da un percorso IFTS (Istruzione e Formazione Tecnica Superiore) afferente alla  specializzazione nazionale in Tecniche innovative per l'edilizia. Il corso, della durata di 800 ore, � rivolto a 20 persone. Prevede il rilascio di un certificato di specializzazione tecnica superiore (IFTS).";10/11/2016 00:00:00;28/10/2017 00:00:00;124496,00;0,50;"008035";"008";"118";"31/10/2022"
"FSE";"2016-5885/RER";"E39D16004960002";"80004440337";"ENDO-FAP Don Orione Borgonovo - Formazione Aggiornamento Professionale";"Operatore grafico Iefp 2016/2018";"Operatore grafico Iefp 2016/2018, attivit� rivolta a 20 persone costituita da:";15/9/2016 00:00:00;28/6/2018 00:00:00;238693,00;0,50;"008033";"008";"103";"31/10/2022"
"FSE";"2016-5886/RER";"E99D16001980002";"02286531203";"Centro di Formazione Professionale Nazareno Societ� Cooperativa Sociale";"OPERATORE DELLA RISTORAZIONE - IeFP 2016/2018";"OPERATORE DELLA RISTORAZIONE - IeFP 2016/2018, attivit� rivolta a 88 persone costituita da:";15/9/2016 00:00:00;1/6/2018 00:00:00;1094792,00;0,50;"008036";"008";"103";"31/10/2022"
"FSE";"2016-5919/RER";"E99D16001990009";"02447460409";"ASSOFORM ROMAGNA S.C. a r.l.";"MAGGIOLI S.p.A. - PIANO PER LO SVILUPPO DELLE COMPETENZE E DELL'OCCUPAZIONE NEL SETTORE INFORMATICO";"MAGGIOLI S.p.A. - PIANO PER LO SVILUPPO DELLE COMPETENZE E DELL'OCCUPAZIONE NEL SETTORE INFORMATICO, attivit� rivolta a 24 persone costituita da:";13/9/2016 00:00:00;10/3/2017 00:00:00;90456,00;0,50;"008099";"008";"102";"31/10/2022"
"FSE";"2016-5965/RER";"E69D16001790002";"01306830397";"ANGELO PESCARINI SCUOLA ARTI E MESTIERI Societ� Consortile a responsabilit� limitata";"�PERCORSI A SUPPORTO DELLA TRANSIZIONE  SCUOLA-LAVORO PER GLI STUDENTI DELLE SCUOLE SECONDARIE DI 2� GRADO DELL�AREA DI RAVENNA�";"�PERCORSI A SUPPORTO DELLA TRANSIZIONE  SCUOLA-LAVORO PER GLI STUDENTI DELLE SCUOLE SECONDARIE DI 2� GRADO DELL�AREA DI RAVENNA�";21/2/2017 00:00:00;14/12/2017 00:00:00;57735,00;0,50;"008039";"008";"109";"31/10/2022"
"FSE";"2016-5966/RER";"E69J16000350002";"01306830397";"ANGELO PESCARINI SCUOLA ARTI E MESTIERI Societ� Consortile a responsabilit� limitata";"PERCORSI A SUPPORTO DELLA TRANSIZIONE  SCUOLA-LAVORO PER I GIOVANI DI RECENTE USCITA DALLA SCUOLA - AREA RAVENNATE";"PERCORSI A SUPPORTO DELLA TRANSIZIONE  SCUOLA-LAVORO PER I GIOVANI DI RECENTE USCITA DALLA SCUOLA - AREA RAVENNATE";19/12/2016 00:00:00;16/11/2017 00:00:00;32737,86;0,50;"008039";"008";"109";"31/10/2022"
"FSE";"2016-5969/RER";"E19D16001580002";"02338400407";"Fondazione En.A.I.P. Forl� - Cesena";"Transizione scuola-lavoro: Azioni di orientamento e formazione dei giovani - Area Urbana Cesena";"Transizione scuola-lavoro: Azioni di orientamento e formazione dei giovani - Area Urbana Cesena";14/12/2016 00:00:00;16/10/2017 00:00:00;68289,30;0,50;"008040";"008";"109";"31/10/2022"
"FSE";"2016-5970/RER";"E19J16000550002";"02338400407";"Fondazione En.A.I.P. Forl� - Cesena";"Transizione al lavoro: azioni integrate per l'occupabilit� dei giovani - Area Urbana Cesena";"Transizione al lavoro: azioni integrate per l'occupabilit� dei giovani - Area Urbana Cesena";14/2/2017 00:00:00;27/4/2018 00:00:00;28127,16;0,50;"008040";"008";"109";"31/10/2022"
"FSE";"2016-5972/RER";"E69D16001800002";"02604400404";"TECHNE Societ� consortile a responsabilit� limitata";"Interventi formativi finalizzati a favorire la transizione Scuola-Lavoro dei giovani";"Interventi formativi finalizzati a favorire la transizione Scuola-Lavoro dei giovani";12/12/2016 00:00:00;17/10/2017 00:00:00;63933,30;0,50;"008040";"008";"109";"31/10/2022"
"FSE";"2016-6721/RER";"E89D17000350007";"80061110377";"IAL Innovazione Apprendimento Lavoro Emilia Romagna S.r.l. Impresa Sociale";"Interventi formativi e di politica attiva del lavoro per le persone in condizioni di fragilit� e vulnerabilit� -  Azienda USL della ROMAGNA - Riccione";"Interventi formativi e di politica attiva del lavoro per le persone in condizioni di fragilit� e vulnerabilit� -  Azienda USL della ROMAGNA - Riccione";22/12/2017 00:00:00;3/5/2020 00:00:00;211710,71;0,50;"008099";"008";"109";"31/10/2022"
"FSE";"2016-6722/RER";"E99D17000450007";"02291500409";"Fondazione En.A.I.P.  S. Zavatta Rimini";"Interventi formativi e di politica attiva del lavoro per le persone in condizioni di fragilit� e vulnerabilit� -  Azienda USL della ROMAGNA - Rimini";"Interventi formativi e di politica attiva del lavoro per le persone in condizioni di fragilit� e vulnerabilit� -  Azienda USL della ROMAGNA - Rimini";15/12/2017 00:00:00;21/12/2019 00:00:00;433741,62;0,50;"008099";"008";"109";"31/10/2022"
"FSE";"2016-6723/RER";"E99D17000460007";"01955980352";"FONDAZIONE ENAIP DON GIANFRANCO MAGNANI";"Interventi formativi e di politica attiva del lavoro per le persone in condizioni di fragilit� e vulnerabilit� -  Azienda USL di REGGIO EMILIA - Castelnovo ne' Monti";"Interventi formativi e di politica attiva del lavoro per le persone in condizioni di fragilit� e vulnerabilit� -  Azienda USL di REGGIO EMILIA - Castelnovo ne' Monti";27/12/2017 00:00:00;30/6/2020 00:00:00;117408,00;0,50;"008035";"008";"109";"31/10/2022"
"FSE";"2016-6724/RER";"E69D17000490007";"01955980352";"FONDAZIONE ENAIP DON GIANFRANCO MAGNANI";"Interventi formativi e di politica attiva del lavoro per le persone in condizioni di fragilit� e vulnerabilit� -  Azienda USL di REGGIO EMILIA - Scandiano";"Interventi formativi e di politica attiva del lavoro per le persone in condizioni di fragilit� e vulnerabilit� -  Azienda USL di REGGIO EMILIA - Scandiano";14/12/2017 00:00:00;26/5/2021 00:00:00;300938,36;0,50;"008035";"008";"109";"31/10/2022"
"FSE";"2016-6726/RER";"E59D17000410007";"02020330342";"FORMA FUTURO Soc.Cons. r.l.";"Interventi formativi e di politica attiva del lavoro per le persone in condizioni di fragilit� e vulnerabilit� - Azienda USL di PARMA - Fidenza";"Interventi formativi e di politica attiva del lavoro per le persone in condizioni di fragilit� e vulnerabilit� - Azienda USL di PARMA - Fidenza";22/12/2017 00:00:00;23/12/2019 00:00:00;522584,53;0,50;"008034";"008";"109";"31/10/2022"
"FSE";"2016-6727/RER";"E89D17000310007";"02020330342";"FORMA FUTURO Soc.Cons. r.l.";"Interventi formativi e di politica attiva del lavoro per le persone in condizioni di fragilit� e vulnerabilit� - Azienda USL di PARMA - Valli Taro e Ceno";"Interventi formativi e di politica attiva del lavoro per le persone in condizioni di fragilit� e vulnerabilit� - Azienda USL di PARMA - Valli Taro e Ceno";21/12/2017 00:00:00;27/12/2019 00:00:00;205222,87;0,50;"008034";"008";"109";"31/10/2022"
"FSE";"2016-6728/RER";"E19D17000580007";"02078610355";"Centro Studio e Lavoro La Cremeria s.r.l.";"Interventi formativi e di politica attiva del lavoro per le persone in condizioni di fragilit� e vulnerabilit� - Azienda USL di REGGIO EMILIA - Montecchio Emilia";"Interventi formativi e di politica attiva del lavoro per le persone in condizioni di fragilit� e vulnerabilit� - Azienda USL di REGGIO EMILIA - Montecchio Emilia";21/12/2017 00:00:00;9/12/2019 00:00:00;231327,66;0,50;"008035";"008";"109";"31/10/2022"
"FSE";"2016-6729/RER";"E49D17000550007";"02078610355";"Centro Studio e Lavoro La Cremeria s.r.l.";"Interventi formativi e di politica attiva del lavoro per le persone in condizioni di fragilit� e vulnerabilit� -  Azienda USL di REGGIO EMILIA - Correggio";"Interventi formativi e di politica attiva del lavoro per le persone in condizioni di fragilit� e vulnerabilit� -  Azienda USL di REGGIO EMILIA - Correggio";20/12/2017 00:00:00;29/4/2021 00:00:00;138013,26;0,50;"008035";"008";"109";"31/10/2022"
"FSE";"2016-6731/RER";"E59D17000430007";"01748791207";"Futura societ� consortile a responsabilit� limitata";"Interventi formativi e di politica attiva del lavoro per le persone in condizioni di fragilit� e vulnerabilit� -  Azienda USL di BOLOGNA - Pianura Ovest";"Interventi formativi e di politica attiva del lavoro per le persone in condizioni di fragilit� e vulnerabilit� -  Azienda USL di BOLOGNA - Pianura Ovest";12/12/2017 00:00:00;30/6/2020 00:00:00;248367,36;0,50;"008037";"008";"109";"31/10/2022"
"FSE";"2016-6732/RER";"E79D17000290007";"01748791207";"Futura societ� consortile a responsabilit� limitata";"Interventi formativi e di politica attiva del lavoro per le persone in condizioni di fragilit� e vulnerabilit� -  Azienda USL di BOLOGNA - Pianura Est";"Interventi formativi e di politica attiva del lavoro per le persone in condizioni di fragilit� e vulnerabilit� -  Azienda USL di BOLOGNA - Pianura Est";15/12/2017 00:00:00;2/11/2020 00:00:00;379880,76;0,50;"008037";"008";"109";"31/10/2022"
"FSE";"2016-6733/RER";"E89D17000320007";"80152680379";"IRECOOP EMILIA-ROMAGNA SOCIETA' COOPERATIVA";"Interventi formativi e di politica attiva del lavoro per le persone in condizioni di fragilit� e vulnerabilit� - Azienda USL di REGGIO EMILIA - Reggio Emilia";"Interventi formativi e di politica attiva del lavoro per le persone in condizioni di fragilit� e vulnerabilit� - Azienda USL di REGGIO EMILIA - Reggio Emilia";22/12/2017 00:00:00;30/6/2021 00:00:00;627649,21;0,50;"008035";"008";"109";"31/10/2022"
"FSE";"2016-6734/RER";"E99D17000400007";"80152680379";"IRECOOP EMILIA-ROMAGNA SOCIETA' COOPERATIVA";"Interventi formativi e di politica attiva del lavoro per le persone in condizioni di fragilit� e vulnerabilit� - Azienda USL di PARMA - Parma Citt�";"Interventi formativi e di politica attiva del lavoro per le persone in condizioni di fragilit� e vulnerabilit� - Azienda USL di PARMA - Parma Citt�";20/12/2017 00:00:00;29/11/2019 00:00:00;1183754,20;0,50;"008034";"008";"109";"31/10/2022"
"FSE";"2016-7015/RER";"E89D16002630001";"01118260379";"MARGOTTA - S.R.L.";"Certificazione dei Tirocini ai sensi LR 17/2005 e ss.mm. n. 2 - MARGOTTA - S.R.L.";"Certificazione dei Tirocini ai sensi LR 17/2005 e ss.mm. n. 2 - MARGOTTA - S.R.L.";1/9/2015 00:00:00;12/6/2017 00:00:00;213,00;0,50;"008037";"008";"102";"31/10/2022"
"FSE";"2016-7016/RER";"E39D16007100001";"01139920332";"EN.A.I.P. DELLA PROVINCIA DI PIACENZA";"Certificazione dei Tirocini ai sensi LR 17/2005 e ss.mm. n. 2 - EN.A.I.P. DELLA PROVINCIA DI PIACENZA";"Certificazione dei Tirocini ai sensi LR 17/2005 e ss.mm. n. 2 - EN.A.I.P. DELLA PROVINCIA DI PIACENZA";16/7/2014 00:00:00;15/1/2018 00:00:00;1704,00;0,50;"008033";"008";"102";"31/10/2022"
"FSE";"2016-7018/RER";"E19D16002220001";"02604400404";"TECHNE Societ� consortile a responsabilit� limitata";"Certificazione dei Tirocini ai sensi LR 17/2005 e ss.mm. n. 2 - TECHNE Societ� consortile a responsabilit� limitata";"Certificazione dei Tirocini ai sensi LR 17/2005 e ss.mm. n. 2 - TECHNE Societ� consortile a responsabilit� limitata";8/10/2014 00:00:00;16/1/2019 00:00:00;674,50;0,50;"008040";"008";"102";"31/10/2022"
"FSE";"2016-7021/RER";"E39D17000390009";"03549630964";"RANDSTAD HR SOLUTIONS SRL";"PIANO PER LO SVILUPPO DELLE COMPETENZE E DELL'OCCUPAZIONE NEL SETTORE ENOGASTRONOMICO";"PIANO PER LO SVILUPPO DELLE COMPETENZE E DELL'OCCUPAZIONE NEL SETTORE ENOGASTRONOMICO, attivit� rivolta a 132 persone costituita da:";19/6/2017 00:00:00;30/11/2017 00:00:00;399382,99;0,50;"008037";"008";"102";"31/10/2022"
"FSE";"2016-7288/RER";"E99I16000160007";"00829580364";"Iscom formazione";"Promozione e certificazione dei Tirocini - YEI provvedimenti 27 - 34";"Promozione e certificazione dei Tirocini - YEI provvedimenti 27 - 34";15/6/2015 00:00:00;5/10/2018 00:00:00;81586,71;0,50;"008036";"008";"103";"31/10/2022"
"FSE";"2016-7289/RER";"E99I16000200007";"02020330342";"FORMA FUTURO Soc.Cons. r.l.";"Promozione e certificazione dei Tirocini - YEI provvedimenti 27 - 34";"Promozione e certificazione dei Tirocini - YEI provvedimenti 27 - 34";2/11/2015 00:00:00;7/9/2017 00:00:00;1689,00;0,50;"008034";"008";"103";"31/10/2022"
"FSE";"2016-7290/RER";"E89I16000030007";"01033690403";"CERCAL S.P.A. CONSORTILE";"Promozione e certificazione dei Tirocini - YEI provvedimenti 27 - 34";"Promozione e certificazione dei Tirocini - YEI provvedimenti 27 - 34";21/12/2015 00:00:00;11/4/2019 00:00:00;6230,00;0,50;"008040";"008";"103";"31/10/2022"
"FSE";"2016-7291/RER";"E39I16000270007";"03109320378";"Istituto per lo sviluppo del commercio e del turismo dell'Emilia-Romagna - Iscom Emilia-Romagna";"Promozione e certificazione dei Tirocini - YEI provvedimenti 27 - 34";"Promozione e certificazione dei Tirocini - YEI provvedimenti 27 - 34";26/6/2015 00:00:00;23/12/2020 00:00:00;163127,00;0,50;"008037";"008";"103";"31/10/2022"
"FSE";"2016-7292/RER";"E79I16000030007";"04260000379";"FORM.ART. Societ� Consortile a r.l.";"Promozione e certificazione dei Tirocini - YEI provvedimenti 27 - 34";"Promozione e certificazione dei Tirocini - YEI provvedimenti 27 - 34";24/3/2015 00:00:00;17/12/2018 00:00:00;459240,25;0,50;"008037";"008";"103";"31/10/2022"
"FSE";"2015-3785/RER";"E89J15000660002";"80001790353";"Centro di formazione professionale Alberto Simonini";"ADDETTO ALLA SALDATURA";"ADDETTO ALLA SALDATURA, attivit� rivolta a 10 persone costituita da:";20/10/2015 00:00:00;19/10/2016 00:00:00;38254,00;0,50;"008035";"008";"109";"31/10/2022"
"FSE";"2015-3786/RER";"E89J15000670002";"80001790353";"Centro di formazione professionale Alberto Simonini";"ADDETTO AI SERVIZI DI  PULIZIA";"ADDETTO AI SERVIZI DI  PULIZIA, attivit� rivolta a 8 persone costituita da:";26/10/2015 00:00:00;25/10/2016 00:00:00;34748,00;0,50;"008035";"008";"109";"31/10/2022"
"FSE";"2015-3787/RER";"E69J15000630002";"02138670399";"Ecipar di Ravenna S.R.L.";"INCLUDENDO: PERCORSI FORMATIVI PER FAVORIRE L�INSERIMENTO NEI CONTESTI PRODUTTIVI DELL�AREA URBANA DI RAVENNA";"INCLUDENDO: PERCORSI FORMATIVI PER FAVORIRE L�INSERIMENTO NEI CONTESTI PRODUTTIVI DELL�AREA URBANA DI RAVENNA, attivit� rivolta a 12 persone costituita da un percorso di formazione di accesso all'area professionale di Logistica industriale, del trasporto e spedizione finalizzato all'acquisizione di un certificato di competenze di Operatore di magazzino merci. Il corso, della durata di 200 ore, � rivolto a 12 persone.";16/2/2016 00:00:00;18/5/2016 00:00:00;30818,36;0,50;"008039";"008";"109";"31/10/2022"
"FSE";"2015-3788/RER";"E69J15000640002";"02138670399";"Ecipar di Ravenna S.R.L.";"PROGETTI DI INCLUSIONE PER IL TERRITORIO FAENTINO. OPERATORE DEL LEGNO PER IL RIUSO ED IL RICICLO.";"PROGETTI DI INCLUSIONE PER IL TERRITORIO FAENTINO. OPERATORE DEL LEGNO PER IL RIUSO ED IL RICICLO., attivit� rivolta a 12 persone costituita da un percorso di formazione di accesso all'area professionale di Progettazione e produzione arredamenti finalizzato all'acquisizione di un certificato di competenze di Operatore del legno e dell�arredamento. Il corso, della durata di 300 ore, � rivolto a 12 persone.";5/10/2015 00:00:00;22/12/2015 00:00:00;45977,76;0,50;"008039";"008";"109";"31/10/2022"
"FSE";"2015-3791/RER";"E39J15001400002";"80008070338";"Ente - Scuola per la Formazione professionale delle maestranze edili della Provincia di Piacenza";"Abbattere costruendo - montagna occidentale";"Abbattere costruendo - montagna occidentale, attivit� rivolta a 12 persone costituita da un percorso di formazione di accesso all'area professionale di Progettazione e costruzione edile finalizzato all'acquisizione di un certificato di qualifica di Operatore edile alle strutture. Il corso, della durata di 600 ore, � rivolto a 12 persone.";27/10/2015 00:00:00;30/5/2016 00:00:00;81193,50;0,50;"008033";"008";"109";"31/10/2022"
"FSE";"2015-3792/RER";"E39J15001420002";"01306830397";"ANGELO PESCARINI SCUOLA ARTI E MESTIERI Societ� Consortile a responsabilit� limitata";"Azioni di inclusione lavorativa per donne vittime di violenza";"Azioni di inclusione lavorativa per donne vittime di violenza, attivit� rivolta a 484 persone costituita da:";23/9/2015 00:00:00;21/12/2017 00:00:00;344671,91;0,50;"008033:::008034:::008035:::008036:::008037:::008038:::00803";"008";"109";"31/10/2022"
"FSE";"2015-3793/RER";"E39J15001060002";"01306830397";"ANGELO PESCARINI SCUOLA ARTI E MESTIERI Societ� Consortile a responsabilit� limitata";"PERCORSI DI ORIENTAMENTO, FORMAZIONE E TIROCINIO  A SUPPORTO DELL�OCCUPAZIONE NELL�AREA URBANA DI RAVENNA";"PERCORSI DI ORIENTAMENTO, FORMAZIONE E TIROCINIO  A SUPPORTO DELL�OCCUPAZIONE NELL�AREA URBANA DI RAVENNA, attivit� rivolta a 90 persone costituita da:";9/12/2015 00:00:00;30/6/2017 00:00:00;359299,50;0,50;"008039";"008";"109";"31/10/2022"
"FSE";"2015-3794/RER";"E39J15001410002";"01306830397";"ANGELO PESCARINI SCUOLA ARTI E MESTIERI Societ� Consortile a responsabilit� limitata";"ATTIVITA' FORMATIVE A SUPPORTO DELL�OCCUPAZIONE  NELL'AREA URBANA DI RAVENNA";"ATTIVITA' FORMATIVE A SUPPORTO DELL�OCCUPAZIONE  NELL'AREA URBANA DI RAVENNA, attivit� rivolta a 168 persone costituita da:";9/12/2015 00:00:00;30/6/2017 00:00:00;606552,85;0,50;"008039";"008";"109";"31/10/2022"
"FSE";"2015-3795/RER";"E19J15000730002";"02078610355";"Centro Studio e Lavoro La Cremeria s.r.l.";"Azioni a supporto della formazione per la figura professionale di Aiuto Cuoco";"Azioni a supporto della formazione per la figura professionale di Aiuto Cuoco, attivit� rivolta a 33 persone costituita da:";26/10/2015 00:00:00;31/12/2016 00:00:00;98122,57;0,50;"008035";"008";"109";"31/10/2022"
"FSE";"2015-3796/RER";"E19J15000740002";"02078610355";"Centro Studio e Lavoro La Cremeria s.r.l.";"Addetto alla manutenzione e cura del verde";"Addetto alla manutenzione e cura del verde, attivit� rivolta a 15 persone costituita da un percorso di formazione di accesso all'area professionale di Progettazione e gestione del verde finalizzato all'acquisizione di un certificato di competenze di Operatore del verde. Il corso, della durata di 200 ore, � rivolto a 15 persone.";30/3/2016 00:00:00;31/12/2016 00:00:00;31379,45;0,50;"008035";"008";"109";"31/10/2022"
"FSE";"2015-3802/RER";"E99J15000810002";"00829580364";"Iscom formazione";"PIANO DI INTERVENTO PER L'INCLUSIONE LAVORATIVA NELLA PARTE MODENESE DELL'AREA TARGET MONTAGNA CENTRALE";"PIANO DI INTERVENTO PER L'INCLUSIONE LAVORATIVA NELLA PARTE MODENESE DELL'AREA TARGET MONTAGNA CENTRALE, attivit� rivolta a 12 persone costituita da:";16/11/2015 00:00:00;19/4/2016 00:00:00;51621,10;0,50;"008036";"008";"109";"31/10/2022"
"FSE";"2015-3803/RER";"E79J15000310002";"03462620406";"Associazione San Patrignano Scuola e Formazione";"NET.WORK: New Experiences and Training for Work";"NET.WORK: New Experiences and Training for Work, attivit� rivolta a 47 persone costituita da:";22/10/2015 00:00:00;8/7/2016 00:00:00;125427,71;0,50;"008099";"008";"109";"31/10/2022"
"FSE";"2015-3804/RER";"E79J15000320002";"03462620406";"Associazione San Patrignano Scuola e Formazione";"Giro di vite";"Giro di vite, attivit� rivolta a 60 persone costituita da:";24/10/2015 00:00:00;14/11/2016 00:00:00;297445,65;0,50;"008099";"008";"109";"31/10/2022"
"FSE";"2015-3805/RER";"E99J15000820002";"02637130408";"Itinera s.r.l. consortile (in liquidazione) - Centro Internazionale di Studi Turistici";"Azione e percorso di formazione per addetti alla portineria notturna nelle strutture turistiche e ricettive";"Azione e percorso di formazione per addetti alla portineria notturna nelle strutture turistiche e ricettive, attivit� rivolta a 12 persone costituita da:";16/11/2015 00:00:00;28/7/2016 00:00:00;45009,26;0,50;"008099";"008";"109";"31/10/2022"
"FSE";"2015-3818/RER";"E39J15001430002";"04051790378";"Nuovo Cescot Emilia-Romagna s.c.r.l.";"AZIONI PER L'OCCUPAZIONE NELL'AREA MARKETING E VENDITE";"AZIONI PER L'OCCUPAZIONE NELL'AREA MARKETING E VENDITE, attivit� rivolta a 90 persone costituita da:";26/10/2015 00:00:00;14/12/2016 00:00:00;371645,50;0,50;"008035:::008036:::008037:::008039:::008099";"008";"102";"31/10/2022"
"FSE";"2015-3819/RER";"E39J15001440002";"04051790378";"Nuovo Cescot Emilia-Romagna s.c.r.l.";"AZIONI PER L�OCCUPAZIONE NEL SETTORE TURISTICO";"AZIONI PER L�OCCUPAZIONE NEL SETTORE TURISTICO, attivit� rivolta a 26 persone costituita da:";4/11/2015 00:00:00;26/7/2016 00:00:00;147854,76;0,50;"008037:::008040";"008";"102";"31/10/2022"
"FSE";"2015-3820/RER";"E39J15001450002";"04051790378";"Nuovo Cescot Emilia-Romagna s.c.r.l.";"AZIONI PER L�OCCUPAZIONE NELL�AREA GRAFICA";"AZIONI PER L�OCCUPAZIONE NELL�AREA GRAFICA, attivit� rivolta a 39 persone costituita da:";4/11/2015 00:00:00;29/6/2016 00:00:00;160548,52;0,50;"008037:::008099";"008";"102";"31/10/2022"
"FSE";"2015-3821/RER";"E39J15002470002";"04051790378";"Nuovo Cescot Emilia-Romagna s.c.r.l.";"AZIONI PER L'OCCUPAZIONE NELL'AREA FOOD&BEVERAGE";"AZIONI PER L'OCCUPAZIONE NELL'AREA FOOD&BEVERAGE, attivit� rivolta a 65 persone costituita da:";27/10/2015 00:00:00;8/7/2016 00:00:00;203678,47;0,50;"008037:::008039:::008040:::008099";"008";"102";"31/10/2022"
"FSE";"2015-3822/RER";"E39J15001460002";"04051790378";"Nuovo Cescot Emilia-Romagna s.c.r.l.";"AZIONI PER L'OCCUPAZIONE NELL'AREA AMMINISTRAZIONE E CONTROLLO DI IMPRESA";"AZIONI PER L'OCCUPAZIONE NELL'AREA AMMINISTRAZIONE E CONTROLLO DI IMPRESA, attivit� rivolta a 38 persone costituita da:";12/11/2015 00:00:00;8/7/2016 00:00:00;154451,00;0,50;"008036:::008099";"008";"102";"31/10/2022"
"FSE";"2015-3823/RER";"E39J15001470002";"04051790378";"Nuovo Cescot Emilia-Romagna s.c.r.l.";"AZIONI PER L'OCCUPAZIONE NELL'AREA PROGETTAZIONE E PRODUZIONE ALIMENTARE";"AZIONI PER L'OCCUPAZIONE NELL'AREA PROGETTAZIONE E PRODUZIONE ALIMENTARE, attivit� rivolta a 75 persone costituita da:";28/10/2015 00:00:00;16/12/2016 00:00:00;351495,13;0,50;"008036:::008038:::008039:::008040:::008099";"008";"102";"31/10/2022"
"FSE";"2015-3825/RER";"E69J15000650002";"01388830331";"Centro di Formazione, Sperimentazione e Innovazione Vittorio Tadini  S. C. a R. L.";"Formazione e inserimento di junior sales manager per la rete assicurativa-commerciale di Marazzi e Teragni s.n.c. Agenzia Generale di Piacenza UnipolSai";"Formazione e inserimento di junior sales manager per la rete assicurativa-commerciale di Marazzi e Teragni s.n.c. Agenzia Generale di Piacenza UnipolSai, attivit� rivolta a 12 persone costituita da un percorso di formazione di specializzazione per l'area professionale di Promozione ed erogazione servizi/prodotti finanziari, creditizi, assicurativi finalizzato all'acquisizione di un certificato di qualifica di Tecnico dei servizi/prodotti finanziari, creditizi, assicurativi. Il corso, della durata di 500 ore, � rivolto a 12 persone.";14/1/2016 00:00:00;22/6/2016 00:00:00;67775,00;0,50;"008033";"008";"102";"31/10/2022"
"FSE";"2015-3826/RER";"E69J15000660002";"01388830331";"Centro di Formazione, Sperimentazione e Innovazione Vittorio Tadini  S. C. a R. L.";"Competenze professionalizzanti a favore dell'inserimento lavorativo 
nel settore delle lavorazioni carni";"Competenze professionalizzanti a favore dell'inserimento lavorativo";27/10/2015 00:00:00;11/3/2016 00:00:00;35945,00;0,50;"008033";"008";"102";"31/10/2022"
"FSE";"2015-3829/RER";"E79J15000330002";"01371590389";"INFOMEDIA, Associazione per la formazione professionale, l'informazione e la comunicazione";"TECNICO COMMERCIALE MARKETING - ESPERTO DI WEB & SOCIAL MARKETING, TECNICHE SEO ED E COMMERCE";"TECNICO COMMERCIALE MARKETING - ESPERTO DI WEB & SOCIAL MARKETING, TECNICHE SEO ED E COMMERCE, attivit� rivolta a 14 persone costituita da un percorso di formazione di specializzazione per l'area professionale di Marketing e vendite finalizzato all'acquisizione di un certificato di qualifica di Tecnico commerciale - marketing. Il corso, della durata di 300 ore, � rivolto a 14 persone.";14/9/2015 00:00:00;15/12/2015 00:00:00;43766,00;0,50;"008038";"008";"102";"31/10/2022"
"FSE";"2015-3831/RER";"E69J15000740002";"02338400407";"Fondazione En.A.I.P. Forl� - Cesena";"Addetto/addetta al cablaggio di impianti elettrici e fotovoltaici";"Addetto/addetta al cablaggio di impianti elettrici e fotovoltaici, attivit� rivolta a 15 persone costituita da un percorso di formazione di accesso all'area professionale di Installazione componenti e impianti elettrici e termo-idraulici finalizzato all'acquisizione di un certificato di qualifica di Operatore impianti elettrici e solari fotovoltaici. Il corso, della durata di 600 ore, � rivolto a 15 persone.";27/10/2015 00:00:00;31/12/2016 00:00:00;74460,00;0,50;"008040";"008";"102";"31/10/2022"
"FSE";"2015-3832/RER";"E69J15000750002";"02338400407";"Fondazione En.A.I.P. Forl� - Cesena";"Addetto/addetta all�installazione e manutenzione di impianti termoidraulici";"Addetto/addetta all�installazione e manutenzione di impianti termoidraulici, attivit� rivolta a 15 persone costituita da un percorso di formazione di accesso all'area professionale di Installazione componenti e impianti elettrici e termo-idraulici finalizzato all'acquisizione di un certificato di qualifica di Operatore impianti termo-idraulici. Il corso, della durata di 600 ore, � rivolto a 15 persone.";10/11/2015 00:00:00;30/12/2016 00:00:00;74460,00;0,50;"008040";"008";"102";"31/10/2022"
"FSE";"2015-3834/RER";"E89J15000740002";"01164570358";"CIS  Scuola per la Gestione d'Impresa Societ� consortile a responsabilit� limitata";"Tecnico contabile esperto nel controllo di gestione";"Tecnico contabile esperto nel controllo di gestione, attivit� rivolta a 12 persone costituita da un percorso di formazione di specializzazione per l'area professionale di Amministrazione e controllo d�impresa finalizzato all'acquisizione di un certificato di qualifica di Tecnico contabile. Il corso, della durata di 500 ore, � rivolto a 12 persone.";9/11/2015 00:00:00;13/7/2016 00:00:00;70880,00;0,50;"008035";"008";"102";"31/10/2022"
"FSE";"2015-3836/RER";"E89J15000750002";"01164570358";"CIS  Scuola per la Gestione d'Impresa Societ� consortile a responsabilit� limitata";"TECNICO DI PROGRAMMAZIONE DELLA PRODUZIONE INDUSTRIALE CON COMPETENZE IN LEAN ORGANIZATION";"TECNICO DI PROGRAMMAZIONE DELLA PRODUZIONE INDUSTRIALE CON COMPETENZE IN LEAN ORGANIZATION, attivit� rivolta a 12 persone costituita da un percorso di formazione di specializzazione per l'area professionale di Approvvigionamento e gestione della produzione industriale finalizzato all'acquisizione di un certificato di qualifica di Tecnico di programmazione della produzione industriale. Il corso, della durata di 300 ore, � rivolto a 12 persone.";9/11/2015 00:00:00;1/6/2016 00:00:00;42990,00;0,50;"008035";"008";"102";"31/10/2022"
"FSE";"2015-3838/RER";"E39J15001480002";"01229920333";"TUTOR Societ� Consortile a responsabilit� limitata";"TECNICO NELLE SOLUZIONI ENERGETICHE SISTEMA EDIFICIO IMPIANTO";"TECNICO NELLE SOLUZIONI ENERGETICHE SISTEMA EDIFICIO IMPIANTO, attivit� rivolta a 12 persone costituita da un percorso di formazione di specializzazione per l'area professionale di Sviluppo e gestione dell�energia finalizzato all'acquisizione di un certificato di qualifica di Tecnico nelle soluzioni energetiche sistema edificio impianto. Il corso, della durata di 500 ore, � rivolto a 12 persone.";15/2/2016 00:00:00;17/10/2016 00:00:00;67805,00;0,50;"008033";"008";"102";"31/10/2022"
"FSE";"2015-3841/RER";"E39J15001490002";"01229920333";"TUTOR Societ� Consortile a responsabilit� limitata";"LA LAVORAZIONE DELLE CARNI SUINE SULL�APPENNINO PIACENTINO";"LA LAVORAZIONE DELLE CARNI SUINE SULL�APPENNINO PIACENTINO, attivit� rivolta a 12 persone costituita da un percorso di formazione di accesso all'area professionale di Progettazione e produzione alimentare finalizzato all'acquisizione di un certificato di competenze di Operatore delle lavorazioni carni. Il corso, della durata di 300 ore, � rivolto a 12 persone.";16/11/2015 00:00:00;16/11/2016 00:00:00;35378,00;0,50;"008033";"008";"102";"31/10/2022"
"FSE";"2015-3842/RER";"E39J15001500002";"03121711208";"Oficina Impresa Sociale Srl";"FORMAZIONE TECNICA IN AREA MARKETING E VENDITE PER L'EXPORT";"FORMAZIONE TECNICA IN AREA MARKETING E VENDITE PER L'EXPORT, attivit� rivolta a 24 persone costituita da:";13/11/2015 00:00:00;23/12/2016 00:00:00;98386,00;0,50;"008037";"008";"102";"31/10/2022"
"FSE";"2015-3843/RER";"E39J15001510002";"03121711208";"Oficina Impresa Sociale Srl";"TECNICO DELL'AUTOMAZIONE INDUSTRIALE con specializzazione in architetture PLC e sistemi di motion control";"TECNICO DELL'AUTOMAZIONE INDUSTRIALE con specializzazione in architetture PLC e sistemi di motion control, attivit� rivolta a 12 persone costituita da un percorso di formazione di specializzazione per l'area professionale di Progettazione e produzione meccanica ed elettromeccanica finalizzato all'acquisizione di un certificato di qualifica di Tecnico dell�automazione industriale. Il corso, della durata di 300 ore, � rivolto a 12 persone.";13/11/2015 00:00:00;23/11/2016 00:00:00;41883,00;0,50;"008037";"008";"102";"31/10/2022"
"FSE";"2015-3845/RER";"E79J15000340002";"01149540385";"CONSORZIO FERRARA INNOVAZIONE-Societ� Consortile a responsabilit� limitata ";"TECNICO AMMINISTRAZIONE, FINANZA E CONTROLLO DI GESTIONE - SPECIALIZZAZIONE IN STRUMENTI DERIVATI E MINIBOND";"TECNICO AMMINISTRAZIONE, FINANZA E CONTROLLO DI GESTIONE - SPECIALIZZAZIONE IN STRUMENTI DERIVATI E MINIBOND, attivit� rivolta a 12 persone costituita da un percorso di formazione di specializzazione per l'area professionale di Amministrazione e controllo d�impresa finalizzato all'acquisizione di un certificato di qualifica di Tecnico amministrazione, finanza e controllo di gestione. Il corso, della durata di 300 ore, � rivolto a 12 persone.";16/11/2015 00:00:00;29/6/2016 00:00:00;42228,00;0,50;"008038";"008";"102";"31/10/2022"
"FSE";"2015-3846/RER";"E39J15001520002";"92047970378";"CONSORZIO FORMEDIL EMILIA-ROMAGNA";"Gestione del cantiere infrastrutturale";"Gestione del cantiere infrastrutturale, attivit� rivolta a 24 persone costituita da:";29/1/2016 00:00:00;24/1/2017 00:00:00;94683,00;0,50;"008039";"008";"102";"31/10/2022"
"FSE";"2015-3847/RER";"E39J15001530002";"92047970378";"CONSORZIO FORMEDIL EMILIA-ROMAGNA";"Percorsi per l'innovazione tecnologica del settore delle costruzioni";"Percorsi per l'innovazione tecnologica del settore delle costruzioni, attivit� rivolta a 69 persone costituita da:";28/10/2015 00:00:00;4/10/2016 00:00:00;328341,00;0,50;"008033:::008034:::008035:::008037";"008";"102";"31/10/2022"
"FSE";"2015-3848/RER";"E19J15000750002";"02604400404";"TECHNE Societ� consortile a responsabilit� limitata";"Percorso formativo per Tecnico esperto nella pianificazione del ciclo integrato dei rifiuti";"Percorso formativo per Tecnico esperto nella pianificazione del ciclo integrato dei rifiuti, attivit� rivolta a 12 persone costituita da un percorso di formazione di specializzazione per l'area professionale di Difesa e valorizzazione delle risorse del territorio finalizzato all'acquisizione di un certificato di qualifica di Tecnico esperto nella pianificazione del ciclo integrato dei rifiuti urbani. Il corso, della durata di 300 ore, � rivolto a 12 persone.";10/11/2015 00:00:00;30/4/2017 00:00:00;43057,00;0,50;"008040";"008";"102";"31/10/2022"
"FSE";"2015-3850/RER";"E19J15000760002";"02604400404";"TECHNE Societ� consortile a responsabilit� limitata";"Percorso formativo per Operatore alla Poltrona Odontoiatrica";"Percorso formativo per Operatore alla Poltrona Odontoiatrica, attivit� rivolta a 12 persone costituita da un percorso di formazione di specializzazione per l'area professionale di Erogazione servizi socio-sanitari finalizzato all'acquisizione di un certificato di qualifica di Operatore alla poltrona odontoiatrica. Il corso, della durata di 300 ore, � rivolto a 12 persone.";12/11/2015 00:00:00;30/4/2017 00:00:00;45978,00;0,50;"008040";"008";"102";"31/10/2022"
"FSE";"2015-3851/RER";"E39J15002480002";"92050070371";"Fondazione Aldini Valeriani per lo sviluppo della cultura tecnica";"Operatore di cura e pulizia spazi e ambienti per Centrogest spa";"Operatore di cura e pulizia spazi e ambienti per Centrogest spa, attivit� rivolta a 15 persone costituita da un percorso di formazione di accesso all'area professionale di Erogazione servizi di pulizia finalizzato all'acquisizione di un certificato di qualifica di Operatore di cura e pulizia di spazi e ambienti. Il corso, della durata di 600 ore, � rivolto a 15 persone.";10/11/2015 00:00:00;23/5/2016 00:00:00;72120,00;0,50;"008037";"008";"102";"31/10/2022"
"FSE";"2015-3853/RER";"E39J15001540002";"92050070371";"Fondazione Aldini Valeriani per lo sviluppo della cultura tecnica";"Tecnico commerciale marketing esperto in analisi dei mercati";"Tecnico commerciale marketing esperto in analisi dei mercati, attivit� rivolta a 15 persone costituita da un percorso di formazione di specializzazione per l'area professionale di Marketing e vendite finalizzato all'acquisizione di un certificato di qualifica di Tecnico commerciale - marketing. Il corso, della durata di 300 ore, � rivolto a 15 persone.";12/11/2015 00:00:00;21/4/2016 00:00:00;43728,00;0,50;"008037";"008";"102";"31/10/2022"
"FSE";"2015-3854/RER";"E89J15001050002";"93002400369";"Cerform";"Percorsi formativi in area marketing e vendite per il settore ceramico";"Percorsi formativi in area marketing e vendite per il settore ceramico, attivit� rivolta a 30 persone costituita da:";19/10/2015 00:00:00;29/7/2016 00:00:00;139926,00;0,50;"008036";"008";"102";"31/10/2022"
"FSE";"2015-3855/RER";"E89J15000760002";"93002400369";"Cerform";"Tecnologo di prodotto/processo per la decorazione digitale ceramica";"Tecnologo di prodotto/processo per la decorazione digitale ceramica, attivit� rivolta a 15 persone costituita da un percorso di formazione di specializzazione per l'area professionale di Progettazione e produzione chimica finalizzato all'acquisizione di un certificato di qualifica di Tecnico di prodotto/processo nella chimica. Il corso, della durata di 300 ore, � rivolto a 15 persone.";16/11/2015 00:00:00;6/12/2016 00:00:00;42386,00;0,50;"008036";"008";"102";"31/10/2022"
"FSE";"2015-3856/RER";"E89J15001060002";"93002400369";"Cerform";"Grafico digitale ceramico";"Grafico digitale ceramico, attivit� rivolta a 15 persone costituita da un percorso di formazione di specializzazione per l'area professionale di Progettazione e produzione prodotti grafici finalizzato all'acquisizione di un certificato di qualifica di Tecnico grafico. Il corso, della durata di 500 ore, � rivolto a 15 persone.";9/11/2015 00:00:00;20/9/2016 00:00:00;69683,00;0,50;"008036";"008";"102";"31/10/2022"
"FSE";"2015-3859/RER";"E39J15001550002";"92049540377";"Fondazione Opera Madonna del Lavoro";"Formazione per l'occupazione nel progetto Bologna Football Catering";"Formazione per l'occupazione nel progetto Bologna Football Catering, attivit� rivolta a 35 persone costituita da:";10/12/2015 00:00:00;20/12/2016 00:00:00;151250,50;0,50;"008037";"008";"102";"31/10/2022"
"FSE";"2015-3860/RER";"E99J15000830002";"02526930363";"Nuova Didactica - societ� consortile a responsabilit� limitata";"TECNICO DI SPEDIZIONE, TRASPORTO E LOGISTICA";"TECNICO DI SPEDIZIONE, TRASPORTO E LOGISTICA, attivit� rivolta a 12 persone costituita da un percorso di formazione di specializzazione per l'area professionale di Logistica industriale, del trasporto e spedizione finalizzato all'acquisizione di un certificato di qualifica di Tecnico di spedizione, trasporto e logistica. Il corso, della durata di 500 ore, � rivolto a 12 persone.";4/12/2015 00:00:00;14/7/2016 00:00:00;70714,00;0,50;"008036";"008";"102";"31/10/2022"
"FSE";"2015-3861/RER";"E99J15000840002";"02526930363";"Nuova Didactica - societ� consortile a responsabilit� limitata";"ANALISTA PROGRAMMATORE";"ANALISTA PROGRAMMATORE, attivit� rivolta a 12 persone costituita da un percorso di formazione di specializzazione per l'area professionale di Sviluppo e gestione sistemi informatici finalizzato all'acquisizione di un certificato di qualifica di Analista programmatore. Il corso, della durata di 500 ore, � rivolto a 12 persone.";29/2/2016 00:00:00;15/12/2016 00:00:00;69635,00;0,50;"008036";"008";"102";"31/10/2022"
"FSE";"2015-3862/RER";"E19J15000840004";"02483780363";"FORMODENA - FORMAZIONE PROFESSIONALE PER I TERRITORI MODENESI SOC.CONS.A.R.L.";"IMPOSTAZIONE E SVILUPPO DI COLLEZIONI MODA";"IMPOSTAZIONE E SVILUPPO DI COLLEZIONI MODA, attivit� rivolta a 12 persone costituita da un percorso di formazione di accesso all'area professionale di Progettazione e produzione tessile ed abbigliamento � confezione e maglieria finalizzato all'acquisizione di un certificato di qualifica di Operatore dell�abbigliamento. Il corso, della durata di 600 ore, � rivolto a 12 persone.";5/11/2015 00:00:00;17/6/2016 00:00:00;75796,00;0,50;"008036";"008";"102";"31/10/2022"
"FSE";"2015-3865/RER";"E99J15000850002";"02483780363";"FORMODENA - FORMAZIONE PROFESSIONALE PER I TERRITORI MODENESI SOC.CONS.A.R.L.";"Competenze tecniche per favorire l�occupazione nei processi contabili e amministrativi in imprese dell'area del sisma";"Competenze tecniche per favorire l�occupazione nei processi contabili e amministrativi in imprese dell'area del sisma, attivit� rivolta a 12 persone costituita da un percorso di formazione di accesso all'area professionale di Amministrazione e controllo d�impresa finalizzato all'acquisizione di un certificato di competenze di Operatore amministrativo-segretariale. Il corso, della durata di 300 ore, � rivolto a 12 persone.";12/10/2015 00:00:00;28/6/2017 00:00:00;36278,00;0,50;"008036";"008";"102";"31/10/2022"
"FSE";"2015-3870/RER";"E89J15000770002";"02493650358";"DEMETRA FORMAZIONE S.R.L.";"OPPORTUNITA' FORMATIVE PER L'INSERIMENTO QUALIFICATO NEL SETTORE ASSICURATIVO";"OPPORTUNITA' FORMATIVE PER L'INSERIMENTO QUALIFICATO NEL SETTORE ASSICURATIVO, attivit� rivolta a 24 persone costituita da:";13/11/2015 00:00:00;30/11/2016 00:00:00;111352,00;0,50;"008037:::008039";"008";"102";"31/10/2022"
"FSE";"2015-3871/RER";"E89J15000780002";"02493650358";"DEMETRA FORMAZIONE S.R.L.";"OPPORTUNITA' FORMATIVE PER L'INSERIMENTO QUALIFICATO NEL SETTORE DELLA LOGISTICA E DELLE SPEDIZIONI";"OPPORTUNITA' FORMATIVE PER L'INSERIMENTO QUALIFICATO NEL SETTORE DELLA LOGISTICA E DELLE SPEDIZIONI, attivit� rivolta a 12 persone costituita da un percorso di formazione di accesso all'area professionale di Logistica industriale, del trasporto e spedizione finalizzato all'acquisizione di un certificato di competenze di Operatore di magazzino merci. Il corso, della durata di 300 ore, � rivolto a 12 persone.";2/11/2015 00:00:00;28/10/2016 00:00:00;35877,50;0,50;"008037";"008";"102";"31/10/2022"
"FSE";"2015-3872/RER";"E89J15000790002";"02493650358";"DEMETRA FORMAZIONE S.R.L.";"OPPORTUNITA' FORMATIVE PER L'INSERIMENTO QUALIFICATO NELLE ATTIVITA' AMMINISTRATIVO-SEGRETARIALI, CONTABILI E DI CONTROLLO DI GESTIONE";"OPPORTUNITA' FORMATIVE PER L'INSERIMENTO QUALIFICATO NELLE ATTIVITA' AMMINISTRATIVO-SEGRETARIALI, CONTABILI E DI CONTROLLO DI GESTIONE, attivit� rivolta a 12 persone costituita da un percorso di formazione di accesso all'area professionale di Amministrazione e controllo d�impresa finalizzato all'acquisizione di un certificato di competenze di Operatore amministrativo-segretariale. Il corso, della durata di 300 ore, � rivolto a 12 persone.";22/10/2015 00:00:00;30/6/2016 00:00:00;36840,00;0,50;"008040";"008";"102";"31/10/2022"
"FSE";"2015-3877/RER";"E89J15000800002";"02493650358";"DEMETRA FORMAZIONE S.R.L.";"OPPORTUNITA' FORMATIVE PER L'INSERIMENTO QUALIFICATO NEL SETTORE DELLA RISTORAZIONE";"OPPORTUNITA' FORMATIVE PER L'INSERIMENTO QUALIFICATO NEL SETTORE DELLA RISTORAZIONE, attivit� rivolta a 24 persone costituita da:";4/11/2015 00:00:00;22/12/2016 00:00:00;83155,48;0,50;"008034:::008035";"008";"102";"31/10/2022"
"FSE";"2015-3886/RER";"E89J15000810002";"00453310351";"I.F.O.A. Istituto Formazione Operatori Aziendali";"Professioni digitali : occupazione e specializzazione";"Professioni digitali : occupazione e specializzazione, attivit� rivolta a 42 persone costituita da:";2/11/2015 00:00:00;21/9/2016 00:00:00;158951,00;0,50;"008035:::008036:::008037";"008";"102";"31/10/2022"
"FSE";"2015-3887/RER";"E89J15000820002";"00453310351";"I.F.O.A. Istituto Formazione Operatori Aziendali";"Profili amministrativi per il controllo d'impresa e l'occupabilit�";"Profili amministrativi per il controllo d'impresa e l'occupabilit�, attivit� rivolta a 28 persone costituita da:";4/11/2015 00:00:00;19/7/2016 00:00:00;145990,00;0,50;"008035:::008036";"008";"102";"31/10/2022"
"FSE";"2015-3888/RER";"E89J15000830002";"00453310351";"I.F.O.A. Istituto Formazione Operatori Aziendali";"PROFESSIONI PER LO SVILUPPO E LA TUTELA DELL'AMBIENTE";"PROFESSIONI PER LO SVILUPPO E LA TUTELA DELL'AMBIENTE, attivit� rivolta a 14 persone costituita da un percorso di formazione di specializzazione per l'area professionale di Sviluppo e tutela dell'ambiente finalizzato all'acquisizione di un certificato di qualifica di Tecnico ambientale. Il corso, della durata di 500 ore, � rivolto a 14 persone.";16/11/2015 00:00:00;22/11/2016 00:00:00;69589,00;0,50;"008034";"008";"102";"31/10/2022"
"FSE";"2015-3890/RER";"E89J15000840002";"00453310351";"I.F.O.A. Istituto Formazione Operatori Aziendali";"INTERNAZIONALIZZAZIONE COME VOLANO STRATEGICO PER LE IMPRESE";"INTERNAZIONALIZZAZIONE COME VOLANO STRATEGICO PER LE IMPRESE, attivit� rivolta a 14 persone costituita da un percorso di formazione di specializzazione per l'area professionale di Marketing e vendite finalizzato all'acquisizione di un certificato di qualifica di Tecnico commerciale - marketing. Il corso, della durata di 300 ore, � rivolto a 14 persone.";10/11/2015 00:00:00;21/7/2016 00:00:00;43728,00;0,50;"008035";"008";"102";"31/10/2022"
"FSE";"2015-3891/RER";"E89J15000850002";"00453310351";"I.F.O.A. Istituto Formazione Operatori Aziendali";"SVILUPPO E RIQUALIFICAZIONE DELLE COMPETENZE NEL SETTORE AGRO-ALIMENTARE";"SVILUPPO E RIQUALIFICAZIONE DELLE COMPETENZE NEL SETTORE AGRO-ALIMENTARE, attivit� rivolta a 42 persone costituita da:";12/11/2015 00:00:00;20/1/2017 00:00:00;191013,00;0,50;"008035:::008036";"008";"102";"31/10/2022"
"FSE";"2015-3892/RER";"E89J15000860002";"00453310351";"I.F.O.A. Istituto Formazione Operatori Aziendali";"IL MID MANAGER DEL FUTURO NELL'IMPRESA MANIFATTURIERA E DI SERVIZI";"IL MID MANAGER DEL FUTURO NELL'IMPRESA MANIFATTURIERA E DI SERVIZI, attivit� rivolta a 42 persone costituita da:";18/1/2016 00:00:00;30/3/2017 00:00:00;130446,00;0,50;"008034:::008035:::008036";"008";"102";"31/10/2022"
"FSE";"2015-3893/RER";"E89J15000870002";"00453310351";"I.F.O.A. Istituto Formazione Operatori Aziendali";"PROFESSIONALITA' PER LA RIORGANIZZAZIONE DELLA CATENA APPROVVIGIONAMENTO/PRODUZIONE NELLA MODERNA MANIFATTURA";"PROFESSIONALITA' PER LA RIORGANIZZAZIONE DELLA CATENA APPROVVIGIONAMENTO/PRODUZIONE NELLA MODERNA MANIFATTURA, attivit� rivolta a 14 persone costituita da un percorso di formazione di specializzazione per l'area professionale di Approvvigionamento e gestione della produzione industriale finalizzato all'acquisizione di un certificato di qualifica di Tecnico di programmazione della produzione industriale. Il corso, della durata di 300 ore, � rivolto a 14 persone.";4/12/2015 00:00:00;13/7/2016 00:00:00;43728,00;0,50;"008035";"008";"102";"31/10/2022"
"FSE";"2015-3894/RER";"E89J15000880002";"00453310351";"I.F.O.A. Istituto Formazione Operatori Aziendali";"PROFESSIONALITA' PER LO SVILUPPO DEI TERRITORI NEL POST EXPO 2015";"PROFESSIONALITA' PER LO SVILUPPO DEI TERRITORI NEL POST EXPO 2015, attivit� rivolta a 14 persone costituita da un percorso di formazione di specializzazione per l'area professionale di Promozione ed erogazione servizi turistici finalizzato all'acquisizione di un certificato di qualifica di Tecnico del marketing turistico. Il corso, della durata di 500 ore, � rivolto a 14 persone.";6/11/2015 00:00:00;22/9/2016 00:00:00;70891,00;0,50;"008035";"008";"102";"31/10/2022"
"FSE";"2015-3895/RER";"E89J15000890002";"00453310351";"I.F.O.A. Istituto Formazione Operatori Aziendali";"COMPETENZE E TECNOLOGIE PER FAVORIRE L'OCCUPAZIONE NELL'IMPRESA MECCANICA";"COMPETENZE E TECNOLOGIE PER FAVORIRE L'OCCUPAZIONE NELL'IMPRESA MECCANICA, attivit� rivolta a 28 persone costituita da:";3/11/2015 00:00:00;14/9/2016 00:00:00;88479,00;0,50;"008035:::008036";"008";"102";"31/10/2022"
"FSE";"2015-3897/RER";"E89J15000900002";"00453310351";"I.F.O.A. Istituto Formazione Operatori Aziendali";"LA RICONVERSIONE DIGITALE DEGLI OPERATORI DELL'EDITORIA TRADIZIONALE";"LA RICONVERSIONE DIGITALE DEGLI OPERATORI DELL'EDITORIA TRADIZIONALE, attivit� rivolta a 14 persone costituita da un percorso di formazione di specializzazione per l'area professionale di Progettazione ed erogazione servizi/prodotti informativi e comunicativi finalizzato all'acquisizione di un certificato di qualifica di Redattore di prodotti editoriali. Il corso, della durata di 300 ore, � rivolto a 14 persone.";10/11/2015 00:00:00;25/5/2016 00:00:00;44466,00;0,50;"008035";"008";"102";"31/10/2022"
"FSE";"2015-3899/RER";"E89J15001070002";"00453310351";"I.F.O.A. Istituto Formazione Operatori Aziendali";"SVILUPPO, RIQUALIFICAZIONE E IMPLEMENTAZIONE DELLE COMPETENZE NEL RETAIL PER IL TERRITORIO REGIONALE";"SVILUPPO, RIQUALIFICAZIONE E IMPLEMENTAZIONE DELLE COMPETENZE NEL RETAIL PER IL TERRITORIO REGIONALE, attivit� rivolta a 42 persone costituita da:";11/11/2015 00:00:00;24/2/2017 00:00:00;187396,00;0,50;"008034:::008037";"008";"102";"31/10/2022"
"FSE";"2015-3901/RER";"E79J15000350002";"03369980408";"CONSULTING S.R.L.";"CULTURAL-MENTE: PROMUOVERE E VALORIZZARE UN�IDENTIT� TERRITORIALE";"CULTURAL-MENTE: PROMUOVERE E VALORIZZARE UN�IDENTIT� TERRITORIALE, attivit� rivolta a 12 persone costituita da un percorso di formazione di specializzazione per l'area professionale di Promozione ed erogazione servizi culturali finalizzato all'acquisizione di un certificato di qualifica di Tecnico della valorizzazione dei beni/prodotti culturali. Il corso, della durata di 300 ore, � rivolto a 12 persone.";16/11/2015 00:00:00;4/5/2016 00:00:00;44028,00;0,50;"008040";"008";"102";"31/10/2022"
"FSE";"2015-3902/RER";"E39J15001560002";"03109320378";"ISCOM Emilia- Romagna";"Produzione e Distribuzione Pasti";"Produzione e Distribuzione Pasti, attivit� rivolta a 96 persone costituita da:";12/10/2015 00:00:00;31/7/2016 00:00:00;385710,00;0,50;"008033:::008034:::008036:::008038:::008039:::008040";"008";"102";"31/10/2022"
"FSE";"2015-3903/RER";"E39J15001570002";"03109320378";"ISCOM Emilia- Romagna";"Promozione ed erogazione servizi turistici";"Promozione ed erogazione servizi turistici, attivit� rivolta a 12 persone costituita da un percorso di formazione di accesso all'area professionale di Promozione ed erogazione servizi turistici finalizzato all'acquisizione di un certificato di qualifica di Operatore della promozione ed accoglienza turistica. Il corso, della durata di 600 ore, � rivolto a 12 persone.";1/2/2016 00:00:00;31/12/2016 00:00:00;70248,00;0,50;"008038";"008";"102";"31/10/2022"
"FSE";"2015-3904/RER";"E39J15001580002";"03109320378";"ISCOM Emilia- Romagna";"Promozione ed erogazione servizi/prodotti finanziari, creditizi, assicurativi";"Promozione ed erogazione servizi/prodotti finanziari, creditizi, assicurativi, attivit� rivolta a 12 persone costituita da un percorso di formazione di specializzazione per l'area professionale di Promozione ed erogazione servizi/prodotti finanziari, creditizi, assicurativi finalizzato all'acquisizione di un certificato di qualifica di Tecnico dei servizi/prodotti finanziari, creditizi, assicurativi. Il corso, della durata di 300 ore, � rivolto a 12 persone.";29/10/2015 00:00:00;30/9/2016 00:00:00;42017,00;0,50;"008038";"008";"102";"31/10/2022"
"FSE";"2015-3905/RER";"E39J15002490002";"03109320378";"ISCOM Emilia- Romagna";"Progettazione e produzione alimentare";"Progettazione e produzione alimentare, attivit� rivolta a 48 persone costituita da:";5/11/2015 00:00:00;15/7/2016 00:00:00;138165,99;0,50;"008037:::008039:::008040:::008099";"008";"102";"31/10/2022"
"FSE";"2015-3906/RER";"E39J15001590002";"03109320378";"ISCOM Emilia- Romagna";"Marketing e Vendite";"Marketing e Vendite, attivit� rivolta a 132 persone costituita da:";12/10/2015 00:00:00;31/12/2016 00:00:00;603166,00;0,50;"008033:::008034:::008035:::008036:::008037:::008038:::00804";"008";"102";"31/10/2022"
"FSE";"2015-3907/RER";"E39J15001600002";"03109320378";"ISCOM Emilia- Romagna";"Logistica industriale, del trasporto e spedizione";"Logistica industriale, del trasporto e spedizione, attivit� rivolta a 12 persone costituita da un percorso di formazione di accesso all'area professionale di Logistica industriale, del trasporto e spedizione finalizzato all'acquisizione di un certificato di qualifica di Operatore di magazzino merci. Il corso, della durata di 600 ore, � rivolto a 12 persone.";16/11/2015 00:00:00;15/11/2016 00:00:00;73056,00;0,50;"008036";"008";"102";"31/10/2022"
"FSE";"2015-3910/RER";"E39J15001610002";"03109320378";"ISCOM Emilia- Romagna";"Tecnico degli acquisti e degli approvvigionamenti: nuovi mercati esteri per l'Agroalimentare";"Tecnico degli acquisti e degli approvvigionamenti: nuovi mercati esteri per l'Agroalimentare, attivit� rivolta a 12 persone costituita da un percorso di formazione di specializzazione per l'area professionale di Approvvigionamento e gestione della produzione industriale finalizzato all'acquisizione di un certificato di qualifica di Tecnico degli acquisti e approvvigionamenti. Il corso, della durata di 300 ore, � rivolto a 12 persone.";12/10/2015 00:00:00;2/5/2016 00:00:00;43124,00;0,50;"008037";"008";"102";"31/10/2022"
"FSE";"2015-3911/RER";"E69J15000670002";"02450600396";"SVILUPPO PMI SRL";"PERCORSI DI QUALIFICAZIONE IN AREA MECCANICA";"PERCORSI DI QUALIFICAZIONE IN AREA MECCANICA, attivit� rivolta a 12 persone costituita da un percorso di formazione di specializzazione per l'area professionale di Progettazione e produzione meccanica ed elettromeccanica finalizzato all'acquisizione di un certificato di qualifica di Disegnatore meccanico. Il corso, della durata di 300 ore, � rivolto a 12 persone.";5/11/2015 00:00:00;16/3/2016 00:00:00;43359,00;0,50;"008039";"008";"102";"31/10/2022"
"FSE";"2015-3912/RER";"E69J15000680002";"02450600396";"SVILUPPO PMI SRL";"TECNICO NELLA QUALITA' DEI  PRODOTTI ALIMENTARI BIO";"TECNICO NELLA QUALITA' DEI  PRODOTTI ALIMENTARI BIO, attivit� rivolta a 12 persone costituita da un percorso di formazione di specializzazione per l'area professionale di Progettazione e produzione alimentare finalizzato all'acquisizione di un certificato di qualifica di Tecnico nella qualita� dei prodotti alimentari. Il corso, della durata di 300 ore, � rivolto a 12 persone.";16/11/2015 00:00:00;22/3/2016 00:00:00;42990,00;0,50;"008040";"008";"102";"31/10/2022"
"FSE";"2015-3915/RER";"E69J15000690002";"02450600396";"SVILUPPO PMI SRL";"Tecnico di spedizione, trasporto e logistica";"Tecnico di spedizione, trasporto e logistica, attivit� rivolta a 12 persone costituita da un percorso di formazione di specializzazione per l'area professionale di Logistica industriale, del trasporto e spedizione finalizzato all'acquisizione di un certificato di qualifica di Tecnico di spedizione, trasporto e logistica. Il corso, della durata di 300 ore, � rivolto a 12 persone.";26/10/2015 00:00:00;8/3/2016 00:00:00;43426,00;0,50;"008039";"008";"102";"31/10/2022"
"FSE";"2015-3919/RER";"E39J15001620002";"01306830397";"ANGELO PESCARINI SCUOLA ARTI E MESTIERI Societ� Consortile a responsabilit� limitata";"FORMAZIONE  PER  TECNICO ESPERTO NELLA GESTIONE DI SERVIZI, SPECIALIZZATO NEL SETTORE SOCIALE E SANITARIO";"FORMAZIONE  PER  TECNICO ESPERTO NELLA GESTIONE DI SERVIZI, SPECIALIZZATO NEL SETTORE SOCIALE E SANITARIO, attivit� rivolta a 12 persone costituita da un percorso di formazione di specializzazione per l'area professionale di Gestione processi, progetti e strutture finalizzato all'acquisizione di un certificato di qualifica di Tecnico esperto nella gestione di servizi. Il corso, della durata di 300 ore, � rivolto a 12 persone.";25/11/2015 00:00:00;31/12/2016 00:00:00;46359,00;0,50;"008039";"008";"102";"31/10/2022"
"FSE";"2015-3920/RER";"E69J15000700002";"92013540395";"Il Sestante Romagna s.r.l.";"TECNICO DI PROGRAMMAZIONE DELLA PRODUZIONE INDUSTRIALE";"TECNICO DI PROGRAMMAZIONE DELLA PRODUZIONE INDUSTRIALE, attivit� rivolta a 12 persone costituita da un percorso di formazione di specializzazione per l'area professionale di Approvvigionamento e gestione della produzione industriale finalizzato all'acquisizione di un certificato di qualifica di Tecnico di programmazione della produzione industriale. Il corso, della durata di 300 ore, � rivolto a 12 persone.";18/1/2016 00:00:00;28/4/2016 00:00:00;43728,00;0,50;"008039";"008";"102";"31/10/2022"
"FSE";"2015-3922/RER";"E39J15002500002";"01139920332";"EN.A.I.P. DELLA PROVINCIA DI PIACENZA";"PERCORSI FORMATIVI PER L'OCCUPAZIONE ED IL SOSTEGNO ALLA MOBILITA' PROFESSIONALE IN AMBITO AMMINISTRATIVO CONTABILE";"PERCORSI FORMATIVI PER L'OCCUPAZIONE ED IL SOSTEGNO ALLA MOBILITA' PROFESSIONALE IN AMBITO AMMINISTRATIVO CONTABILE, attivit� rivolta a 30 persone costituita da:";16/11/2015 00:00:00;30/9/2017 00:00:00;119379,00;0,50;"008033";"008";"102";"31/10/2022"
"FSE";"2015-3923/RER";"E49J15000330002";"13081080155";"Adecco Formazione S.r.l.";"OPERATORE MECCANICO ADDETTO ALL'ASSEMBLAGGIO";"OPERATORE MECCANICO ADDETTO ALL'ASSEMBLAGGIO, attivit� rivolta a 12 persone costituita da un percorso di formazione di accesso all'area professionale di Progettazione e produzione meccanica ed elettromeccanica finalizzato all'acquisizione di un certificato di qualifica di Operatore meccanico di sistemi. Il corso, della durata di 600 ore, � rivolto a 12 persone.";6/10/2015 00:00:00;7/4/2016 00:00:00;74160,00;0,50;"008037";"008";"102";"31/10/2022"
"FSE";"2015-3925/RER";"E99J15000860002";"03484210368";"CONFIMI FORMAZIONE EMILIA S.R.L.";"TECNICO COMMERCIALE MARKETING ESPERTO IN INTERNAZIONALIZZAZIONE";"TECNICO COMMERCIALE MARKETING ESPERTO IN INTERNAZIONALIZZAZIONE, attivit� rivolta a 12 persone costituita da un percorso di formazione di specializzazione per l'area professionale di Marketing e vendite finalizzato all'acquisizione di un certificato di qualifica di Tecnico commerciale - marketing. Il corso, della durata di 500 ore, � rivolto a 12 persone.";8/10/2015 00:00:00;10/5/2016 00:00:00;69650,00;0,50;"008036";"008";"102";"31/10/2022"
"FSE";"2015-3926/RER";"E99J15000870002";"03484210368";"CONFIMI FORMAZIONE EMILIA S.R.L.";"GESTORE DI SISTEMI QUALITA' AZIENDALE";"GESTORE DI SISTEMI QUALITA' AZIENDALE, attivit� rivolta a 12 persone costituita da un percorso di formazione di specializzazione per l'area professionale di Sviluppo e gestione del sistema qualita aziendale finalizzato all'acquisizione di un certificato di qualifica di Gestore del sistema qualita� aziendale. Il corso, della durata di 300 ore, � rivolto a 12 persone.";20/10/2015 00:00:00;19/4/2016 00:00:00;42621,00;0,50;"008036";"008";"102";"31/10/2022"
"FSE";"2015-3929/RER";"E99J15000880002";"03484210368";"CONFIMI FORMAZIONE EMILIA S.R.L.";"TECNICO AMMINISTRAZIONE FINANZA E CONTROLLO DI GESTIONE";"TECNICO AMMINISTRAZIONE FINANZA E CONTROLLO DI GESTIONE, attivit� rivolta a 12 persone costituita da un percorso di formazione di specializzazione per l'area professionale di Amministrazione e controllo d�impresa finalizzato all'acquisizione di un certificato di qualifica di Tecnico amministrazione, finanza e controllo di gestione. Il corso, della durata di 300 ore, � rivolto a 12 persone.";9/10/2015 00:00:00;22/4/2016 00:00:00;43728,00;0,50;"008036";"008";"102";"31/10/2022"
"FSE";"2015-3930/RER";"E49J15000340002";"03549630964";"RANDSTAD HR SOLUTIONS SRL";"NUOVE PROFESSIONALITA' PER IL SETTORE ENOGASTRONOMICO - PROFILI AREA RISTORAZIONE";"NUOVE PROFESSIONALITA' PER IL SETTORE ENOGASTRONOMICO - PROFILI AREA RISTORAZIONE, attivit� rivolta a 240 persone costituita da:";25/1/2016 00:00:00;22/12/2016 00:00:00;171391,00;0,50;"008037";"008";"102";"31/10/2022"
"FSE";"2015-3931/RER";"E49J15000350002";"03549630964";"RANDSTAD HR SOLUTIONS SRL";"NUOVE PROFESSIONALITA' PER IL SETTORE ENOGASTRONOMICO- PROFILI AREA VENDITE";"NUOVE PROFESSIONALITA' PER IL SETTORE ENOGASTRONOMICO- PROFILI AREA VENDITE, attivit� rivolta a 96 persone costituita da:";15/12/2015 00:00:00;21/12/2016 00:00:00;180566,50;0,50;"008037";"008";"102";"31/10/2022"
"FSE";"2015-3932/RER";"E99J15000890002";"01928210341";"En.A.I.P. Parma";"COMPETENZE PER L'AMMINISTRAZIONE E GESTIONE D'IMPRESA";"COMPETENZE PER L'AMMINISTRAZIONE E GESTIONE D'IMPRESA, attivit� rivolta a 30 persone costituita da:";16/11/2015 00:00:00;5/6/2017 00:00:00;115881,00;0,50;"008034";"008";"102";"31/10/2022"
"FSE";"2015-3934/RER";"E99J15000900002";"01928210341";"En.A.I.P. Parma";"CATERING & BANQUETING";"CATERING & BANQUETING, attivit� rivolta a 15 persone costituita da un percorso di formazione di specializzazione per l'area professionale di Produzione e distribuzione pasti finalizzato all'acquisizione di un certificato di qualifica di Tecnico dei servizi sala-banqueting. Il corso, della durata di 300 ore, � rivolto a 15 persone.";16/11/2015 00:00:00;5/6/2017 00:00:00;42919,00;0,50;"008034";"008";"102";"31/10/2022"
"FSE";"2015-3936/RER";"E99J15000920002";"02291500409";"Fondazione En.A.I.P.  S. Zavatta Rimini";"IMPIANTI ELETTRICI E DOMOTICA";"IMPIANTI ELETTRICI E DOMOTICA, attivit� rivolta a 12 persone costituita da un percorso di formazione di specializzazione per l'area professionale di Installazione componenti e impianti elettrici e termo-idraulici finalizzato all'acquisizione di un certificato di qualifica di Tecnico nei sistemi domotici. Il corso, della durata di 500 ore, � rivolto a 12 persone.";12/11/2015 00:00:00;31/3/2017 00:00:00;67518,00;0,50;"008099";"008";"102";"31/10/2022"
"FSE";"2015-3937/RER";"E99J15001050002";"02291500409";"Fondazione En.A.I.P.  S. Zavatta Rimini";"PROGETTAZIONE MECCANICA E CARPENTERIA METALLICA";"PROGETTAZIONE MECCANICA E CARPENTERIA METALLICA, attivit� rivolta a 30 persone costituita da:";16/11/2015 00:00:00;30/6/2017 00:00:00;142717,00;0,50;"008099";"008";"102";"31/10/2022"
"FSE";"2015-3938/RER";"E99J15000930002";"02291500409";"Fondazione En.A.I.P.  S. Zavatta Rimini";"OPERATORE IMPIANTI TERMO-IDRAULICI";"OPERATORE IMPIANTI TERMO-IDRAULICI, attivit� rivolta a 12 persone costituita da un percorso di formazione di accesso all'area professionale di Installazione componenti e impianti elettrici e termo-idraulici finalizzato all'acquisizione di un certificato di qualifica di Operatore impianti termo-idraulici. Il corso, della durata di 600 ore, � rivolto a 12 persone.";5/11/2015 00:00:00;31/3/2017 00:00:00;71985,00;0,50;"008099";"008";"102";"31/10/2022"
"FSE";"2015-3941/RER";"E39J15001630002";"80152680379";"IRECOOP EMILIA-ROMAGNA SOCIETA' COOPERATIVA";"Esperto nella gestione dei servizi sociali";"Esperto nella gestione dei servizi sociali, attivit� rivolta a 12 persone costituita da un percorso di formazione di specializzazione per l'area professionale di Gestione processi, progetti e strutture finalizzato all'acquisizione di un certificato di qualifica di Tecnico esperto nella gestione di servizi. Il corso, della durata di 300 ore, � rivolto a 12 persone.";26/10/2015 00:00:00;30/10/2016 00:00:00;43728,00;0,50;"008099";"008";"102";"31/10/2022"
"FSE";"2015-3943/RER";"E39J15001640002";"80152680379";"IRECOOP EMILIA-ROMAGNA SOCIETA' COOPERATIVA";"OPERATORE ALLA POLTRONA ODONTOIATRICA";"OPERATORE ALLA POLTRONA ODONTOIATRICA, attivit� rivolta a 12 persone costituita da un percorso di formazione di specializzazione per l'area professionale di Erogazione servizi socio-sanitari finalizzato all'acquisizione di un certificato di qualifica di Operatore alla poltrona odontoiatrica. Il corso, della durata di 300 ore, � rivolto a 12 persone.";16/11/2015 00:00:00;20/12/2016 00:00:00;41252,00;0,50;"008034";"008";"102";"31/10/2022"
"FSE";"2015-3949/RER";"E39J15001650002";"80152680379";"IRECOOP EMILIA-ROMAGNA SOCIETA' COOPERATIVA";"MEDIATORE INTERCULTURALE ESPERTO IN MEDIAZIONE NEI PROCESSI SOCIO-EDUCATIVI";"MEDIATORE INTERCULTURALE ESPERTO IN MEDIAZIONE NEI PROCESSI SOCIO-EDUCATIVI, attivit� rivolta a 12 persone costituita da un percorso di formazione di specializzazione per l'area professionale di Erogazione servizi socio-sanitari finalizzato all'acquisizione di un certificato di qualifica di Mediatore inter-culturale. Il corso, della durata di 300 ore, � rivolto a 12 persone.";3/11/2015 00:00:00;25/11/2016 00:00:00;43728,00;0,50;"008035";"008";"102";"31/10/2022"
"FSE";"2015-3951/RER";"E39J15001660002";"80152680379";"IRECOOP EMILIA-ROMAGNA SOCIETA' COOPERATIVA";"QUALIFICARE L'OCCUPAZIONE DELLE PERSONE E FAVORIRE L'INSERIMENTO LAVORATIVO IN AMBITO AGROALIMENTARE";"QUALIFICARE L'OCCUPAZIONE DELLE PERSONE E FAVORIRE L'INSERIMENTO LAVORATIVO IN AMBITO AGROALIMENTARE, attivit� rivolta a 24 persone costituita da:";9/11/2015 00:00:00;30/4/2017 00:00:00;111067,00;0,50;"008039";"008";"102";"31/10/2022"
"FSE";"2015-3953/RER";"E39J15001670002";"80152680379";"IRECOOP EMILIA-ROMAGNA SOCIETA' COOPERATIVA";"ANIMATORE SOCIALE";"ANIMATORE SOCIALE, attivit� rivolta a 12 persone costituita da un percorso di formazione di specializzazione per l'area professionale di Erogazione servizi socio-sanitari finalizzato all'acquisizione di un certificato di qualifica di Animatore sociale. Il corso, della durata di 300 ore, � rivolto a 12 persone.";20/11/2015 00:00:00;31/12/2016 00:00:00;43359,00;0,50;"008033";"008";"102";"31/10/2022"
"FSE";"2015-3955/RER";"E39J15001680002";"80152680379";"IRECOOP EMILIA-ROMAGNA SOCIETA' COOPERATIVA";"ANIMATORE SOCIALE";"ANIMATORE SOCIALE, attivit� rivolta a 12 persone costituita da un percorso di formazione di specializzazione per l'area professionale di Erogazione servizi socio-sanitari finalizzato all'acquisizione di un certificato di qualifica di Animatore sociale. Il corso, della durata di 300 ore, � rivolto a 12 persone.";11/11/2015 00:00:00;31/12/2016 00:00:00;46728,00;0,50;"008038";"008";"102";"31/10/2022"
"FSE";"2015-3956/RER";"E39J15001690002";"80152680379";"IRECOOP EMILIA-ROMAGNA SOCIETA' COOPERATIVA";"OPERATORE ALLA POLTRONA ODONTOIATRICA";"OPERATORE ALLA POLTRONA ODONTOIATRICA, attivit� rivolta a 12 persone costituita da un percorso di formazione di specializzazione per l'area professionale di Erogazione servizi socio-sanitari finalizzato all'acquisizione di un certificato di qualifica di Operatore alla poltrona odontoiatrica. Il corso, della durata di 300 ore, � rivolto a 12 persone.";11/11/2015 00:00:00;14/10/2016 00:00:00;42359,00;0,50;"008037";"008";"102";"31/10/2022"
"FSE";"2015-3958/RER";"E39J15001700002";"80152680379";"IRECOOP EMILIA-ROMAGNA SOCIETA' COOPERATIVA";"OPERATORE AGRO-ALIMENTARE";"OPERATORE AGRO-ALIMENTARE, attivit� rivolta a 12 persone costituita da un percorso di formazione di accesso all'area professionale di Progettazione e produzione alimentare finalizzato all'acquisizione di un certificato di qualifica di Operatore agro-alimentare. Il corso, della durata di 600 ore, � rivolto a 12 persone.";16/11/2015 00:00:00;28/7/2016 00:00:00;69716,00;0,50;"008037";"008";"102";"31/10/2022"
"FSE";"2015-3959/RER";"E39J15001710002";"80152680379";"IRECOOP EMILIA-ROMAGNA SOCIETA' COOPERATIVA";"OPERATORE AGRO-ALIMENTARE";"OPERATORE AGRO-ALIMENTARE, attivit� rivolta a 12 persone costituita da un percorso di formazione di accesso all'area professionale di Progettazione e produzione alimentare finalizzato all'acquisizione di un certificato di qualifica di Operatore agro-alimentare. Il corso, della durata di 600 ore, � rivolto a 12 persone.";30/10/2015 00:00:00;31/3/2017 00:00:00;71816,00;0,50;"008040";"008";"102";"31/10/2022"
"FSE";"2015-3968/RER";"E49J15000360002";"02602440352";"WARRANTRAINING S.R.L.";"Tecnico amministrazione, finanza e controllo di gestione con competenze in internazionalizzazione del business";"Tecnico amministrazione, finanza e controllo di gestione con competenze in internazionalizzazione del business, attivit� rivolta a 12 persone costituita da un percorso di formazione di specializzazione per l'area professionale di Amministrazione e controllo d�impresa finalizzato all'acquisizione di un certificato di qualifica di Tecnico amministrazione, finanza e controllo di gestione. Il corso, della durata di 300 ore, � rivolto a 12 persone.";19/10/2015 00:00:00;24/3/2016 00:00:00;43728,00;0,50;"008035";"008";"102";"31/10/2022"
"FSE";"2015-3969/RER";"E49J15000370002";"02602440352";"WARRANTRAINING S.R.L.";"Disegnatore meccanico";"Disegnatore meccanico, attivit� rivolta a 12 persone costituita da un percorso di formazione di specializzazione per l'area professionale di Progettazione e produzione meccanica ed elettromeccanica finalizzato all'acquisizione di un certificato di qualifica di Disegnatore meccanico. Il corso, della durata di 300 ore, � rivolto a 12 persone.";27/10/2015 00:00:00;29/8/2016 00:00:00;43359,00;0,50;"008035";"008";"102";"31/10/2022"
"FSE";"2015-3970/RER";"E49J15000380002";"02602440352";"WARRANTRAINING S.R.L.";"GESTORE DEL SISTEMA QUALITA' AZIENDALE";"GESTORE DEL SISTEMA QUALITA' AZIENDALE, attivit� rivolta a 24 persone costituita da:";20/10/2015 00:00:00;17/3/2016 00:00:00;87087,00;0,50;"008035:::008036";"008";"102";"31/10/2022"
"FSE";"2015-3974/RER";"E49J15000390002";"02602440352";"WARRANTRAINING S.R.L.";"Tecnico delle vendite di Concessionaria Auto";"Tecnico delle vendite di Concessionaria Auto, attivit� rivolta a 12 persone costituita da un percorso di formazione di specializzazione per l'area professionale di Marketing e vendite finalizzato all'acquisizione di un certificato di qualifica di Tecnico delle vendite. Il corso, della durata di 300 ore, � rivolto a 12 persone.";29/10/2015 00:00:00;12/4/2016 00:00:00;43359,00;0,50;"008035";"008";"102";"31/10/2022"
"FSE";"2015-3975/RER";"E49J15000400002";"02602440352";"WARRANTRAINING S.R.L.";"Consulente analista funzionale";"Consulente analista funzionale, attivit� rivolta a 12 persone costituita da un percorso di formazione di specializzazione per l'area professionale di Gestione processi, progetti e strutture finalizzato all'acquisizione di un certificato di qualifica di Tecnico esperto nella gestione di servizi. Il corso, della durata di 300 ore, � rivolto a 12 persone.";16/11/2015 00:00:00;22/4/2016 00:00:00;42520,00;0,50;"008037";"008";"102";"31/10/2022"
"FSE";"2015-3976/RER";"E89J15000910002";"01768220350";"C.F.P. BASSA REGGIANA Soc. Cons.r.l";"OPERATORE MACCHINE UTENSILI A CONTROLLO NUMERICO";"OPERATORE MACCHINE UTENSILI A CONTROLLO NUMERICO, attivit� rivolta a 12 persone costituita da un percorso di formazione di accesso all'area professionale di Progettazione e produzione meccanica ed elettromeccanica finalizzato all'acquisizione di un certificato di qualifica di Operatore meccanico. Il corso, della durata di 600 ore, � rivolto a 12 persone.";9/11/2015 00:00:00;28/10/2016 00:00:00;73056,00;0,50;"008035";"008";"102";"31/10/2022"
"FSE";"2015-3979/RER";"E89J15000920002";"01768220350";"C.F.P. BASSA REGGIANA Soc. Cons.r.l";"TECNICO MANUTENTORE AUTRONICO DELL'AUTOMOBILE";"TECNICO MANUTENTORE AUTRONICO DELL'AUTOMOBILE, attivit� rivolta a 12 persone costituita da un percorso di formazione di specializzazione per l'area professionale di Autoriparazione finalizzato all'acquisizione di un certificato di competenze di Tecnico autronico dell�automobile. Il corso, della durata di 250 ore, � rivolto a 12 persone.";26/10/2015 00:00:00;25/2/2016 00:00:00;33787,50;0,50;"008035";"008";"102";"31/10/2022"
"FSE";"2015-3980/RER";"E39J15001720002";"80061110377";"IAL Innovazione Apprendimento Lavoro Emilia Romagna S.r.l. Impresa Sociale";"Sistemi informatici per l�area di Piacenza";"Sistemi informatici per l�area di Piacenza, attivit� rivolta a 12 persone costituita da un percorso di formazione di specializzazione per l'area professionale di Sviluppo e gestione sistemi informatici finalizzato all'acquisizione di un certificato di qualifica di Tecnico informatico. Il corso, della durata di 500 ore, � rivolto a 12 persone.";9/12/2015 00:00:00;15/11/2016 00:00:00;70880,00;0,50;"008033";"008";"102";"31/10/2022"
"FSE";"2015-3981/RER";"E39J15001730002";"80061110377";"IAL Innovazione Apprendimento Lavoro Emilia Romagna S.r.l. Impresa Sociale";"TECNICO DEI SERVIZI TURISTICO RICETTIVI";"TECNICO DEI SERVIZI TURISTICO RICETTIVI, attivit� rivolta a 12 persone costituita da un percorso di formazione di specializzazione per l'area professionale di Promozione ed erogazione servizi turistici finalizzato all'acquisizione di un certificato di qualifica di Tecnico dei servizi turistico-ricettivi. Il corso, della durata di 300 ore, � rivolto a 12 persone.";29/1/2016 00:00:00;27/5/2016 00:00:00;45228,00;0,50;"008099";"008";"102";"31/10/2022"
"FSE";"2015-3983/RER";"E39J15001740002";"80061110377";"IAL Innovazione Apprendimento Lavoro Emilia Romagna S.r.l. Impresa Sociale";"OPERATORE DI PANIFICIO E PASTIFICIO";"OPERATORE DI PANIFICIO E PASTIFICIO, attivit� rivolta a 12 persone costituita da un percorso di formazione di accesso all'area professionale di Progettazione e produzione alimentare finalizzato all'acquisizione di un certificato di qualifica di Operatore di panificio e pastificio. Il corso, della durata di 600 ore, � rivolto a 12 persone.";12/10/2015 00:00:00;15/4/2016 00:00:00;73056,00;0,50;"008099";"008";"102";"31/10/2022"
"FSE";"2015-3986/RER";"E39J15001750002";"80061110377";"IAL Innovazione Apprendimento Lavoro Emilia Romagna S.r.l. Impresa Sociale";"Il pane quotidiano: materie prime impasti e prodotti della panificazione";"Il pane quotidiano: materie prime impasti e prodotti della panificazione, attivit� rivolta a 12 persone costituita da un percorso di formazione di accesso all'area professionale di Progettazione e produzione alimentare finalizzato all'acquisizione di un certificato di competenze di Operatore di panificio e pastificio. Il corso, della durata di 300 ore, � rivolto a 12 persone.";19/10/2015 00:00:00;17/3/2016 00:00:00;36548,00;0,50;"008040";"008";"102";"31/10/2022"
"FSE";"2015-3989/RER";"E39J15001760002";"80061110377";"IAL Innovazione Apprendimento Lavoro Emilia Romagna S.r.l. Impresa Sociale";"Materie prime Impasti e Prodotti della panificazione";"Materie prime Impasti e Prodotti della panificazione, attivit� rivolta a 12 persone costituita da un percorso di formazione di accesso all'area professionale di Progettazione e produzione alimentare finalizzato all'acquisizione di un certificato di qualifica di Operatore di panificio e pastificio. Il corso, della durata di 600 ore, � rivolto a 12 persone.";28/10/2015 00:00:00;18/5/2016 00:00:00;73056,00;0,50;"008040";"008";"102";"31/10/2022"
"FSE";"2015-3990/RER";"E39J15001770002";"80061110377";"IAL Innovazione Apprendimento Lavoro Emilia Romagna S.r.l. Impresa Sociale";"Il management dei servizi turistico ricettivi";"Il management dei servizi turistico ricettivi, attivit� rivolta a 12 persone costituita da un percorso di formazione di specializzazione per l'area professionale di Promozione ed erogazione servizi turistici finalizzato all'acquisizione di un certificato di qualifica di Tecnico dei servizi turistico-ricettivi. Il corso, della durata di 300 ore, � rivolto a 12 persone.";16/11/2015 00:00:00;22/4/2016 00:00:00;42973,00;0,50;"008040";"008";"102";"31/10/2022"
"FSE";"2015-3992/RER";"E39J15001780002";"80061110377";"IAL Innovazione Apprendimento Lavoro Emilia Romagna S.r.l. Impresa Sociale";"SVILUPPO DI COMPETENZE NELL'AREA PROGETTAZIONE E PRODUZIONE MECCANICA ED ELETTROMECCANICA";"SVILUPPO DI COMPETENZE NELL'AREA PROGETTAZIONE E PRODUZIONE MECCANICA ED ELETTROMECCANICA, attivit� rivolta a 36 persone costituita da:";9/11/2015 00:00:00;5/5/2017 00:00:00;212687,00;0,50;"008036";"008";"102";"31/10/2022"
"FSE";"2015-3993/RER";"E39J15001790002";"80061110377";"IAL Innovazione Apprendimento Lavoro Emilia Romagna S.r.l. Impresa Sociale";"La salute a tavola: un�alimentazione sana con prodotti di qualit�";"La salute a tavola: un�alimentazione sana con prodotti di qualit�, attivit� rivolta a 12 persone costituita da un percorso di formazione di specializzazione per l'area professionale di Produzione e distribuzione pasti finalizzato all'acquisizione di un certificato di qualifica di Operatore della produzione di pasticceria. Il corso, della durata di 300 ore, � rivolto a 12 persone.";5/10/2015 00:00:00;21/1/2016 00:00:00;43728,00;0,50;"008038";"008";"102";"31/10/2022"
"FSE";"2015-3996/RER";"E39J15001800002";"80061110377";"IAL Innovazione Apprendimento Lavoro Emilia Romagna S.r.l. Impresa Sociale";"Fare ristorazione";"Fare ristorazione, attivit� rivolta a 12 persone costituita da un percorso di formazione di specializzazione per l'area professionale di Produzione e distribuzione pasti finalizzato all'acquisizione di un certificato di qualifica di Operatore della produzione pasti. Il corso, della durata di 300 ore, � rivolto a 12 persone.";26/10/2015 00:00:00;25/2/2016 00:00:00;43728,00;0,50;"008039";"008";"102";"31/10/2022"
"FSE";"2015-3997/RER";"E39J15001810002";"80061110377";"IAL Innovazione Apprendimento Lavoro Emilia Romagna S.r.l. Impresa Sociale";"Fare turismo";"Fare turismo, attivit� rivolta a 12 persone costituita da un percorso di formazione di specializzazione per l'area professionale di Promozione ed erogazione servizi turistici finalizzato all'acquisizione di un certificato di qualifica di Tecnico dei servizi turistico-ricettivi. Il corso, della durata di 300 ore, � rivolto a 12 persone.";16/11/2015 00:00:00;9/6/2016 00:00:00;43728,00;0,50;"008039";"008";"102";"31/10/2022"
"FSE";"2015-4/SE";"E41E14000140007";"97163140581";"Tecnostruttura delle Regioni per il Fondo Sociale Europeo";"Progetto di assistenza tecnica istituzionale alle Regioni e Province autonome POR FSE 2014/2020 - Concessione e assegnazione finanziamento";"Progetto di assistenza tecnica istituzionale alle Regioni e Province autonome POR FSE 2014/2020 - Concessione e assegnazione finanziamento";1/1/2015 00:00:00;31/12/2015 00:00:00;103070,00;0,50;"008037";"008";"121";"31/10/2022"
"FSE";"2015-4001/RER";"E39J15001820002";"80061110377";"IAL Innovazione Apprendimento Lavoro Emilia Romagna S.r.l. Impresa Sociale";"SVILUPPO DI COMPETENZE PER IL MARKETING E LE VENDITE A REGGIO EMILIA";"SVILUPPO DI COMPETENZE PER IL MARKETING E LE VENDITE A REGGIO EMILIA, attivit� rivolta a 12 persone costituita da un percorso di formazione di accesso all'area professionale di Marketing e vendite finalizzato all'acquisizione di un certificato di qualifica di Operatore del punto vendita. Il corso, della durata di 600 ore, � rivolto a 12 persone.";6/11/2015 00:00:00;13/5/2016 00:00:00;72786,00;0,50;"008035";"008";"102";"31/10/2022"
"FSE";"2015-4004/RER";"E39J15001830002";"80061110377";"IAL Innovazione Apprendimento Lavoro Emilia Romagna S.r.l. Impresa Sociale";"Competenze nella Programmazione Specializzata in soluzioni Mobile";"Competenze nella Programmazione Specializzata in soluzioni Mobile, attivit� rivolta a 12 persone costituita da un percorso di formazione di specializzazione per l'area professionale di Sviluppo e gestione sistemi informatici finalizzato all'acquisizione di un certificato di qualifica di Analista programmatore. Il corso, della durata di 300 ore, � rivolto a 12 persone.";13/11/2015 00:00:00;21/12/2016 00:00:00;44624,00;0,50;"008037";"008";"102";"31/10/2022"
"FSE";"2015-4006/RER";"E39J15001840002";"80061110377";"IAL Innovazione Apprendimento Lavoro Emilia Romagna S.r.l. Impresa Sociale";"Competenze di contabilit� specializzata nell'Import ed Export";"Competenze di contabilit� specializzata nell'Import ed Export, attivit� rivolta a 12 persone costituita da un percorso di formazione di specializzazione per l'area professionale di Amministrazione e controllo d�impresa finalizzato all'acquisizione di un certificato di qualifica di Tecnico contabile. Il corso, della durata di 300 ore, � rivolto a 12 persone.";9/11/2015 00:00:00;15/7/2016 00:00:00;46275,00;0,50;"008037";"008";"102";"31/10/2022"
"FSE";"2015-4007/RER";"E39J15001850002";"80061110377";"IAL Innovazione Apprendimento Lavoro Emilia Romagna S.r.l. Impresa Sociale";"Produzione e Distribuzione Pasti nell�area di Parma";"Produzione e Distribuzione Pasti nell�area di Parma, attivit� rivolta a 12 persone costituita da un percorso di formazione di accesso all'area professionale di Produzione e distribuzione pasti finalizzato all'acquisizione di un certificato di qualifica di Operatore della ristorazione. Il corso, della durata di 600 ore, � rivolto a 12 persone.";13/10/2015 00:00:00;10/5/2016 00:00:00;72453,00;0,50;"008034";"008";"102";"31/10/2022"
"FSE";"2015-4008/RER";"E39J15001860002";"80061110377";"IAL Innovazione Apprendimento Lavoro Emilia Romagna S.r.l. Impresa Sociale";"Tecnico gestione punto vendita per l'area di Parma";"Tecnico gestione punto vendita per l'area di Parma, attivit� rivolta a 12 persone costituita da un percorso di formazione di specializzazione per l'area professionale di Marketing e vendite finalizzato all'acquisizione di un certificato di qualifica di Tecnico della gestione del punto vendita. Il corso, della durata di 300 ore, � rivolto a 12 persone.";8/10/2015 00:00:00;4/2/2016 00:00:00;42621,00;0,50;"008034";"008";"102";"31/10/2022"
"FSE";"2015-4010/RER";"E39J15001870002";"80061110377";"IAL Innovazione Apprendimento Lavoro Emilia Romagna S.r.l. Impresa Sociale";"Produzione e Distribuzione Pasti nell�area di Piacenza";"Produzione e Distribuzione Pasti nell�area di Piacenza, attivit� rivolta a 12 persone costituita da un percorso di formazione di accesso all'area professionale di Produzione e distribuzione pasti finalizzato all'acquisizione di un certificato di qualifica di Operatore della ristorazione. Il corso, della durata di 600 ore, � rivolto a 12 persone.";28/10/2015 00:00:00;22/4/2016 00:00:00;72588,00;0,50;"008033";"008";"102";"31/10/2022"
"FSE";"2015-4014/RER";"E99J15000940002";"02020330342";"FORMA FUTURO Soc.Cons. r.l.";"PROGETTAZIONE E PRODUZIONE IN AREA MECCANICA";"PROGETTAZIONE E PRODUZIONE IN AREA MECCANICA, attivit� rivolta a 15 persone costituita da un percorso di formazione di specializzazione per l'area professionale di Progettazione e produzione meccanica ed elettromeccanica finalizzato all'acquisizione di un certificato di qualifica di Tecnologo di prodotto/processo nella meccanica. Il corso, della durata di 300 ore, � rivolto a 15 persone.";16/11/2015 00:00:00;29/9/2016 00:00:00;47085,00;0,50;"008034";"008";"102";"31/10/2022"
"FSE";"2015-4017/RER";"E39J15001880002";"91204630379";"E.N.F.A.P. Emilia-Romagna - Ente per la Formazione e l'Addestramento Professionale";"Formazione per l'inserimento lavorativo nell'area professionale ""Amministrazione e controllo d'impresa"" -  area urbana Bologna";"Formazione per l'inserimento lavorativo nell'area professionale Amministrazione e controllo d'impresa -  area urbana Bologna, attivit� rivolta a 12 persone costituita da un percorso di formazione di accesso all'area professionale di Amministrazione e controllo d�impresa finalizzato all'acquisizione di un certificato di qualifica di Operatore amministrativo-segretariale. Il corso, della durata di 600 ore, � rivolto a 12 persone.";13/10/2015 00:00:00;16/6/2016 00:00:00;73056,00;0,50;"008037";"008";"102";"31/10/2022"
"FSE";"2015-4018/RER";"E39J15001890002";"91204630379";"E.N.F.A.P. Emilia-Romagna - Ente per la Formazione e l'Addestramento Professionale";"Formazione per l'inserimento lavorativo nell'area professionale ""Amministrazione e controllo d'impresa"" - area urbana Forl�";"Formazione per l'inserimento lavorativo nell'area professionale Amministrazione e controllo d'impresa - area urbana Forl�, attivit� rivolta a 12 persone costituita da un percorso di formazione di accesso all'area professionale di Amministrazione e controllo d�impresa finalizzato all'acquisizione di un certificato di qualifica di Operatore amministrativo-segretariale. Il corso, della durata di 600 ore, � rivolto a 12 persone.";13/10/2015 00:00:00;29/4/2016 00:00:00;73120,00;0,50;"008040";"008";"102";"31/10/2022"
"FSE";"2015-4020/RER";"E39J15001900002";"91204630379";"E.N.F.A.P. Emilia-Romagna - Ente per la Formazione e l'Addestramento Professionale";"Formazione per l�inserimento lavorativo nell�area professionale ""Progettazione ed erogazione prodotti informativi e comunicativi"" - area urbana Bologna";"Formazione per l�inserimento lavorativo nell�area professionale Progettazione ed erogazione prodotti informativi e comunicativi - area urbana Bologna, attivit� rivolta a 12 persone costituita da un percorso di formazione di specializzazione per l'area professionale di Progettazione ed erogazione servizi/prodotti informativi e comunicativi finalizzato all'acquisizione di un certificato di qualifica di Redattore di prodotti editoriali. Il corso, della durata di 300 ore, � rivolto a 12 persone.";3/11/2015 00:00:00;1/6/2016 00:00:00;44328,00;0,50;"008037";"008";"102";"31/10/2022"
"FSE";"2015-4024/RER";"E39J15001910002";"91204630379";"E.N.F.A.P. Emilia-Romagna - Ente per la Formazione e l'Addestramento Professionale";"Formazione per l'inserimento lavorativo nell'area professionale ""Progettazione e produzione meccanica ed elettromeccanica""";"Formazione per l'inserimento lavorativo nell'area professionale Progettazione e produzione meccanica ed elettromeccanica, attivit� rivolta a 12 persone costituita da un percorso di formazione di accesso all'area professionale di Progettazione e produzione meccanica ed elettromeccanica finalizzato all'acquisizione di un certificato di qualifica di Costruttore di carpenteria metallica. Il corso, della durata di 600 ore, � rivolto a 12 persone.";12/11/2015 00:00:00;5/5/2016 00:00:00;71652,00;0,50;"008040";"008";"102";"31/10/2022"
"FSE";"2015-4026/RER";"E39J15001920002";"91204630379";"E.N.F.A.P. Emilia-Romagna - Ente per la Formazione e l'Addestramento Professionale";"Formazione per l�inserimento lavorativo nell�area professionale ""Logistica industriale, del trasporto e spedizione""";"Formazione per l�inserimento lavorativo nell�area professionale Logistica industriale, del trasporto e spedizione, attivit� rivolta a 12 persone costituita da un percorso di formazione di specializzazione per l'area professionale di Logistica industriale, del trasporto e spedizione finalizzato all'acquisizione di un certificato di qualifica di Tecnico di spedizione, trasporto e logistica. Il corso, della durata di 300 ore, � rivolto a 12 persone.";14/10/2015 00:00:00;16/3/2016 00:00:00;43728,00;0,50;"008039";"008";"102";"31/10/2022"
"FSE";"2015-4027/RER";"E39J15001930002";"91204630379";"E.N.F.A.P. Emilia-Romagna - Ente per la Formazione e l'Addestramento Professionale";"Formazione per l�inserimento lavorativo nell�area professionale ""Progettazione ed erogazione prodotti informativi e comunicativi"" - area urbana Forl�";"Formazione per l�inserimento lavorativo nell�area professionale Progettazione ed erogazione prodotti informativi e comunicativi - area urbana Forl�, attivit� rivolta a 12 persone costituita da un percorso di formazione di specializzazione per l'area professionale di Progettazione ed erogazione servizi/prodotti informativi e comunicativi finalizzato all'acquisizione di un certificato di qualifica di Tecnico della comunicazione-informazione. Il corso, della durata di 300 ore, � rivolto a 12 persone.";10/11/2015 00:00:00;16/3/2016 00:00:00;44878,00;0,50;"008040";"008";"102";"31/10/2022"
"FSE";"2015-4028/RER";"E39J15001940002";"01523560389";"CENTOFORM S.R.L.";"OPERATORE MECCANICO";"OPERATORE MECCANICO, attivit� rivolta a 28 persone costituita da:";25/9/2015 00:00:00;4/4/2017 00:00:00;149256,00;0,50;"008038";"008";"102";"31/10/2022"
"FSE";"2015-4029/RER";"E39J15001950002";"01523560389";"CENTOFORM S.R.L.";"PROGETTAZIONE ARCHITETTONICA CON STRUMENTI BIM (Building Information Modeling)";"PROGETTAZIONE ARCHITETTONICA CON STRUMENTI BIM (Building Information Modeling), attivit� rivolta a 12 persone costituita da un percorso di formazione di specializzazione per l'area professionale di Progettazione e costruzione edile finalizzato all'acquisizione di un certificato di qualifica di Disegnatore edile. Il corso, della durata di 300 ore, � rivolto a 12 persone.";16/11/2015 00:00:00;15/4/2016 00:00:00;43959,00;0,50;"008038";"008";"102";"31/10/2022"
"FSE";"2015-4030/RER";"E39J15002510002";"01523560389";"CENTOFORM S.R.L.";"OPERATORE DELLE CALZATURE e DELLA PELLETTERIA";"OPERATORE DELLE CALZATURE e DELLA PELLETTERIA, attivit� rivolta a 12 persone costituita da un percorso di formazione di accesso all'area professionale di Progettazione e produzione calzature in pelle finalizzato all'acquisizione di un certificato di competenze di Operatore delle calzature. Il corso, della durata di 400 ore, � rivolto a 12 persone.";22/6/2016 00:00:00;22/9/2016 00:00:00;48224,00;0,50;"008038";"008";"102";"31/10/2022"
"FSE";"2015-4032/RER";"E39J15001960002";"01523560389";"CENTOFORM S.R.L.";"RICAMATRICE: SAPIENZA ARTIGIANALE PER IL FUTURO";"RICAMATRICE: SAPIENZA ARTIGIANALE PER IL FUTURO, attivit� rivolta a 12 persone costituita da un percorso di formazione di specializzazione per l'area professionale di Progettazione e produzione tessile ed abbigliamento � confezione e maglieria finalizzato all'acquisizione di un certificato di competenze di Tecnico della confezione capo-campione. Il corso, della durata di 200 ore, � rivolto a 12 persone.";4/11/2015 00:00:00;18/12/2015 00:00:00;28972,00;0,50;"008037";"008";"102";"31/10/2022"
"FSE";"2015-4034/RER";"E99J15000950002";"02447460409";"ASSOFORM ROMAGNA S.C. a r.l.";"SVILUPPO DELL'OCCUPAZIONE IN AREA AMMINISTRAZIONE E CONTROLLO D'IMPRESA";"SVILUPPO DELL'OCCUPAZIONE IN AREA AMMINISTRAZIONE E CONTROLLO D'IMPRESA, attivit� rivolta a 24 persone costituita da:";16/11/2015 00:00:00;17/6/2016 00:00:00;88956,00;0,50;"008040:::008099";"008";"102";"31/10/2022"
"FSE";"2015-4035/RER";"E99J15000960002";"02447460409";"ASSOFORM ROMAGNA S.C. a r.l.";"SVILUPPO OCCUPAZIONE NEL SETTORE TERMALE";"SVILUPPO OCCUPAZIONE NEL SETTORE TERMALE, attivit� rivolta a 12 persone costituita da un percorso di formazione di specializzazione per l'area professionale di Erogazione servizi socio-sanitari finalizzato all'acquisizione di un certificato di qualifica di Operatore termale. Il corso, della durata di 300 ore, � rivolto a 12 persone.";9/11/2015 00:00:00;31/3/2016 00:00:00;44328,00;0,50;"008099";"008";"102";"31/10/2022"
"FSE";"2015-4036/RER";"E99J15000970002";"02447460409";"ASSOFORM ROMAGNA S.C. a r.l.";"SVILUPPO OCCUPAZIONE SETTORE MODA";"SVILUPPO OCCUPAZIONE SETTORE MODA, attivit� rivolta a 24 persone costituita da:";7/10/2015 00:00:00;14/6/2016 00:00:00;90456,00;0,50;"008099";"008";"102";"31/10/2022"
"FSE";"2015-4039/RER";"E19J15000770002";"03458820366";"Zenit srl";"Tecnico grafico";"Tecnico grafico, attivit� rivolta a 12 persone costituita da un percorso di formazione di specializzazione per l'area professionale di Progettazione e produzione prodotti grafici finalizzato all'acquisizione di un certificato di qualifica di Tecnico grafico. Il corso, della durata di 300 ore, � rivolto a 12 persone.";16/11/2015 00:00:00;6/4/2016 00:00:00;41421,00;0,50;"008036";"008";"102";"31/10/2022"
"FSE";"2015-4041/RER";"E19J15000780002";"03458820366";"Zenit srl";"Operatore di magazzino merci";"Operatore di magazzino merci, attivit� rivolta a 14 persone costituita da un percorso di formazione di accesso all'area professionale di Logistica industriale, del trasporto e spedizione finalizzato all'acquisizione di un certificato di qualifica di Operatore di magazzino merci. Il corso, della durata di 600 ore, � rivolto a 14 persone.";25/1/2016 00:00:00;31/12/2016 00:00:00;72516,00;0,50;"008036";"008";"102";"31/10/2022"
"FSE";"2015-4043/RER";"E19J15000790002";"03458820366";"Zenit srl";"Percorsi di formazione in area ""Progettazione e produzione meccanica ed elettromeccanica""";"Percorsi di formazione in area Progettazione e produzione meccanica ed elettromeccanica, attivit� rivolta a 12 persone costituita da un percorso di formazione di accesso all'area professionale di Progettazione e produzione meccanica ed elettromeccanica finalizzato all'acquisizione di un certificato di competenze di Costruttore di carpenteria metallica. Il corso, della durata di 200 ore, � rivolto a 12 persone.";25/1/2016 00:00:00;31/10/2016 00:00:00;24560,00;0,50;"008036";"008";"102";"31/10/2022"
"FSE";"2015-4044/RER";"E99J15001060002";"91126520401";"FONDAZIONE VALMARECCHIA";"TECNICO DELLA COMUNICAZIONE-INFORMAZIONE";"TECNICO DELLA COMUNICAZIONE-INFORMAZIONE, attivit� rivolta a 12 persone costituita da un percorso di formazione di specializzazione per l'area professionale di Progettazione ed erogazione servizi/prodotti informativi e comunicativi finalizzato all'acquisizione di un certificato di qualifica di Tecnico della comunicazione-informazione. Il corso, della durata di 500 ore, � rivolto a 12 persone.";1/12/2015 00:00:00;28/5/2016 00:00:00;70880,00;0,50;"008099";"008";"102";"31/10/2022"
"FSE";"2015-4046/RER";"E89J15000930002";"01548000387";"SINERGIE societ� consortile a r. l. ";"Tecnico nelle soluzioni energetiche sistema edificio-impianto esperto nell�efficientamento energetico degli edifici storici";"Tecnico nelle soluzioni energetiche sistema edificio-impianto esperto nell�efficientamento energetico degli edifici storici, attivit� rivolta a 15 persone costituita da un percorso di formazione di specializzazione per l'area professionale di Sviluppo e gestione dell�energia finalizzato all'acquisizione di un certificato di qualifica di Tecnico nelle soluzioni energetiche sistema edificio impianto. Il corso, della durata di 300 ore, � rivolto a 15 persone.";16/11/2015 00:00:00;31/3/2017 00:00:00;40924,00;0,50;"008035";"008";"102";"31/10/2022"
"FSE";"2015-4051/RER";"E39J15001970002";"01503150334";"COM 2 SRL";"Tecnico contabile con competenze digitali per favorire l'inserimento lavorativo";"Tecnico contabile con competenze digitali per favorire l'inserimento lavorativo, attivit� rivolta a 12 persone costituita da un percorso di formazione di specializzazione per l'area professionale di Amministrazione e controllo d�impresa finalizzato all'acquisizione di un certificato di qualifica di Tecnico contabile. Il corso, della durata di 500 ore, � rivolto a 12 persone.";20/1/2016 00:00:00;23/6/2016 00:00:00;72755,00;0,50;"008099";"008";"102";"31/10/2022"
"FSE";"2015-4052/RER";"E89J15001080002";"00945360428";"SIDA GROUP S.R.L.";"OCCUPAZIONE NELLA FILIERA AGROALIMENTARE: FORMAZIONE, CERTIFICAZIONE DELLE COMPETENZE ACQUISITE E MISURE DI ACCOMPAGNAMENTO PER L'INSERIMENTO LAVORATIVO";"OCCUPAZIONE NELLA FILIERA AGROALIMENTARE: FORMAZIONE, CERTIFICAZIONE DELLE COMPETENZE ACQUISITE E MISURE DI ACCOMPAGNAMENTO PER L'INSERIMENTO LAVORATIVO, attivit� rivolta a 30 persone costituita da:";9/11/2015 00:00:00;13/9/2016 00:00:00;117365,00;0,50;"008037";"008";"102";"31/10/2022"
"FSE";"2015-4055/RER";"E89J15000940002";"80001790353";"Centro di formazione professionale Alberto Simonini";"PROGETTISTA MECCANICO CON COMPETENZE MECCANOPLASTICHE";"PROGETTISTA MECCANICO CON COMPETENZE MECCANOPLASTICHE, attivit� rivolta a 12 persone costituita da un percorso di formazione di specializzazione per l'area professionale di Progettazione e produzione meccanica ed elettromeccanica finalizzato all'acquisizione di un certificato di qualifica di Progettista meccanico. Il corso, della durata di 500 ore, � rivolto a 12 persone.";9/11/2015 00:00:00;8/11/2016 00:00:00;65864,00;0,50;"008035";"008";"102";"31/10/2022"
"FSE";"2015-4056/RER";"E89J15000950002";"80001790353";"Centro di formazione professionale Alberto Simonini";"TECNICO NEI SISTEMI DOMOTICI";"TECNICO NEI SISTEMI DOMOTICI, attivit� rivolta a 12 persone costituita da un percorso di formazione di specializzazione per l'area professionale di Installazione componenti e impianti elettrici e termo-idraulici finalizzato all'acquisizione di un certificato di qualifica di Tecnico nei sistemi domotici. Il corso, della durata di 300 ore, � rivolto a 12 persone.";9/11/2015 00:00:00;8/11/2016 00:00:00;42621,00;0,50;"008035";"008";"102";"31/10/2022"
"FSE";"2015-4059/RER";"E99J15000990002";"92065520345";"CISITA Parma S.r.l.";"Tecnico Commerciale Marketing con specializzazione sui Mercati Internazionali";"Tecnico Commerciale Marketing con specializzazione sui Mercati Internazionali, attivit� rivolta a 12 persone costituita da un percorso di formazione di specializzazione per l'area professionale di Marketing e vendite finalizzato all'acquisizione di un certificato di qualifica di Tecnico commerciale - marketing. Il corso, della durata di 300 ore, � rivolto a 12 persone.";25/1/2016 00:00:00;9/6/2016 00:00:00;42759,00;0,50;"008034";"008";"102";"31/10/2022"
"FSE";"2015-4061/RER";"E99J15001000002";"92065520345";"CISITA Parma S.r.l.";"Tecnico gestore degli approvvigionamenti e della catena di fornitura";"Tecnico gestore degli approvvigionamenti e della catena di fornitura, attivit� rivolta a 12 persone costituita da un percorso di formazione di specializzazione per l'area professionale di Approvvigionamento e gestione della produzione industriale finalizzato all'acquisizione di un certificato di qualifica di Tecnico degli acquisti e approvvigionamenti. Il corso, della durata di 300 ore, � rivolto a 12 persone.";10/12/2015 00:00:00;12/5/2016 00:00:00;43359,00;0,50;"008034";"008";"102";"31/10/2022"
"FSE";"2015-4062/RER";"E99J15001010002";"92065520345";"CISITA Parma S.r.l.";"Tecnico di Spedizioni, Trasporti e Logistica Internazionale";"Tecnico di Spedizioni, Trasporti e Logistica Internazionale, attivit� rivolta a 12 persone costituita da un percorso di formazione di specializzazione per l'area professionale di Logistica industriale, del trasporto e spedizione finalizzato all'acquisizione di un certificato di qualifica di Tecnico di spedizione, trasporto e logistica. Il corso, della durata di 300 ore, � rivolto a 12 persone.";10/12/2015 00:00:00;20/5/2016 00:00:00;43728,00;0,50;"008034";"008";"102";"31/10/2022"
"FSE";"2015-4063/RER";"E39J15001980002";"04237330370";"DINAMICA soc.cons.r.l";"Produzione agricola: competenze a favore  dell�occupabilit�";"Produzione agricola: competenze a favore  dell�occupabilit�, attivit� rivolta a 65 persone costituita da:";26/10/2015 00:00:00;13/5/2016 00:00:00;162679,41;0,50;"008036:::008037:::008038";"008";"102";"31/10/2022"
"FSE";"2015-4066/RER";"E39J15002520002";"04237330370";"DINAMICA soc.cons.r.l";"Nuove figure tecniche per il marketing e le vendite nel settore agroalimentare";"Nuove figure tecniche per il marketing e le vendite nel settore agroalimentare, attivit� rivolta a 39 persone costituita da:";9/11/2015 00:00:00;5/7/2016 00:00:00;179066,56;0,50;"008033:::008038:::008039";"008";"102";"31/10/2022"
"FSE";"2015-4067/RER";"E39J15001990002";"04237330370";"DINAMICA soc.cons.r.l";"Progettazione e gestione del verde: competenze a favore dell'occupabilit�";"Progettazione e gestione del verde: competenze a favore dell'occupabilit�, attivit� rivolta a 51 persone costituita da:";26/10/2015 00:00:00;24/6/2016 00:00:00;254239,00;0,50;"008035:::008036:::008037:::008099";"008";"102";"31/10/2022"
"FSE";"2015-4068/RER";"E39J15002000002";"04237330370";"DINAMICA soc.cons.r.l";"Tecnico esperto nella gestione dell'energia (nell'era della Green Economy)";"Tecnico esperto nella gestione dell'energia (nell'era della Green Economy), attivit� rivolta a 13 persone costituita da un percorso di formazione di specializzazione per l'area professionale di Sviluppo e gestione dell�energia finalizzato all'acquisizione di un certificato di qualifica di Tecnico esperto nella gestione dell�energia. Il corso, della durata di 500 ore, � rivolto a 13 persone.";5/11/2015 00:00:00;24/6/2016 00:00:00;64765,00;0,50;"008040";"008";"102";"31/10/2022"
"FSE";"2015-4071/RER";"E39J15002010002";"80090410376";"Associazione Emiliano - Romagnola di centri autonomi di formazione professionale - A.E.C.A";"SVILUPPO DEL COMPARTO MECCANICO IN AREE URBANE";"SVILUPPO DEL COMPARTO MECCANICO IN AREE URBANE, attivit� rivolta a 84 persone costituita da:";10/11/2015 00:00:00;30/6/2017 00:00:00;351550,00;0,50;"008033:::008036:::008037:::008039:::008040";"008";"102";"31/10/2022"
"FSE";"2015-4072/RER";"E39J15002020002";"80090410376";"Associazione Emiliano - Romagnola di centri autonomi di formazione professionale - A.E.C.A";"SVILUPPO DEL SETTORE MECCANICO IN AREA SISMA (NEI TERRITORI DI FERRARA E CENTO)";"SVILUPPO DEL SETTORE MECCANICO IN AREA SISMA (NEI TERRITORI DI FERRARA E CENTO), attivit� rivolta a 36 persone costituita da:";13/11/2015 00:00:00;30/6/2017 00:00:00;128242,00;0,50;"008038";"008";"102";"31/10/2022"
"FSE";"2015-4073/RER";"E39J15002530002";"80090410376";"Associazione Emiliano - Romagnola di centri autonomi di formazione professionale - A.E.C.A";"AUTOMOTIVE - AREA URBANA MODENA";"AUTOMOTIVE - AREA URBANA MODENA, attivit� rivolta a 24 persone costituita da:";16/11/2015 00:00:00;30/4/2017 00:00:00;128585,00;0,50;"008036";"008";"102";"31/10/2022"
"FSE";"2015-4074/RER";"E39J15002030002";"80090410376";"Associazione Emiliano - Romagnola di centri autonomi di formazione professionale - A.E.C.A";"GESTIONE D'IMPRESA IN UN'OTTICA DI INNOVAZIONE ED INTERNAZIONALIZZAZIONE";"GESTIONE D'IMPRESA IN UN'OTTICA DI INNOVAZIONE ED INTERNAZIONALIZZAZIONE, attivit� rivolta a 24 persone costituita da:";26/10/2015 00:00:00;31/12/2016 00:00:00;58810,36;0,50;"008036:::008039";"008";"102";"31/10/2022"
"FSE";"2015-4075/RER";"E39J15002540002";"80090410376";"Associazione Emiliano - Romagnola di centri autonomi di formazione professionale - A.E.C.A";"PERCORSI DI FORMAZIONE IN AMBITO ELETTRICO E DOMOTICO IN AREE URBANE";"PERCORSI DI FORMAZIONE IN AMBITO ELETTRICO E DOMOTICO IN AREE URBANE, attivit� rivolta a 36 persone costituita da:";16/11/2015 00:00:00;31/12/2016 00:00:00;141270,60;0,50;"008036:::008039:::008040";"008";"102";"31/10/2022"
"FSE";"2015-4076/RER";"E39J15002040002";"80090410376";"Associazione Emiliano - Romagnola di centri autonomi di formazione professionale - A.E.C.A";"FORMAZIONE NELL'AREA LOGISTICA IN EMILIA ROMAGNA";"FORMAZIONE NELL'AREA LOGISTICA IN EMILIA ROMAGNA, attivit� rivolta a 12 persone costituita da un percorso di formazione di accesso all'area professionale di Logistica industriale, del trasporto e spedizione finalizzato all'acquisizione di un certificato di competenze di Operatore di magazzino merci. Il corso, della durata di 300 ore, � rivolto a 12 persone.";13/11/2015 00:00:00;31/12/2016 00:00:00;36548,00;0,50;"008038";"008";"102";"31/10/2022"
"FSE";"2015-4077/RER";"E39J15002050002";"80090410376";"Associazione Emiliano - Romagnola di centri autonomi di formazione professionale - A.E.C.A";"INTERVENTI A SUPPORTO DEL MARKETING, VENDITE E COMMERCIO NELLE AREE URBANE";"INTERVENTI A SUPPORTO DEL MARKETING, VENDITE E COMMERCIO NELLE AREE URBANE, attivit� rivolta a 36 persone costituita da:";12/11/2015 00:00:00;31/12/2016 00:00:00;132275,00;0,50;"008037:::008038:::008039";"008";"102";"31/10/2022"
"FSE";"2015-4093/RER";"E39J15002140002";"80090410376";"Associazione Emiliano - Romagnola di centri autonomi di formazione professionale - A.E.C.A";"DISEGNATORE MECCANICO NELL'AREA URBANA DI BOLOGNA";"DISEGNATORE MECCANICO NELL'AREA URBANA DI BOLOGNA, attivit� rivolta a 12 persone costituita da un percorso di formazione di specializzazione per l'area professionale di Progettazione e produzione meccanica ed elettromeccanica finalizzato all'acquisizione di un certificato di qualifica di Disegnatore meccanico. Il corso, della durata di 500 ore, � rivolto a 12 persone.";23/11/2015 00:00:00;19/12/2016 00:00:00;57480,25;0,50;"008037";"008";"102";"31/10/2022"
"FSE";"2015-4094/RER";"E39J15002150002";"80090410376";"Associazione Emiliano - Romagnola di centri autonomi di formazione professionale - A.E.C.A";"TECNICO AUTRONICO DELL�AUTOMOBILE - CNOS/FAP (FORLI')";"TECNICO AUTRONICO DELL�AUTOMOBILE - CNOS/FAP (FORLI'), attivit� rivolta a 12 persone costituita da un percorso di formazione di specializzazione per l'area professionale di Autoriparazione finalizzato all'acquisizione di un certificato di qualifica di Tecnico autronico dell'automobile. Il corso, della durata di 500 ore, � rivolto a 12 persone.";16/11/2015 00:00:00;31/12/2016 00:00:00;73755,00;0,50;"008040";"008";"102";"31/10/2022"
"FSE";"2015-4098/RER";"E39J15002160002";"04298010374";"Ecipar Soc.Cons.a r.l.-Formazione e servizi innovativi per l'artigianato e le P.M.I.";"Professionalit� e competenze nell'area ""Autoriparazione""";"Professionalit� e competenze nell'area Autoriparazione, attivit� rivolta a 12 persone costituita da un percorso di formazione di specializzazione per l'area professionale di Autoriparazione finalizzato all'acquisizione di un certificato di qualifica di Tecnico autronico dell'automobile. Il corso, della durata di 300 ore, � rivolto a 12 persone.";16/11/2015 00:00:00;19/12/2016 00:00:00;43359,00;0,50;"008033";"008";"102";"31/10/2022"
"FSE";"2015-4099/RER";"E39J15002170002";"04298010374";"Ecipar Soc.Cons.a r.l.-Formazione e servizi innovativi per l'artigianato e le P.M.I.";"Professionalit� e competenze nell'area ""Erogazione servizi estetici""";"Professionalit� e competenze nell'area Erogazione servizi estetici, attivit� rivolta a 52 persone costituita da:";13/10/2015 00:00:00;22/12/2016 00:00:00;295022,00;0,50;"008034:::008037:::008038:::008039";"008";"102";"31/10/2022"
"FSE";"2015-4101/RER";"E39J15002180002";"04298010374";"Ecipar Soc.Cons.a r.l.-Formazione e servizi innovativi per l'artigianato e le P.M.I.";"Professionalit� e competenze nell'area ""Installazione componenti e impianti elettrici e termoidraulici""""";"Professionalit� e competenze nell'area Installazione componenti e impianti elettrici e termoidraulici, attivit� rivolta a 38 persone costituita da:";28/9/2015 00:00:00;29/6/2016 00:00:00;153170,00;0,50;"008036:::008038:::008039";"008";"102";"31/10/2022"
